Workbook

Sheet Ex 1 HDD
A1: Heating Degree Days | G1: Docket | I1: Dominion Energy Utah
I2: Docket No. 20-057-02
I3: IRP Variance Exhibit
A7: Month/Year | B7: Actual | C7: Normal | F7: Actual | G7: Normal
A8: 2020-06-01 | B8: 66 | C8: 37.52 | D8: =B8-C8 -> 28.48 | F8: =B8 -> 66 | G8: 37.52
A9: 2020-07-01 | B9: 0 | C9: 0 | D9: =B9-C9 -> 0 | F9: =B9+F8 -> 66 | G9: =G8+C9 -> 37.52
A10: 2020-08-01 | B10: 0 | C10: 1.87 | D10: -1.87 | F10: 66 | G10: =G9+C10 -> 39.39
A11: 2020-09-01 | B11: 54 | C11: 61.41 | D11: -7.41 | F11: 120 | G11: 100.8
A12: 2020-10-01 | B12: 293 | C12: 342.03 | D12: -49.03 | F12: 413 | G12: 442.83
A13: 2020-11-01 | B13: 670 | C13: 711.58 | D13: -41.58 | F13: 1083 | G13: 1154.41
A14: 2020-12-01 | B14: 1077 | C14: 1054.69 | D14: 22.31 | F14: 2160 | G14: 2209.1
A15: 2021-01-01 | B15: 985 | C15: 1083.33 | D15: -98.33 | F15: 3145 | G15: 3292.43
A16: 2021-02-01 | B16: 793 | C16: 819.68 | D16: -26.68 | F16: 3938 | G16: 4112.11
A17: 2021-03-01 | B17: 620 | C17: 620.3 | D17: -0.3 | F17: 4558 | G17: 4732.41
A18: 2021-04-01 | B18: 407 | C18: 423.69 | D18: -16.69 | F18: 4965 | G18: 5156.1
A19: 2021-05-01 | B19: 126 | C19: 196.8 | D19: -70.8 | F19: 5091 | G19: 5352.9
B20: =SUM(B8:B19) -> 5091 | C20: =SUM(G8:G19) -> 26667.52 | D20: =SUM(D8:D19) -> -261.9
G36: =4.08-3.28 -> 0.8 | H36: =3.86-3.59 -> 0.27

Sheet Exhibit 1.1
O31: ='Ex 1 HDD'!I3 -> IRP Variance Exhibit | P31: ='Ex 1 HDD'!I2 -> Docket No. 20-057-02 | Q31: ='Ex 1 HDD'!I1 -> Dominion Energy Utah
O32: 1.1

Sheet Exhibit 1.2
O31: ='Ex 1 HDD'!I3 -> IRP Variance Exhibit | P31: ='Ex 1 HDD'!I2 -> Docket No. 20-057-02 | Q31: ='Ex 1 HDD'!I1 -> Dominion Energy Utah
O32: 1.2

Sheet Exhibit 1.3
O31: ='Ex 1 HDD'!I3 -> IRP Variance Exhibit | P31: ='Ex 1 HDD'!I2 -> Docket No. 20-057-02 | Q31: ='Ex 1 HDD'!I1 -> Dominion Energy Utah
O32: 1.3

Sheet Ex 2 Clay Basin
A1: Clay Basin Ending Inventory (MDths)
M5: Plan Year 1 | N5: 1106
K6: Month/Year | L6: Month | M6: Inj | N6: With | O6: Total
A7: Month/Year | B7: Actual | C7: Normal | E7: Actual | F7: Actual/1000 | H7: Actual | I7: Normal | O7: 3690
A8: ='Ex 1 HDD'!$A$8 -> 2020-06-01 | B8: =F8 -> 5206.814 | C8: =O8 -> 5441.2 | D8: =B8-C8 -> -234.386 | E8: 5206814 | F8: =E8/1000 -> 5206.814 | H8: =F8 -> 5206.814 | I8: =C8 -> 5441.2 | K8: =A8 -> 2020-06-01 | L8: =O7 -> 3690 | M8: 1751.2 | N8: 0 | O8: =L8+M8-N8 -> 5441.2 | Q8: 123.428 | S8: =M8/30 -> 58.37333333 | U8: =(M8-N8)/30 -> 58.37333333
A9: ='Ex 1 HDD'!$A$9 -> 2020-07-01 | B9: =F9 -> 7129.464 | C9: =O9 -> 7662.1 | D9: -532.636 | E9: 7129464 | F9: =E9/1000 -> 7129.464 | H9: =H8+F9 -> 12336.278 | I9: =C9+I8 -> 13103.3 | K9: =A9 -> 2020-07-01 | L9: =O8 -> 5441.2 | M9: 2220.9 | N9: 0 | O9: 7662.1 | Q9: 66.7795 | S9: =M9/31 -> 71.64193548 | U9: =(M9-N9)/31 -> 71.64193548
A10: ='Ex 1 HDD'!$A$10 -> 2020-08-01 | B10: 8625.529 | C10: 9769.1 | D10: -1143.571 | E10: 8625529 | F10: 8625.529 | H10: =H9+F10 -> 20961.807 | I10: 22872.4 | K10: 2020-08-01 | L10: =O9 -> 7662.1 | M10: 2107 | N10: 0 | O10: 9769.1 | Q10: 19.9656 | S10: =M10/31 -> 67.96774194 | U10: =(M10-N10)/31 -> 67.96774194
A11: ='Ex 1 HDD'!$A$11 -> 2020-09-01 | B11: 10271.245 | C11: 12169.1 | D11: -1897.855 | E11: 10271245 | F11: 10271.245 | H11: 31233.052 | I11: =C11+I10 -> 35041.5 | K11: 2020-09-01 | L11: 9769.1 | M11: 2400 | N11: 0 | O11: 12169.1 | Q11: 0 | S11: 77.41935484 | U11: 77.41935484
A12: ='Ex 1 HDD'!$A12 -> 2020-10-01 | B12: 10280.678 | C12: 12998.9 | D12: -2718.222 | E12: 10280678 | F12: 10280.678 | H12: 41513.73 | I12: 48040.4 | K12: 2020-10-01 | L12: 12169.1 | M12: 829.8 | N12: 0 | O12: 12998.9 | Q12: 0 | S12: 26.76774194 | U12: 26.76774194
A13: ='Ex 1 HDD'!$A13 -> 2020-11-01 | B13: 11063.631 | C13: 12998.9 | D13: -1935.269 | E13: 11063631 | F13: 11063.631 | H13: 52577.361 | I13: 61039.3 | K13: 2020-11-01 | L13: 12998.9 | M13: 0 | N13: 0 | O13: 12998.9 | Q13: 0 | S13: 0 | U13: 0
A14: ='Ex 1 HDD'!$A14 -> 2020-12-01 | B14: 9503.478 | C14: 12998.9 | D14: -3495.422 | E14: 9503478 | F14: 9503.478 | H14: 62080.839 | I14: 74038.2 | K14: 2020-12-01 | L14: 12998.9 | M14: 0 | N14: 0 | O14: 12998.9 | Q14: 3417.48 | S14: 0 | U14: 0
A15: ='Ex 1 HDD'!$A15 -> 2021-01-01 | B15: 6997.728 | C15: =O15 -> 8901.9 | D15: -1904.172 | E15: 6997728 | F15: 6997.728 | H15: 69078.567 | I15: 82940.1 | K15: 2021-01-01 | L15: 12998.9 | M15: 0 | N15: 4097 | O15: 8901.9 | Q15: 5311.68 | S15: 0 | U15: -132.1612903
A16: ='Ex 1 HDD'!$A16 -> 2021-02-01 | B16: 4224.939 | C16: =O16 -> 5794.5 | D16: -1569.561 | E16: 4224939 | F16: 4224.939 | H16: 73303.506 | I16: 88734.6 | K16: 2021-02-01 | L16: 8901.9 | M16: 0 | N16: 3107.4 | O16: 5794.5 | Q16: 3252.24 | S16: 0 | U16: -100.2387097
A17: ='Ex 1 HDD'!$A17 -> 2021-03-01 | B17: 2947.725 | C17: =O17 -> 2389.6 | D17: 558.125 | E17: 2947725 | F17: 2947.725 | H17: 76251.231 | I17: 91124.2 | K17: 2021-03-01 | L17: 5794.5 | M17: 0 | N17: 3404.9 | O17: 2389.6 | Q17: 0 | S17: 0 | U17: -109.8354839
A18: ='Ex 1 HDD'!$A18 -> 2021-04-01 | B18: 2495.533 | C18: =O18 -> 519 | D18: 1976.533 | E18: 2495533 | F18: 2495.533 | H18: 78746.764 | I18: 91643.2 | K18: 2021-04-01 | L18: 2389.6 | M18: 0 | N18: 1870.6 | O18: 519 | Q18: 0 | S18: 0 | U18: -60.34193548
A19: ='Ex 1 HDD'!$A19 -> 2021-05-01 | B19: 4043.051 | C19: =O19 -> 519 | D19: 3524.051 | E19: 4043051 | F19: 4043.051 | H19: 82789.815 | I19: 92162.2 | K19: 2021-05-01 | L19: 519 | M19: 0 | N19: 0 | O19: 519 | Q19: 0 | S19: 0 | U19: 0
M21: =SUM(M8:M19) -> 9308.9 | N21: =SUM(N8:N19) -> 12479.9 | O21: =SUM(N8:N19) -> 12479.9
J25: =O15 -> 8901.9 | M25: =M18/30 -> 0
H26: 1 | I26: =N16/29 -> 107.1517241 | J26: =J25-$I$26 -> 8794.748276 | M26: 0.4444444444 | N26: =M8*$M$26 -> 778.3111111 | O26: =M8*$M$27 -> 486.4444444 | P26: =O26 -> 486.4444444
H27: 2 | J27: =J26-$I$26 -> 8687.596552 | M27: 0.2777777778 | N27: =M9*$M$26 -> 987.0666667 | O27: =M9*$M$27 -> 616.9166667 | P27: =O27 -> 616.9166667
H28: 3 | J28: 8580.444828 | M28: 0.2777777778 | N28: 936.4444444 | O28: 585.2777778 | P28: 585.2777778
H29: 4 | J29: =J28-$I$26 -> 8473.293103 | N29: 1066.666667 | O29: 666.6666667 | P29: 666.6666667
H30: 5 | J30: 8366.141379 | N30: 368.8 | O30: 230.5 | P30: 230.5
H31: 6 | J31: 8258.989655 | N31: 0 | O31: 0 | P31: 0
H32: 7 | J32: 8151.837931 | N32: 0 | O32: 0 | P32: 0
H33: 8 | J33: 8044.686207
H34: 9 | J34: 7937.534483
H35: 10 | J35: 7830.382759
H36: 11 | J36: 7723.231034
H37: 12 | J37: 7616.07931
H38: 13 | J38: 7508.927586
H39: 14 | J39: 7401.775862
H40: 15 | J40: 7294.624138
H41: 16 | J41: =J40-$I$26 -> 7187.472414
H42: 17 | J42: 7080.32069
B43: 5626242 | C43: 8026685 | D43: 10622439 | E43: 12607382 | H43: 18 | J43: 6973.168966
E44: 12434437 | H44: 19 | J44: 6866.017241
E45: 10491542 | H45: 20 | J45: 6758.865517
H46: 21 | J46: 6651.713793
H47: 22 | J47: 6544.562069
H48: 23 | J48: 6437.410345
B49: 13419 | H49: 24 | J49: 6330.258621
B50: 0.2276 | H50: 25 | J50: 6223.106897
B51: =B49*B50 -> 3054.1644 | H51: 26 | J51: 6115.955172
H52: 27 | J52: 6008.803448
H53: 28 | J53: 5901.651724
H54: 29 | J54: 5794.5
H55: 30
F58: June | G58: July | H58: August | I58: September | J58: October | K58: November | L58: December | M58: January | N58: February | O58: March | P58: April | Q58: May
F59: 4587175 | G59: 7350188 | H59: 10347695 | I59: 12594397 | J59: 12186418 | K59: =E13 -> 11063631 | L59: =E14 -> 9503478 | M59: =E15 -> 6997728 | N59: =E16 -> 4224939
E60: 0.4444444 | F60: =$E60*F$59/1000 -> 2038.744241 | G60: =$E60*G$59/1000 -> 3266.749896 | H60: 4598.975096 | I60: 5597.509218 | J60: 5416.185236 | K60: 4917.168842 | L60: 4223.767578 | M60: 3110.101022 | N60: 1877.750479
E61: 0.2777778 | F61: =$E61*F$59/1000 -> 1274.21538 | G61: 2041.719052 | H61: 2874.359952 | I61: 3498.443891 | J61: 3385.116382 | K61: 3073.231079 | L61: 2639.855211 | M61: 1943.813489 | N61: 1173.594261
E62: 0.2777778 | F62: 1274.21538 | G62: 2041.719052 | H62: 2874.359952 | I62: 3498.443891 | J62: 3385.116382 | K62: 3073.231079 | L62: 2639.855211 | M62: 1943.813489 | N62: 1173.594261
E63: =SUM(E60:E62) -> 1 | F63: =SUM(F60:F62) -> 4587.175 | G63: =SUM(G60:G62) -> 7350.188 | H63: 10347.695 | I63: 12594.397 | J63: 12186.418 | K63: 11063.631 | L63: 9503.478 | M63: 6997.728 | N63: 4224.939
F65: 13419
F66: =F60/$F$65 -> 0.1519296699 | G66: 0.2434421265 | H66: 0.3427211488 | I66: 0.4171331111 | J66: 0.4036206302 | K66: 0.366433329 | L66: 0.3147602338 | M66: 0.2317684643 | N66: 0.1399322214
F67: =F61/$F$65 -> 0.09495606079 | G67: 0.1521513565 | H67: 0.2142007566 | I67: 0.2607082414 | J67: 0.2522629393 | K67: 0.2290208718 | L67: 0.1967251815 | M67: 0.1448553163 | N67: 0.08745765411
F68: =F62/$F$65 -> 0.09495606079 | G68: 0.1521513565 | H68: 0.2142007566 | I68: 0.2607082414 | J68: 0.2522629393 | K68: 0.2290208718 | L68: 0.1967251815 | M68: 0.1448553163 | N68: 0.08745765411
F69: =F63/$F$65 -> 0.3418417915 | G69: 0.5477448394 | H69: 0.7711226619 | I69: 0.9385495939 | J69: 0.9081465087 | K69: 0.8244750727 | L69: 0.7082105969 | M69: 0.5214790968 | N69: 0.3148475296
F72: 13419
F73: =F60/$F$65*100 -> 15.19296699 | G73: =G60/$F$65*100 -> 24.34421265 | H73: 34.27211488 | I73: 41.71331111 | J73: 40.36206302 | K73: 36.6433329 | L73: 31.47602338 | M73: 23.17684643 | N73: 13.99322214
F74: =F61/$F$65*100 -> 9.495606079 | G74: 15.21513565 | H74: 21.42007566 | I74: 26.07082414 | J74: 25.22629393 | K74: 22.90208718 | L74: 19.67251815 | M74: 14.48553163 | N74: 8.745765411
F75: =F62/$F$65*100 -> 9.495606079 | G75: 15.21513565 | H75: 21.42007566 | I75: 26.07082414 | J75: 25.22629393 | K75: 22.90208718 | L75: 19.67251815 | M75: 14.48553163 | N75: 8.745765411
F76: =F70/$F$65 -> 0 | G76: 0 | H76: 0 | I76: 0 | J76: 0 | K76: 0 | L76: 0 | M76: 0 | N76: 0

Sheet Ex 2 Aquifers
A1: Total Aquifer Storage Ending Inventory (MDths)
O4: 1082 | P4: 1106
H6: 1.055 | M6: Month/Year | N6: Month | O6: Inj | P6: With | Q6: Total
A7: Month/Year | B7: Actual | C7: Normal | E7: Actual | F7: IRP | H7: MCF | I7: DTH | J7: MDTH | Q7: 804 | U7: 497.538
A8: ='Ex 1 HDD'!$A$8 -> 2020-06-01 | B8: =J8 -> 735.704 | C8: =Q8 -> 804 | D8: =B8-C8 -> -68.296 | E8: =B8 -> 735.704 | F8: =C8 -> 804 | H8: =I8/$H$6 -> 697349.763 | I8: 735704 | J8: =I8/1000 -> 735.704 | M8: =A8 -> 2020-06-01 | N8: =Q7 -> 804 | O8: 0 | P8: 0 | Q8: =N8+O8-P8 -> 804 | U8: 365
A9: ='Ex 1 HDD'!$A$9 -> 2020-07-01 | B9: =J9 -> 735.704 | C9: =Q9 -> 804 | D9: =B9-C9 -> -68.296 | E9: =B9+E8 -> 1471.408 | F9: =C9+F8 -> 1608 | H9: =I9/$H$6 -> 697349.763 | I9: 735704 | J9: =I9/1000 -> 735.704 | M9: =A9 -> 2020-07-01 | N9: =Q8 -> 804 | O9: 0 | P9: 0 | Q9: =N9+O9-P9 -> 804 | U9: 12
A10: ='Ex 1 HDD'!$A$10 -> 2020-08-01 | B10: 732.596 | C10: 804 | D10: =B10-C10 -> -71.404 | E10: =B10+E9 -> 2204.004 | F10: =C10+F9 -> 2412 | H10: 694403.7915 | I10: 732596 | J10: 732.596 | M10: 2020-08-01 | N10: =Q9 -> 804 | O10: 0 | P10: 0 | Q10: 804 | U10: =SUM(U7:U9) -> 874.538
A11: ='Ex 1 HDD'!$A$11 -> 2020-09-01 | B11: 894.272 | C11: 1224 | D11: =B11-C11 -> -329.728 | E11: =B11+E10 -> 3098.276 | F11: 3636 | H11: 847651.1848 | I11: 894272 | J11: 894.272 | M11: 2020-09-01 | N11: 804 | O11: 420 | P11: 0 | Q11: =N11+O11-P11 -> 1224
A12: ='Ex 1 HDD'!$A12 -> 2020-10-01 | B12: 1424.473 | C12: 1807.368 | D12: -382.895 | E12: =B12+E11 -> 4522.749 | F12: 5443.368 | H12: 1350211.374 | I12: 1424473 | J12: 1424.473 | M12: 2020-10-01 | N12: 1224 | O12: 583.368 | P12: 0 | Q12: =N12+O12-P12 -> 1807.368
A13: ='Ex 1 HDD'!$A13 -> 2020-11-01 | B13: 1774.116 | C13: 1927.368 | D13: -153.252 | E13: 6296.865 | F13: 7370.736 | H13: 1681626.54 | I13: 1774116 | J13: 1774.116 | M13: 2020-11-01 | N13: 1807.368 | O13: 120 | P13: 0 | Q13: =N13+O13-P13 -> 1927.368
A14: ='Ex 1 HDD'!$A14 -> 2020-12-01 | B14: 1754.219 | C14: 1928.368 | D14: -174.149 | E14: 8051.084 | F14: 9299.104 | H14: =I14/$H$6 -> 1662766.825 | I14: 1754219 | J14: 1754.219 | M14: 2020-12-01 | N14: 1927.368 | O14: 1 | P14: 0 | Q14: =N14+O14-P14 -> 1928.368
A15: ='Ex 1 HDD'!$A15 -> 2021-01-01 | B15: 1757.632 | C15: 1928.368 | D15: -170.736 | E15: 9808.716 | F15: 11227.472 | H15: 1666001.896 | I15: 1757632 | J15: 1757.632 | M15: 2021-01-01 | N15: 1928.368 | O15: 0 | P15: 0 | Q15: 1928.368
A16: ='Ex 1 HDD'!$A16 -> 2021-02-01 | B16: 1248.581 | C16: 1748.528 | D16: -499.947 | E16: 11057.297 | F16: 12976 | H16: 1183489.1 | I16: 1248581 | J16: =I16/1000 -> 1248.581 | M16: 2021-02-01 | N16: 1928.368 | O16: 0 | P16: 179.84 | Q16: 1748.528
A17: ='Ex 1 HDD'!$A17 -> 2021-03-01 | B17: 954.496 | C17: 869.025 | D17: 85.471 | E17: 12011.793 | F17: 13845.025 | H17: 904735.545 | I17: 954496 | J17: =I17/1000 -> 954.496 | M17: 2021-03-01 | N17: 1748.528 | O17: 0 | P17: 879.503 | Q17: 869.025
A18: ='Ex 1 HDD'!$A18 -> 2021-04-01 | B18: 719.81 | C18: 828.98 | D18: -109.17 | E18: 12731.603 | F18: 14674.005 | H18: 682284.3602 | I18: 719810 | J18: =I18/1000 -> 719.81 | M18: 2021-04-01 | N18: 869.025 | O18: 0 | P18: 40.045 | Q18: 828.98
A19: ='Ex 1 HDD'!$A19 -> 2021-05-01 | B19: 757.082 | C19: 828.98 | D19: -71.898 | E19: 13488.685 | F19: 15502.985 | H19: 717613.2701 | I19: 757082 | J19: =I19/1000 -> 757.082 | M19: 2021-05-01 | N19: 828.98 | O19: 0 | P19: 0 | Q19: 828.98
O20: =SUM(O8:O19) -> 1124.368 | P20: =SUM(P8:P19) -> 1099.388
B22: =SUM(B14:B16) -> 4760.432 | C22: =SUM(C14:C16) -> 5605.264 | H22: 5 | I22: =H22*$H$6 -> 5.275 | O22: Inj | P22: With
H23: 6 | I23: =H23*$H$6 -> 6.33 | O23: 0 | P23: 0
H24: 7 | I24: =H24*$H$6 -> 7.385 | O24: 0 | P24: 0
H25: 8 | I25: =H25*$H$6 -> 8.44 | O25: 0 | P25: 0
O26: 0 | P26: 0
O27: 154.246 | P27: 0
O28: 0 | P28: 0
O29: 0 | P29: 331.744
O30: 0 | P30: 238.151
O31: 0 | P31: 0
O32: 0 | P32: 0
O33: 0 | P33: 0
O34: 0 | P34: 0
O35: 154.246 | P35: 569.895
A36: chalk | B36: 252153 | C36: 252153 | H36: Second | J36: First
A37: coal | B37: 648967 | C37: 648967 | H37: 1761005.049 | J37: 1761005.049
A38: leroy | B38: 774377 | C38: 774377 | H38: 1423780.049 | J38: 1423780.049
B39: =SUM(B36:B38) -> 1675497 | C39: =SUM(C36:C38) -> 1675497 | H39: 851240.0486 | J39: 851240.0486
H40: 1009513.049 | J40: 1009513.049
H41: 750042.0486 | J41: 750042.0486
F42: June | H42: 741193.0486 | J42: 741193.0486
F43: July | H43: 742210.0486 | J43: 742210.0486
F44: August | H44: 733274.0486 | J44: 733274.0486
F45: September | H45: 779680.0486 | J45: 824078.0486 | L45: =J45-H45 -> 44398
F46: October | H46: 1488952.049 | J46: 1533352.049 | L46: =J46-H46 -> 44400
F47: November | H47: 1625943.049 | J47: 1681681.049 | L47: =J47-H47 -> 55738
F48: December | H48: 1627170.049

Sheet Ex 2 Spire Storage West
O5: 1082 | P5: 1106
H6: 1000 | N6: Month | O6: Inj | P6: With | Q6: Total
A7: ='Ex 1 HDD'!A7 -> Month/Year | B7: Actual | C7: Normal | D7: Days | E7: Daily Demand | G7: Actual Dth | H7: MDth | J7: Actual | K7: Normal | Q7: 731
A8: ='Ex 1 HDD'!A8 -> 2020-06-01 | B8: =H8 -> 843.033 | C8: =Q8 -> 1072.73 | D8: =DAY(EOMONTH(A8,0)) -> 30 | E8: =C8/D8 -> 35.75766667 | G8: 843033 | H8: =G8/$H$6 -> 843.033 | J8: 949.736 | K8: =C8 -> 1072.73 | M8: =A8 -> 2020-06-01 | N8: =Q7 -> 731 | O8: 341.73 | P8: 0 | Q8: =N8+O8-P8 -> 1072.73
A9: ='Ex 1 HDD'!A9 -> 2020-07-01 | B9: =H9 -> 1195.162 | C9: =Q9 -> 1425.85 | D9: =DAY(EOMONTH(A9,0)) -> 31 | E9: =C9/D9 -> 45.99516129 | G9: 1195162 | H9: =G9/$H$6 -> 1195.162 | J9: =B9+J8 -> 2144.898 | K9: =C9+K8 -> 2498.58 | M9: =A9 -> 2020-07-01 | N9: =Q8 -> 1072.73 | O9: 353.12 | P9: 0 | Q9: 1425.85
A10: ='Ex 1 HDD'!A10 -> 2020-08-01 | B10: =H10 -> 1547.291 | C10: 1778.97 | D10: 31 | E10: 57.38612903 | G10: 1547291 | H10: 1547.291 | J10: 3692.189 | K10: 4277.55 | M10: 2020-08-01 | N10: =Q9 -> 1425.85 | O10: 353.12 | P10: 0 | Q10: 1778.97
A11: ='Ex 1 HDD'!A11 -> 2020-09-01 | B11: =H11 -> 1803.815 | C11: 2120.7 | D11: 30 | E11: 70.69 | G11: 1803815 | H11: 1803.815 | J11: 5496.004 | K11: 6398.25 | M11: 2020-09-01 | N11: 1778.97 | O11: 341.73 | P11: 0 | Q11: 2120.7
A12: ='Ex 1 HDD'!A12 -> 2020-10-01 | B12: 2072.413 | C12: 2473.819 | D12: 31 | E12: 79.8006129 | G12: 2072413 | H12: 2072.413 | J12: 7568.417 | K12: 8872.069 | M12: 2020-10-01 | N12: 2120.7 | O12: 353.119 | P12: 0 | Q12: 2473.819
A13: ='Ex 1 HDD'!A13 -> 2020-11-01 | B13: 1948.362 | C13: 2511.007 | D13: 30 | E13: 83.70023333 | G13: 1948362 | H13: 1948.362 | J13: 9516.779 | K13: 11383.076 | M13: 2020-11-01 | N13: 2473.819 | O13: 37.188 | P13: 0 | Q13: 2511.007
A14: ='Ex 1 HDD'!A14 -> 2020-12-01 | B14: 1433.762 | C14: 2003.007 | D14: 31 | E14: 64.61312903 | G14: 1433762 | H14: 1433.762 | J14: 10950.541 | K14: 13386.083 | M14: 2020-12-01 | N14: 2511.007 | O14: 0 | P14: 508 | Q14: 2003.007
A15: ='Ex 1 HDD'!A15 -> 2021-01-01 | B15: 919.162 | C15: 1488.407 | D15: 31 | E15: 48.01312903 | G15: 919162 | H15: 919.162 | J15: 11869.703 | K15: 14874.49 | M15: 2021-01-01 | N15: 2003.007 | O15: 0 | P15: 514.6 | Q15: 1488.407
A16: ='Ex 1 HDD'!A16 -> 2021-02-01 | B16: 454.362 | C16: 1023.607 | D16: 28 | E16: 36.55739286 | G16: 454362 | H16: 454.362 | J16: 12324.065 | K16: 15898.097 | M16: 2021-02-01 | N16: 1488.407 | O16: 0 | P16: 464.8 | Q16: 1023.607
A17: ='Ex 1 HDD'!A17 -> 2021-03-01 | B17: =G17 -> 0 | C17: 509.007 | D17: 31 | E17: 16.41958065 | G17: 0 | H17: 0 | J17: 12324.065 | K17: 16407.104 | M17: 2021-03-01 | N17: 1023.607 | O17: 0 | P17: 514.6 | Q17: 509.007
A18: ='Ex 1 HDD'!A18 -> 2021-04-01 | B18: 0 | C18: 11.007 | D18: 30 | E18: 0.3669 | G18: 0 | H18: 0 | J18: 12324.065 | K18: 16418.111 | M18: 2021-04-01 | N18: 509.007 | O18: 0 | P18: 498 | Q18: 11.007
A19: ='Ex 1 HDD'!A19 -> 2021-05-01 | B19: 0 | C19: 11.007 | D19: 31 | E19: 0.3550645161 | G19: 0 | H19: 0 | J19: 12324.065 | K19: 16429.118 | M19: 2021-05-01 | N19: 11.007 | O19: 0 | P19: 0 | Q19: 11.007
O21: =SUM(O8:O20) -> 1780.007 | P21: =SUM(O8:O19) -> 1780.007 | Q21: =SUM(P8:P19) -> 2500

Sheet Exhibit 2.1
O31: ='Exhibit 1.1'!O31 -> IRP Variance Exhibit | P31: ='Exhibit 1.1'!P31 -> Docket No. 20-057-02 | Q31: ='Exhibit 1.1'!Q31 -> Dominion Energy Utah
O32: 2.1

Sheet Exhibit 2.2
O31: ='Exhibit 1.1'!O31 -> IRP Variance Exhibit | P31: ='Exhibit 1.1'!P31 -> Docket No. 20-057-02 | Q31: ='Exhibit 1.1'!Q31 -> Dominion Energy Utah
O32: 2.2

Sheet Exhibit 2.3
O31: ='Exhibit 1.1'!O31 -> IRP Variance Exhibit | P31: ='Exhibit 1.1'!P31 -> Docket No. 20-057-02 | Q31: ='Exhibit 1.1'!Q31 -> Dominion Energy Utah
O32: 2.3

Sheet Exhibit 2.4
O31: ='Exhibit 1.1'!O31 -> IRP Variance Exhibit | P31: ='Exhibit 1.1'!P31 -> Docket No. 20-057-02 | Q31: ='Exhibit 1.1'!Q31 -> Dominion Energy Utah
O32: 2.4

Sheet Exhibit 2.5
O31: ='Exhibit 1.1'!O31 -> IRP Variance Exhibit | P31: ='Exhibit 1.1'!P31 -> Docket No. 20-057-02 | Q31: ='Exhibit 1.1'!Q31 -> Dominion Energy Utah
O32: 2.5

Sheet Exhibit 2.6
O31: ='Exhibit 1.1'!O31 -> IRP Variance Exhibit | P31: ='Exhibit 1.1'!P31 -> Docket No. 20-057-02 | Q31: ='Exhibit 1.1'!Q31 -> Dominion Energy Utah
O32: 2.6

Sheet Exhibit Firm Sales Volume
A1: Demand
H6: Cumulative
A7: ='Ex 1 HDD'!A7 -> Month/Year | B7: From Jessica | C7: IRP Demand | D7: Days | E7: Daily Demand | H7: Actual | I7: Normal
A8: ='Ex 1 HDD'!A8 -> 2020-06-01 | B8: 3122.233819 | C8: 2912.532034 | D8: =DAY(EOMONTH(A8,0)) -> 30 | E8: =C8/D8 -> 97.08440114 | H8: =B8 -> 3122.233819 | I8: =C8 -> 2912.532034
A9: ='Ex 1 HDD'!A9 -> 2020-07-01 | B9: 2480.625529 | C9: 2511.784635 | D9: =DAY(EOMONTH(A9,0)) -> 31 | E9: =C9/D9 -> 81.02531079 | H9: =H8+B9 -> 5602.859348 | I9: =I8+C9 -> 5424.316669
A10: ='Ex 1 HDD'!A10 -> 2020-08-01 | B10: 2519.782456 | C10: 2542.897652 | D10: 31 | E10: 82.02895651 | H10: =H9+B10 -> 8122.641804 | I10: =I9+C10 -> 7967.214321
A11: ='Ex 1 HDD'!A11 -> 2020-09-01 | B11: 3071.359784 | C11: 3506.118557 | D11: 30 | E11: 116.8706186 | H11: =H10+B11 -> 11194.00159 | I11: 11473.33288
A12: ='Ex 1 HDD'!A12 -> 2020-10-01 | B12: 7709.85071 | C12: 6072.211096 | D12: 31 | E12: 195.8777773 | H12: 18903.8523 | I12: 17545.54397
A13: ='Ex 1 HDD'!A13 -> 2020-11-01 | B13: 11107.59684 | C13: 12020.23411 | D13: 30 | E13: 400.6744702 | H13: =H12+B13 -> 30011.44914 | I13: 29565.77808
A14: ='Ex 1 HDD'!A14 -> 2020-12-01 | B14: 19900.0153 | C14: 18849.07886 | D14: 31 | E14: 608.0348019 | H14: =H13+B14 -> 49911.46444 | I14: 48414.85694
A15: ='Ex 1 HDD'!A15 -> 2021-01-01 | B15: 19774.18891 | C15: 20597.34726 | D15: 31 | E15: 664.4305568 | H15: =H14+B15 -> 69685.65335 | I15: 69012.2042
A16: ='Ex 1 HDD'!A16 -> 2021-02-01 | B16: 16097.61976 | C16: 16831.34771 | D16: 28 | E16: 601.1195611 | H16: 85783.27311 | I16: 85843.55191
A17: ='Ex 1 HDD'!A17 -> 2021-03-01 | B17: 13253.354 | C17: 13097.41604 | D17: 31 | E17: 422.4972915 | H17: 99036.62711 | I17: 98940.96795
A18: ='Ex 1 HDD'!A18 -> 2021-04-01 | B18: 8284.408178 | C18: 9239.139388 | D18: 30 | E18: 307.9713129 | H18: 107321.0353 | I18: 108180.1073
A19: ='Ex 1 HDD'!A19 -> 2021-05-01 | B19: 4275.311662 | C19: 5264.830839 | D19: 31 | E19: 169.8332529 | H19: 111596.347 | I19: 113444.9382
C20: =SUM(C8:C19) -> 113444.9382

Sheet Exhibit 3.1
O31: DEU Variance Exhibit | P31: Docket No. 19-057-01 | Q31: Dominion Energy Utah
O32: 3.1

Sheet Exhibit 3.2
O31: DEU Variance Exhibit | P31: Docket No. 19-057-01 | Q31: Dominion Energy Utah
O32: 3.2

Sheet Exhibit 3.3
O31: DEU Variance Exhibit | P31: Docket No. 19-057-01 | Q31: Dominion Energy Utah
O32: 3.3

Sheet Exhibit 3.4
H1: Dominion Energy Utah
H2: Docket No. 20-057-02
H3: DEU Variance Exhibit 3.4
B6: IRP Variance
B8: Actual Results
C9: 2021-03-07 | E9: 2021-04-07 | G9: 2021-05-08
B10: SUPPLY | C10: Actual | D10: IRP | E10: Actual | F10: IRP | G10: Actual | H10: IRP
A11: 1 | B11: Cost of Service Prod (Mbtu) | C11: 5390.5 | D11: 5287.065504 | E11: 5177 | F11: 5036.159982 | G11: 5141 | H11: 5127.02491
A12: =A11+1 -> 2 | B12: Purchases (Mbtu) | C12: 5564.7 | D12: 3402.448 | E12: 2864.746 | F12: 2103.954 | G12: 702.909 | H12: 390.151
A13: 3 | B13: Clay Basin With (Mbtu) | C13: 1597.638 | D13: 899.862 | E13: 680.177 | F13: 40.796 | G13: 33.068 | H13: 0
A14: 4 | B14: Acquifers With (Mbtu) | C14: 289.136 | D14: 3410.05 | E14: 344.445 | F14: 1873.38 | G14: 4.743 | H14: 0
A15: 5 | B15: Spire Storage West With (Mbtu) | C15: 454.362 | D15: 514.5999756 | E15: 0 | F15: 498 | G15: 0 | H15: 0
A16: 6 | B16: Off-System | C16: 19.77947 | D16: 41.33836079 | E16: 20.5317 | F16: 39.78430176 | G16: 22.01601 | H16: 40.88252926
A18: =A16+1 -> 7 | B18: Total Supply | C18: 13316.11547 | D18: 13555.36384 | E18: 9086.8997 | F18: 9592.074284 | G18: 5903.73601 | H18: 5558.05844
B20: DEMAND
A21: =A18+1 -> 8 | B21: Firm Sales (Mbtu) | C21: 13253.354 | D21: 13097.41604 | E21: 8284.408178 | F21: 9239.139388 | G21: 4275.311662 | H21: 5264.830839
A22: =A21+1 -> 9 | B22: Interruptible Sales (Mbtu) | C22: 59.228539 | D22: 33.4580428 | E22: 36.291589 | F22: 26.09123019 | G22: 32.457716 | H22: 20.32291043
A23: 10 | B23: Clay Basin Inj (Mbtu) | C23: 320.453 | D23: 0 | E23: 228.112 | F23: 0 | G23: 1580.598 | H23: 0
A24: =A23+1 -> 11 | B24: Acquifers Inj (Mbtu) | C24: 0.347 | D24: 0 | E24: 114.709 | F24: 0 | G24: 44.274 | H24: 0
A25: =A24+1 -> 12 | B25: Spire Storage West Inj (Mbtu) | C25: 0 | D25: 0 | E25: 0 | F25: 0 | G25: 0 | H25: 0
A26: 13 | B26: Off-System | C26: 19.77947 | D26: 38.23384857 | E26: 20.5317 | F26: 36.79650116 | G26: 22.01601 | H26: 37.81224823
A27: 14 | B27: Fuel | C27: 534.462 | D27: 312.066 | E27: 74.793 | F27: 237.698 | G27: 73.983 | H27: 205.231
A28: 15 | B28: Company Use / L&U | C28: -871.421 | D28: 74.18943936 | E28: 328.461 | F28: 52.34855321 | G28: -125.141 | H28: 29.86111872
A30: =A28+1 -> 16 | B30: Total Demand | C30: 13316.20301 | D30: 13555.36337 | E30: 9087.306467 | F30: 9592.073673 | G30: 5903.499388 | H30: 5558.058116
A32: =A30+1 -> 17 | B32: Clay Basin Fuel Usage Adjustment | C32: -51.504 | D32: 0 | E32: -0.127 | F32: 0 | G32: -0.012 | H32: 0
A33: =A32+1 -> 18 | B33: Clay Basin Transfers | C33: 0 | D33: 0 | E33: 0 | F33: 0 | G33: 0 | H33: 0
A34: =A33+1 -> 19 | B34: Acquifers Fuel Usage Adjustment | C34: -13.993 | D34: 0 | E34: -4.95 | F34: 0 | G34: -2.259 | H34: 0
A35: =A34+1 -> 20 | B35: Acquifers Transfers | C35: 0 | D35: 0 | E35: 0 | F35: 0 | G35: 0 | H35: 0
A36: 21 | B36: Clay Basin Current Bal | C36: 2947.725 | D36: 381 | E36: 2495.533 | F36: 1272 | G36: 4043.051 | H36: 3752
A37: 22 | B37: Acquifers Current Bal | C37: 954.496 | D37: -1741.05 | E37: 719.81 | F37: -3614.43 | G37: 757.082 | H37: -3614.43
A38: 23 | B38: Spire Storage West Current Bal | C38: 0 | D38: 69 | E38: 0 | F38: 410 | G38: 0 | H38: 763
A40: =+A38+1 -> 24 | B40: Purchases($/Dth) | C40: 2.626483548 | D40: 2.89 | E40: 2.51897341 | F40: 2.75 | G40: 2.664899724 | H40: 2.57
A41: =A40+1 -> 25 | B41: Purchases $ (000) | C41: 14615.593 | D41: 9833.07472 | E41: 7216.219 | F41: 5785.8735 | G41: 1873.182 | H41: 1002.68807
B44: Variances
A45: =A41+1 -> 26 | B45: Cost of service volumes | C45: 103.4344963 | D45: 0 | E45: 140.8400182 | F45: 0 | G45: 13.97508959 | H45: 0
A46: =A45+1 -> 27 | B46: Purchase volumes | C46: 2162.252 | D46: 0 | E46: 760.792 | F46: 0 | G46: 312.758 | H46: 0
A47: 28 | B47: Purchase $ Act over (under) IRP | C47: 4782.51828 | D47: 0 | E47: 1430.3455 | F47: 0 | G47: 870.49393 | H47: 0
A48: 29 | B48: Purchase Variance | C48: 6248.90828 | D48: 0 | E48: 2092.178 | F48: 0 | G48: 803.78806 | H48: 0
A49: 30 | B49: $ Variance | C49: -1466.39 | D49: 0 | E49: -661.8325 | F49: 0 | G49: 66.70587 | H49: 0
A50: 31 | B50: Check | C50: 0 | D50: 0 | E50: 0 | F50: 0 | G50: 0 | H50: 0
A51: 32 | B51: Quarter Variance | G51: 7083.35771
A52: 33 | B52: Purchase Variance | G52: 9144.87434
A53: 34 | B53: $ Variance | G53: -2061.51663
A54: 35 | B54: Check | G54: 0

Sheet Ex 4 Purchase Gas
A1: Purchase Gas Variance (Brady Included) MDths
G6: Cumulative
A7: Month/Year | B7: Actual | C7: Normal | E7: Month/Year | F7: Actual | G7: Normal | I7: Month/Year | J7: DTHS | K7: MDTHS | L7: $'S | M7: $1,000'S
A8: ='Ex 1 HDD'!A8 -> 2020-06-01 | B8: =K8 -> 390 | C8: 0 | E8: =A8 -> 2020-06-01 | F8: =K8 -> 390 | G8: =C8 -> 0 | I8: =A8 -> 2020-06-01 | J8: 390000 | K8: =J8/1000 -> 390 | L8: 565650 | M8: =L8/1000 -> 565.65
A9: ='Ex 1 HDD'!A9 -> 2020-07-01 | B9: =K9 -> 55 | C9: 0 | E9: 2020-07-01 | F9: =F8+K9 -> 445 | G9: =G8+C9 -> 0 | I9: 2020-07-01 | J9: 55000 | K9: =J9/1000 -> 55 | L9: 74675 | M9: 74.675
A10: ='Ex 1 HDD'!A10 -> 2020-08-01 | B10: 0 | C10: 0 | E10: 2020-08-01 | F10: =F9+K10 -> 445 | G10: 0 | I10: 2020-08-01 | J10: 0 | K10: =J10/1000 -> 0 | L10: 0 | M10: 0
A11: ='Ex 1 HDD'!A11 -> 2020-09-01 | B11: 1111.719 | C11: 1934.3 | E11: 2020-09-01 | F11: =F10+K11 -> 1556.719 | G11: 1934.3 | I11: 2020-09-01 | J11: 1111719 | K11: 1111.719 | L11: 1756001 | M11: 1756.001
A12: ='Ex 1 HDD'!A12 -> 2020-10-01 | B12: 3307.222 | C12: 2467.2 | E12: 2020-10-01 | F12: 4863.941 | G12: 4401.5 | I12: 2020-10-01 | J12: 3307222 | K12: 3307.222 | L12: 9144823 | M12: 9144.823
A13: ='Ex 1 HDD'!A13 -> 2020-11-01 | B13: 8832.313 | C13: 7175.5 | E13: 2020-11-01 | F13: 13696.254 | G13: 11577 | I13: 2020-11-01 | J13: 8832313 | K13: 8832.313 | L13: 25649190 | M13: 25649.19
A14: ='Ex 1 HDD'!A14 -> 2020-12-01 | B14: 13178.873 | C14: 13238.1 | E14: 2020-12-01 | F14: 26875.127 | G14: 24815.1 | I14: 2020-12-01 | J14: 13178873 | K14: 13178.873 | L14: 41664337 | M14: 41664.337
A15: ='Ex 1 HDD'!A15 -> 2021-01-01 | B15: 11127.151 | C15: 11026 | E15: 2021-01-01 | F15: 38002.278 | G15: =G14+C15 -> 35841.1 | I15: 2021-01-01 | J15: 11127151 | K15: 11127.151 | L15: 32977315 | M15: 32977.315
A16: ='Ex 1 HDD'!A16 -> 2021-02-01 | B16: 7377.303 | C16: 8816 | E16: 2021-02-01 | F16: 45379.581 | G16: 44657.1 | I16: 2021-02-01 | J16: 7377303 | K16: 7377.303 | L16: 84228936 | M16: 84228.936
A17: ='Ex 1 HDD'!A17 -> 2021-03-01 | B17: 5564.7 | C17: 3402.447 | E17: 2021-03-01 | F17: 50944.281 | G17: 48059.547 | I17: 2021-03-01 | J17: 5564700 | K17: 5564.7 | L17: 14615593 | M17: 14615.593
A18: ='Ex 1 HDD'!A18 -> 2021-04-01 | B18: 2864.746 | C18: 2103.9 | E18: 2021-04-01 | F18: 53809.027 | G18: =G17+C18 -> 50163.447 | I18: 2021-04-01 | J18: 2864746 | K18: 2864.746 | L18: 7216219 | M18: 7216.219
A19: ='Ex 1 HDD'!A19 -> 2021-05-01 | B19: 702.909 | C19: 390.151 | E19: 2021-05-01 | F19: 54511.936 | G19: 50553.598 | I19: 2021-05-01 | J19: 702909 | K19: 702.909 | L19: 1873182 | M19: 1873.182
B21: =SUM(B8:B19) -> 54511.936 | C21: =SUM(C8:C20) -> 50553.598
B23: =B16-B17 -> 1812.603

Sheet Exhibit 4.1
O31: ='Exhibit 1.1'!O31 -> IRP Variance Exhibit | P31: ='Exhibit 1.1'!P31 -> Docket No. 20-057-02 | Q31: ='Exhibit 1.1'!Q31 -> Dominion Energy Utah
O32: 4.1

Sheet Exhibit 4.2
O30: ='Exhibit 1.1'!O31 -> IRP Variance Exhibit | P30: ='Exhibit 1.1'!P31 -> Docket No. 20-057-02 | Q30: ='Exhibit 1.1'!Q31 -> Dominion Energy Utah
O31: 4.2

Sheet Exhibit 4.3
N31: ='Exhibit 1.1'!O31 -> IRP Variance Exhibit | O31: ='Exhibit 1.1'!P31 -> Docket No. 20-057-02 | P31: ='Exhibit 1.1'!Q31 -> Dominion Energy Utah
O32: 4.3

Sheet Ex 5 Purchase Gas Cost
A1: Purchase Gas Cost Variance ($1,000's)
E6: Cumulative
A7: Month/Year | B7: Actual | C7: Normal | E7: Actual | F7: Normal
A8: ='Ex 1 HDD'!A8 -> 2020-06-01 | B8: ='Ex 4 Purchase Gas'!M8 -> 565.65 | C8: 0 | E8: =B8 -> 565.65 | F8: =C8 -> 0
A9: ='Ex 1 HDD'!A9 -> 2020-07-01 | B9: ='Ex 4 Purchase Gas'!M9 -> 74.675 | C9: 0 | E9: =E8+B9 -> 640.325 | F9: =C9+F8 -> 0
A10: ='Ex 1 HDD'!A10 -> 2020-08-01 | B10: ='Ex 4 Purchase Gas'!M10 -> 0 | C10: 0 | E10: 640.325 | F10: =C10+F9 -> 0
A11: ='Ex 1 HDD'!A11 -> 2020-09-01 | B11: ='Ex 4 Purchase Gas'!M11 -> 1756.001 | C11: 2839.944 | E11: 2396.326 | F11: 2839.944
A12: ='Ex 1 HDD'!A12 -> 2020-10-01 | B12: ='Ex 4 Purchase Gas'!M12 -> 9144.823 | C12: 3890.017 | E12: 11541.149 | F12: 6729.961
A13: ='Ex 1 HDD'!A13 -> 2020-11-01 | B13: ='Ex 4 Purchase Gas'!M13 -> 25649.19 | C13: 10886.54 | E13: =E12+B13 -> 37190.339 | F13: 17616.501
A14: ='Ex 1 HDD'!A14 -> 2020-12-01 | B14: ='Ex 4 Purchase Gas'!M14 -> 41664.337 | C14: 27329.43 | E14: =E13+B14 -> 78854.676 | F14: 44945.931
A15: ='Ex 1 HDD'!A15 -> 2021-01-01 | B15: ='Ex 4 Purchase Gas'!M15 -> 32977.315 | C15: 24656.69 | E15: 111831.991 | F15: 69602.621
A16: ='Ex 1 HDD'!A16 -> 2021-02-01 | B16: ='Ex 4 Purchase Gas'!M16 -> 84228.936 | C16: 19788.75 | E16: 196060.927 | F16: 89391.371
A17: ='Ex 1 HDD'!A17 -> 2021-03-01 | B17: ='Ex 4 Purchase Gas'!M17 -> 14615.593 | C17: 9828.601 | E17: 210676.52 | F17: 99219.972
A18: ='Ex 1 HDD'!A18 -> 2021-04-01 | B18: ='Ex 4 Purchase Gas'!M18 -> 7216.219 | C18: 5783.888 | E18: 217892.739 | F18: 105003.86
A19: ='Ex 1 HDD'!A19 -> 2021-05-01 | B19: ='Ex 4 Purchase Gas'!M19 -> 1873.182 | C19: 1004.215 | E19: 219765.921 | F19: 106008.075
C21: =SUM(C8:C19) -> 106008.075

Sheet Exhibit 5.1
N31: ='Exhibit 1.1'!O31 -> IRP Variance Exhibit | O31: ='Exhibit 1.1'!P31 -> Docket No. 20-057-02 | P31: ='Exhibit 1.1'!Q31 -> Dominion Energy Utah
N32: 5.1

Sheet Exhibit 5.2
O31: ='Exhibit 1.1'!O31 -> IRP Variance Exhibit | P31: ='Exhibit 1.1'!P31 -> Docket No. 20-057-02 | Q31: ='Exhibit 1.1'!Q31 -> Dominion Energy Utah
O32: 5.2

Sheet Exhibit 5.3
O31: ='Exhibit 1.1'!O31 -> IRP Variance Exhibit | P31: ='Exhibit 1.1'!P31 -> Docket No. 20-057-02 | Q31: ='Exhibit 1.1'!Q31 -> Dominion Energy Utah
O32: 5.3

Sheet Ex 6 Purch Gas Unit Cost
A1: Purchase Gas Unit Cost Variance ($1,000's)
E6: Actual | F6: Actual | G6: Actual | I6: Normal | J6: Normal | K6: Normal
A7: Month/Year | B7: Actual $/Dth | C7: Normal $/Dth | E7: Dth | F7: Cost | G7: $/Dth | I7: Dth | J7: Cost | K7: $/Dth | M7: May Forward Strip
A8: ='Ex 1 HDD'!A8 -> 2020-06-01 | B8: =G8 -> 1.450384615 | C8: =K8 -> 0 | E8: ='Ex 4 Purchase Gas'!B8 -> 390 | F8: ='Ex 4 Purchase Gas'!M8 -> 565.65 | G8: =IFERROR(F8/E8,0) -> 1.450384615 | I8: ='Ex 4 Purchase Gas'!C8 -> 0 | J8: ='Ex 5 Purchase Gas Cost'!C8 -> 0 | K8: =IFERROR(J8/I8,0) -> 0 | M8: 1.57
A9: ='Ex 1 HDD'!A9 -> 2020-07-01 | B9: 1.357727273 | C9: 0 | E9: ='Ex 4 Purchase Gas'!B9 -> 55 | F9: ='Ex 4 Purchase Gas'!M9 -> 74.675 | G9: =IFERROR(F9/E9,0) -> 1.357727273 | I9: ='Ex 4 Purchase Gas'!C9 -> 0 | J9: ='Ex 5 Purchase Gas Cost'!C9 -> 0 | K9: =IFERROR(J9/I9,0) -> 0 | M9: 1.54
A10: ='Ex 1 HDD'!A10 -> 2020-08-01 | B10: 0 | C10: 0 | E10: ='Ex 4 Purchase Gas'!B10 -> 0 | F10: ='Ex 4 Purchase Gas'!M10 -> 0 | G10: 0 | I10: ='Ex 4 Purchase Gas'!C10 -> 0 | J10: ='Ex 5 Purchase Gas Cost'!C10 -> 0 | K10: 0 | M10: 1.53
A11: ='Ex 1 HDD'!A11 -> 2020-09-01 | B11: 1.579536735 | C11: =K11 -> 1.46820245 | E11: ='Ex 4 Purchase Gas'!B11 -> 1111.719 | F11: ='Ex 4 Purchase Gas'!M11 -> 1756.001 | G11: 1.579536735 | I11: ='Ex 4 Purchase Gas'!C11 -> 1934.3 | J11: ='Ex 5 Purchase Gas Cost'!C11 -> 2839.944 | K11: 1.46820245 | M11: 1.49
A12: ='Ex 1 HDD'!A12 -> 2020-10-01 | B12: 2.76510709 | C12: =K12 -> 1.576693012 | E12: ='Ex 4 Purchase Gas'!B12 -> 3307.222 | F12: ='Ex 4 Purchase Gas'!M12 -> 9144.823 | G12: 2.76510709 | I12: ='Ex 4 Purchase Gas'!C12 -> 2467.2 | J12: ='Ex 5 Purchase Gas Cost'!C12 -> 3890.017 | K12: 1.576693012 | M12: 1.53
A13: ='Ex 1 HDD'!A13 -> 2020-11-01 | B13: 2.904017328 | C13: =K13 -> 1.517182078 | E13: ='Ex 4 Purchase Gas'!B13 -> 8832.313 | F13: ='Ex 4 Purchase Gas'!M13 -> 25649.19 | G13: 2.904017328 | I13: ='Ex 4 Purchase Gas'!C13 -> 7175.5 | J13: ='Ex 5 Purchase Gas Cost'!C13 -> 10886.54 | K13: =IFERROR(J13/I13,0) -> 1.517182078 | M13: 1.99
A14: ='Ex 1 HDD'!A14 -> 2020-12-01 | B14: 3.161449162 | C14: 2.064452603 | E14: ='Ex 4 Purchase Gas'!B14 -> 13178.873 | F14: ='Ex 4 Purchase Gas'!M14 -> 41664.337 | G14: 3.161449162 | I14: ='Ex 4 Purchase Gas'!C14 -> 13238.1 | J14: ='Ex 5 Purchase Gas Cost'!C14 -> 27329.43 | K14: 2.064452603 | M14: 2.57
A15: ='Ex 1 HDD'!A15 -> 2021-01-01 | B15: 2.963680011 | C15: 2.236231634 | E15: ='Ex 4 Purchase Gas'!B15 -> 11127.151 | F15: ='Ex 4 Purchase Gas'!M15 -> 32977.315 | G15: 2.963680011 | I15: ='Ex 4 Purchase Gas'!C15 -> 11026 | J15: ='Ex 5 Purchase Gas Cost'!C15 -> 24656.69 | K15: 2.236231634 | M15: 2.94
A16: ='Ex 1 HDD'!A16 -> 2021-02-01 | B16: 11.41730738 | C16: 2.244640426 | E16: ='Ex 4 Purchase Gas'!B16 -> 7377.303 | F16: ='Ex 4 Purchase Gas'!M16 -> 84228.936 | G16: 11.41730738 | I16: ='Ex 4 Purchase Gas'!C16 -> 8816 | J16: ='Ex 5 Purchase Gas Cost'!C16 -> 19788.75 | K16: 2.244640426 | M16: 3.09
A17: ='Ex 1 HDD'!A17 -> 2021-03-01 | B17: 2.626483548 | C17: 2.888685996 | E17: ='Ex 4 Purchase Gas'!B17 -> 5564.7 | F17: ='Ex 4 Purchase Gas'!M17 -> 14615.593 | G17: 2.626483548 | I17: ='Ex 4 Purchase Gas'!C17 -> 3402.447 | J17: ='Ex 5 Purchase Gas Cost'!C17 -> 9828.601 | K17: 2.888685996 | M17: 2.89
A18: ='Ex 1 HDD'!A18 -> 2021-04-01 | B18: 2.51897341 | C18: 2.74912686 | E18: ='Ex 4 Purchase Gas'!B18 -> 2864.746 | F18: ='Ex 4 Purchase Gas'!M18 -> 7216.219 | G18: 2.51897341 | I18: ='Ex 4 Purchase Gas'!C18 -> 2103.9 | J18: ='Ex 5 Purchase Gas Cost'!C18 -> 5783.888 | K18: 2.74912686 | M18: 2.76
A19: ='Ex 1 HDD'!A19 -> 2021-05-01 | B19: 2.664899724 | C19: 2.57391369 | E19: ='Ex 4 Purchase Gas'!B19 -> 702.909 | F19: ='Ex 4 Purchase Gas'!M19 -> 1873.182 | G19: 2.664899724 | I19: ='Ex 4 Purchase Gas'!C19 -> 390.151 | J19: ='Ex 5 Purchase Gas Cost'!C19 -> 1004.215 | K19: 2.57391369 | M19: 2.68
A47: 2017-10-26 | B47: Unit Cost per Decatherm | C47: The Purchase Gas Unit Cost is usually a calculated value. That value is derived from purchase dollars divided by purchase decatherms. Columns I - K show those decatherms, costs and calculated Unit costs. In the unusual case of summer 2017 the model used no spot gas during the summer and so incurred zero purchased volumes and zero associated costs making the Unit cost also zero. If purchase volumes had been incurred then the question arrises as to what value should be used as the "model" unit cost value. - Zero could have been reasonably used because the model had no volumes or costs, even though the actual usage may have had volumes. (In this case it did not.) - The May forward strip could have been used because that was the best guess for monthly prices at the time the model was created - Some actual value from each month could have also been used as a filler.

Sheet Exhibit 6.1
O31: ='Exhibit 1.1'!O31 -> IRP Variance Exhibit | P31: ='Exhibit 1.1'!P31 -> Docket No. 20-057-02 | Q31: ='Exhibit 1.1'!Q31 -> Dominion Energy Utah
O32: 6.1

Sheet Exhibit 6.2
O31: ='Exhibit 1.1'!O31 -> IRP Variance Exhibit | P31: ='Exhibit 1.1'!P31 -> Docket No. 20-057-02 | Q31: ='Exhibit 1.1'!Q31 -> Dominion Energy Utah
O32: 6.2

Sheet Ex 7 Co. Owned Gas
A1: Cost-of-Service Gas Variance (MDths)
H6: Cumulative
A7: Month/Year | B7: Actual | C7: Normal | D7: Full Production | E7: Shut-in Est. Month | F7: Shut-in Daily | H7: Actual | I7: Normal | K7: Days in Mo. | L7: Dthms | M7: Dthms/Day
A8: ='Ex 1 HDD'!A8 -> 2020-06-01 | B8: 5334.561 | C8: 5278.6 | D8: 5471 | E8: =D8-C8 -> 192.4 | F8: =(E8/30)*1000 -> 6413.333333 | H8: =B8 -> 5334.561 | I8: =C8 -> 5278.6 | K8: =DAY(EOMONTH(A8,0)) -> 30 | L8: =C8 -> 5278.6 | M8: =L8/K8 -> 175.9533333 | Q8: 5754.478384
A9: ='Ex 1 HDD'!A9 -> 2020-07-01 | B9: 5132.206 | C9: 5360.98 | D9: 5558 | E9: 197.02 | F9: =(E9/30)*1000 -> 6567.333333 | H9: =H8+B9 -> 10466.767 | I9: =I8+C9 -> 10639.58 | K9: =DAY(EOMONTH(A9,0)) -> 31 | L9: =C9 -> 5360.98 | M9: =L9/K9 -> 172.9348387 | Q9: 5867.413019
A10: ='Ex 1 HDD'!A10 -> 2020-08-01 | B10: 4998.134 | C10: 5274.711 | D10: 5471 | E10: 196.289 | F10: 6542.966667 | H10: 15464.901 | I10: 15914.291 | K10: 31 | L10: 5274.711 | M10: 170.1519677 | Q10: 5986.085205
A11: ='Ex 1 HDD'!A11 -> 2020-09-01 | B11: 4638.26 | C11: 5026.519 | D11: 5215 | E11: 188.481 | F11: 6282.7 | H11: 20103.161 | I11: 20940.81 | K11: 30 | L11: 5026.519 | M11: 167.5506333 | Q11: 5618.719149
A12: ='Ex 1 HDD'!A12 -> 2020-10-01 | B12: 4789.85 | C12: 5716.15 | D12: 5951 | E12: 234.85 | F12: 7828.333333 | H12: =H11+B12 -> 24893.011 | I12: 26656.96 | K12: 31 | L12: 5716.15 | M12: 184.3919355 | Q12: 5665.433802
A13: ='Ex 1 HDD'!A13 -> 2020-11-01 | B13: 5098.37 | C13: 5401.851 | D13: 5608 | E13: 206.149 | F13: 6871.633333 | H13: 29991.381 | I13: 32058.811 | K13: 30 | L13: 5401.851 | M13: 180.0617 | Q13: 5366.261282
A14: ='Ex 1 HDD'!A14 -> 2020-12-01 | B14: 5641.26 | C14: 5627.61 | D14: 5667 | E14: 39.39 | F14: 1313 | H14: 35632.641 | I14: 37686.421 | K14: 31 | L14: 5627.61 | M14: 181.5358065 | Q14: 5567.876643
A15: ='Ex 1 HDD'!A15 -> 2021-01-01 | B15: 5586.7 | C15: 5517.327 | D15: 5553 | E15: 35.673 | F15: 1189.1 | H15: 41219.341 | I15: 43203.748 | K15: 31 | L15: 5517.327 | M15: 177.9782903 | Q15: 5438.795676
A16: ='Ex 1 HDD'!A16 -> 2021-02-01 | B16: 4967.8 | C16: 4727.225 | D16: 4728 | E16: 0.775 | F16: 25.83333333 | H16: 46187.141 | I16: 47930.973 | K16: 28 | L16: 4727.225 | M16: 168.8294643 | Q16: 5101.590072
A17: ='Ex 1 HDD'!A17 -> 2021-03-01 | B17: 5390.5 | C17: 5328.404 | D17: 5360 | E17: 31.596 | F17: 1053.2 | H17: 51577.641 | I17: 53259.377 | K17: 31 | L17: 5328.404 | M17: 171.884 | Q17: 5326.091886
A18: ='Ex 1 HDD'!A18 -> 2021-04-01 | B18: 5177 | C18: 5075.944 | D18: 5105 | E18: 29.056 | F18: 968.5333333 | H18: 56754.641 | I18: 58335.321 | K18: 30 | L18: 5075.944 | M18: 169.1981333 | Q18: 5051.585887
A19: ='Ex 1 HDD'!A19 -> 2021-05-01 | B19: 5141 | C19: 5167.9 | D19: 5196 | E19: 28.1 | F19: =(E19/30)*1000 -> 936.6666667 | H19: 61895.641 | I19: 63503.221 | K19: 31 | L19: 5167.9 | M19: 166.7064516 | Q19: 5126.305828
B21: =SUM(B8:B19) -> 61895.641 | C21: =SUM(C8:C19) -> 63503.221 | D21: =SUM(D8:D19) -> 64883

Sheet Exhibit 7.1
O32: ='Exhibit 1.1'!O31 -> IRP Variance Exhibit | P32: ='Exhibit 1.1'!P31 -> Docket No. 20-057-02 | Q32: ='Exhibit 1.1'!Q31 -> Dominion Energy Utah
O33: 7.1

Sheet Exhibit 7.2
O31: ='Exhibit 1.1'!O31 -> IRP Variance Exhibit | P31: ='Exhibit 1.1'!P31 -> Docket No. 20-057-02 | Q31: ='Exhibit 1.1'!Q31 -> Dominion Energy Utah
O32: 7.2

Sheet Exhibit 7.3
O31: ='Exhibit 1.1'!O31 -> IRP Variance Exhibit | P31: ='Exhibit 1.1'!P31 -> Docket No. 20-057-02 | Q31: ='Exhibit 1.1'!Q31 -> Dominion Energy Utah
O32: 7.3

Sheet Ex 8 New Drill
A1: Isolated New Drill Component (MDths)
J6: Cumulative | L6: Cumulative
A7: Month/Year | B7: ND Actual | C7: ND Normal | D7: Legacy Actual | E7: Legacy Normal | H7: Prod Actual | I7: Prod Normal | J7: ND Actual | K7: ND Normal | L7: =D7 -> Legacy Actual | M7: =E7 -> Legacy Normal
A8: ='Ex 1 HDD'!A8 -> 2020-06-01 | B8: 0 | C8: ='Company Nom Groups'!B129 -> 0 | D8: =H8-B8 -> 5334.561 | E8: =I8-C8 -> 5278.6 | H8: ='Ex 7 Co. Owned Gas'!B8 -> 5334.561 | I8: ='Ex 7 Co. Owned Gas'!C8 -> 5278.6 | J8: =B8 -> 0 | K8: =C8 -> 0 | L8: =D8 -> 5334.561 | M8: =E8 -> 5278.6
A9: ='Ex 1 HDD'!A9 -> 2020-07-01 | B9: 0 | C9: ='Company Nom Groups'!C129 -> 0 | D9: 5132.206 | E9: 5360.98 | H9: ='Ex 7 Co. Owned Gas'!B9 -> 5132.206 | I9: ='Ex 7 Co. Owned Gas'!C9 -> 5360.98 | J9: =B8+B9 -> 0 | K9: =K8+C9 -> 0 | L9: 10466.767 | M9: 10639.58
A10: ='Ex 1 HDD'!A10 -> 2020-08-01 | B10: 0 | C10: ='Company Nom Groups'!D129 -> 0 | D10: 4998.134 | E10: 5274.711 | H10: ='Ex 7 Co. Owned Gas'!B10 -> 4998.134 | I10: ='Ex 7 Co. Owned Gas'!C10 -> 5274.711 | J10: =J9+B10 -> 0 | K10: 0 | L10: 15464.901 | M10: 15914.291
A11: ='Ex 1 HDD'!A11 -> 2020-09-01 | B11: 0 | C11: ='Company Nom Groups'!E129 -> 0 | D11: 4638.26 | E11: 5026.519 | H11: ='Ex 7 Co. Owned Gas'!B11 -> 4638.26 | I11: ='Ex 7 Co. Owned Gas'!C11 -> 5026.519 | J11: 0 | K11: =K10+C11 -> 0 | L11: =L10+D11 -> 20103.161 | M11: =M10+E11 -> 20940.81
A12: ='Ex 1 HDD'!A12 -> 2020-10-01 | B12: 0 | C12: ='Company Nom Groups'!F129 -> 599.4563141 | D12: 4789.85 | E12: 5116.693686 | H12: ='Ex 7 Co. Owned Gas'!B12 -> 4789.85 | I12: ='Ex 7 Co. Owned Gas'!C12 -> 5716.15 | J12: 0 | K12: 599.4563141 | L12: =L11+D12 -> 24893.011 | M12: 26057.50369
A13: ='Ex 1 HDD'!A13 -> 2020-11-01 | B13: 0 | C13: ='Company Nom Groups'!G129 -> 510.0059814 | D13: 5098.37 | E13: 4891.845019 | H13: ='Ex 7 Co. Owned Gas'!B13 -> 5098.37 | I13: ='Ex 7 Co. Owned Gas'!C13 -> 5401.851 | J13: 0 | K13: 1109.462296 | L13: 29991.381 | M13: 30949.3487
A14: ='Ex 1 HDD'!A14 -> 2020-12-01 | B14: 634 | C14: ='Company Nom Groups'!H129 -> 474.2534943 | D14: =H14-B14 -> 5007.26 | E14: 5153.356506 | H14: ='Ex 7 Co. Owned Gas'!B14 -> 5641.26 | I14: ='Ex 7 Co. Owned Gas'!C14 -> 5627.61 | J14: 634 | K14: 1583.71579 | L14: 34998.641 | M14: 36102.70521
A15: ='Ex 1 HDD'!A15 -> 2021-01-01 | B15: 619 | C15: ='Company Nom Groups'!I129 -> 433.7210083 | D15: 4967.7 | E15: 5083.605992 | H15: ='Ex 7 Co. Owned Gas'!B15 -> 5586.7 | I15: ='Ex 7 Co. Owned Gas'!C15 -> 5517.327 | J15: 1253 | K15: 2017.436798 | L15: 39966.341 | M15: 41186.3112
A16: ='Ex 1 HDD'!A16 -> 2021-02-01 | B16: 527 | C16: ='Company Nom Groups'!J129 -> 350.0307999 | D16: 4440.8 | E16: 4377.1942 | H16: ='Ex 7 Co. Owned Gas'!B16 -> 4967.8 | I16: ='Ex 7 Co. Owned Gas'!C16 -> 4727.225 | J16: 1780 | K16: 2367.467598 | L16: 44407.141 | M16: 45563.5054
A17: ='Ex 1 HDD'!A17 -> 2021-03-01 | B17: 561 | C17: ='Company Nom Groups'!K129 -> 374.8179092 | D17: =H17-B17 -> 4829.5 | E17: 4953.586091 | H17: ='Ex 7 Co. Owned Gas'!B17 -> 5390.5 | I17: ='Ex 7 Co. Owned Gas'!C17 -> 5328.404 | J17: 2341 | K17: 2742.285507 | L17: 49236.641 | M17: 50517.09149
A18: ='Ex 1 HDD'!A18 -> 2021-04-01 | B18: 509 | C18: ='Company Nom Groups'!L129 -> 341.1600037 | D18: 4668 | E18: 4734.783996 | H18: ='Ex 7 Co. Owned Gas'!B18 -> 5177 | I18: ='Ex 7 Co. Owned Gas'!C18 -> 5075.944 | J18: 2850 | K18: 3083.445511 | L18: 53904.641 | M18: 55251.87549
A19: ='Ex 1 HDD'!A19 -> 2021-05-01 | B19: 429 | C19: ='Company Nom Groups'!M129 -> 333.5010986 | D19: 4712 | E19: 4834.398901 | H19: ='Ex 7 Co. Owned Gas'!B19 -> 5141 | I19: ='Ex 7 Co. Owned Gas'!C19 -> 5167.9 | J19: 3279 | K19: 3416.946609 | L19: 58616.641 | M19: 60086.27439

Sheet Exhibit 8.1
O31: ='Exhibit 1.1'!O31 -> IRP Variance Exhibit | P31: ='Exhibit 1.1'!P31 -> Docket No. 20-057-02 | Q31: ='Exhibit 1.1'!Q31 -> Dominion Energy Utah
O32: 8.1

Sheet Exhibit 8.2
O31: ='Exhibit 1.1'!O31 -> IRP Variance Exhibit | P31: ='Exhibit 1.1'!P31 -> Docket No. 20-057-02 | Q31: ='Exhibit 1.1'!Q31 -> Dominion Energy Utah
O32: 8.2

Sheet Exhibit 8.3
O31: ='Exhibit 1.1'!O31 -> IRP Variance Exhibit | P31: ='Exhibit 1.1'!P31 -> Docket No. 20-057-02 | Q31: ='Exhibit 1.1'!Q31 -> Dominion Energy Utah
O32: 8.3

Sheet Company Nom Groups (hidden)
A1: Company Nom Groups
A2: Withdrawn Gross Volume (MDths) | D2: 1106 | R2: June 2020 Cost-of-Service | V2: July 2020 Cost-of-Service | Z2: August 2020 Cost-of-Service | AD2: First Quarter Cost-of-Service | AL2: September 2020 Cost-of-Service | AP2: October 2020 Cost-of-Service | AT2: November 2020 Cost-of-Service | AX2: Second Quarter Cost-of-Service | BG2: December 2020 Cost-of-Service | BK2: January 2021 Cost-of-Service | BO2: February 2021 Cost-of-Service | BS2: Third Quarter Cost-of-Service | CD2: March 2021 Cost-of-Service | CH2: April 2021 Cost-of-Service | CL2: May 2021 Cost-of-Service | CP2: Fourth Quarter Cost-of-Service
A3: Source: IRP Base Case, Monthly Custom Report Writer | R3: Variance Mdth | V3: Variance Mdth | Z3: Variance Mdth | AD3: Variance Mdth | AL3: Variance Mdth | AP3: Variance Mdth | AT3: Variance Mdth | AX3: Variance Mdth | BG3: Variance Mdth | BK3: Variance Mdth | BO3: Variance Mdth | BS3: Variance Mdth | CD3: Variance Mdth | CH3: Variance Mdth | CL3: Variance Mdth | CP3: Variance Mdth
B4: 2 | C4: 3 | D4: 4 | E4: 5 | F4: 6 | G4: 7 | H4: 8 | I4: 9 | J4: 10 | K4: 11 | L4: 12 | M4: 13
A5: Nomination Group Production | B5: 2020-06-01 | C5: 2020-07-01 | D5: 2020-08-01 | E5: 2020-09-01 | F5: 2020-10-01 | G5: 2020-11-01 | H5: 2020-12-01 | I5: 2021-01-01 | J5: 2021-02-01 | K5: 2021-03-01 | L5: 2021-04-01 | M5: 2021-05-01 | N5: Total | R5: Nomination Group | S5: Actual | T5: Normal | V5: Nomination Group | W5: Actual | X5: Normal | Z5: Nomination Group | AA5: Actual | AB5: Normal | AD5: Nomination Group | AE5: Actual | AF5: Normal | AL5: Nomination Group | AM5: Actual | AN5: Normal | AP5: Nomination Group | AQ5: Actual | AR5: Normal | AT5: =AP5 -> Nomination Group | AU5: =AQ5 -> Actual | AV5: Normal | AX5: =AT5 -> Nomination Group | AY5: =AU5 -> Actual | AZ5: =AV5 -> Normal | BG5: Nomination Group | BH5: Actual | BI5: Normal | BK5: Nomination Group | BL5: Actual | BM5: Normal | BO5: Nomination Group | BP5: Actual | BQ5: Normal | BS5: =BO5 -> Nomination Group | BT5: =BP5 -> Actual | BU5: =BQ5 -> Normal | CD5: Nomination Group | CE5: Actual | CF5: Normal | CH5: Nomination Group | CI5: Actual | CJ5: Normal | CL5: Nomination Group | CM5: Actual | CN5: Normal | CP5: Nomination Group | CQ5: Actual | CR5: Normal
A6: BIRCH CREEK | B6: 116.9369965 | C6: 120.0908966 | D6: 119.3531036 | E6: 114.7949982 | F6: 117.8929977 | G6: 113.3909988 | H6: 116.4514999 | I6: 115.413002 | J6: 100.0327988 | K6: 114.0025024 | L6: 109.6500015 | M6: 112.6106033 | N6: =SUM(B6:M6) -> 1370.620399 | R6: =A6 -> BIRCH CREEK | S6: =IFERROR(VLOOKUP(R6,$R$116:$S$210,2,FALSE),0)+S120 -> 133.524 | T6: =IFERROR(VLOOKUP(R6,$A$6:$M$119,2,FALSE),"") -> 116.9369965 | V6: =R6 -> BIRCH CREEK | W6: =IFERROR(VLOOKUP(V6,$V$116:$W$210,2,FALSE),0) -> 134.366 | X6: =IFERROR(VLOOKUP(V6,$A$6:$M$119,3,FALSE),"") -> 120.0908966 | Z6: =R6 -> BIRCH CREEK | AA6: =IFERROR(VLOOKUP(A6,$Z$116:$AA$210,2,FALSE),0) -> 133.616 | AB6: =IFERROR(VLOOKUP(Z6,$A$6:$M$119,4,FALSE),"") -> 119.3531036 | AD6: =R6 -> BIRCH CREEK | AE6: =SUM(S6,W6,AA6) -> 401.506 | AF6: =SUM(T6,X6,AB6) -> 356.3809967 | AL6: =AD6 -> BIRCH CREEK | AM6: =IFERROR(VLOOKUP(AL6,$AL$116:$AM$206,2,FALSE),0) -> 122.6 | AN6: =IFERROR(VLOOKUP(AL6,$A$6:$M$119,5,FALSE),"") -> 114.7949982 | AP6: =AL6 -> BIRCH CREEK | AQ6: =IFERROR(VLOOKUP(AP6,$AP$116:$AQ$215,2,FALSE),0) -> 125.215 | AR6: =IFERROR(VLOOKUP($AP6,$A$6:$M$119,6,FALSE),"") -> 117.8929977 | AT6: =AP6 -> BIRCH CREEK | AU6: =IFERROR(VLOOKUP(AT6,$AT$116:$AU$208,2,FALSE),0) -> 111.911 | AV6: =IFERROR(VLOOKUP($AT6,$A$6:$M$119,7,FALSE),"") -> 113.3909988 | AX6: =AT6 -> BIRCH CREEK | AY6: =SUM(AM6,AQ6,AU6) -> 359.726 | AZ6: =SUM(AN6,AR6,AV6) -> 346.0789948 | BG6: =R6 -> BIRCH CREEK | BH6: =IFERROR(VLOOKUP($BG6,$BG$114:$BH$209,2,FALSE),0) -> 119.707 | BI6: =IFERROR(VLOOKUP($BG6,$A$6:$M$119,8,FALSE),"") -> 116.4514999 | BK6: =R6 -> BIRCH CREEK | BL6: =IFERROR(VLOOKUP($BK6,$BK$114:$BL$209,2,FALSE),0) -> 121.929 | BM6: =IFERROR(VLOOKUP($BK6,$A$6:$M$119,9,FALSE),"") -> 115.413002 | BO6: =A6 -> BIRCH CREEK | BP6: =IFERROR(VLOOKUP($BO6,$BO$114:$BP$209,2,FALSE),0) -> 112.868 | BQ6: =IFERROR(VLOOKUP($BO6,$A$6:$M$119,10,FALSE),0) -> 100.0327988 | BS6: =A6 -> BIRCH CREEK | BT6: =SUM(BH6,BL6,BP6) -> 354.504 | BU6: =SUM(BI6,BM6,BQ6) -> 331.8973007 | CD6: =A6 -> BIRCH CREEK | CE6: =IFERROR(VLOOKUP(CD6,$CD$115:$CF$202,2,FALSE),0) -> 124.459 | CF6: =IFERROR(VLOOKUP($A6,$A$6:$M$119,11,FALSE),"") -> 114.0025024 | CH6: =A6 -> BIRCH CREEK | CI6: =IFERROR(VLOOKUP(CH6,$CH$115:$CJ$202,2,FALSE),0) -> 127.815 | CJ6: =IFERROR(VLOOKUP($A6,$A$6:$M$119,12,FALSE),"") -> 109.6500015 | CL6: =A6 -> BIRCH CREEK | CM6: =IFERROR(VLOOKUP(CL6,$CL$115:$CN$205,2,FALSE),0) -> 133.047 | CN6: =IFERROR(VLOOKUP($A6,$A$6:$M$119,13,FALSE),"") -> 112.6106033 | CP6: BIRCH CREEK | CQ6: =CM6+CI6+CE6 -> 385.321 | CR6: =CN6+CJ6+CF6 -> 336.2631073
A7: ACEJDMT D24 | B7: 8.333999634 | C7: 8.540499687 | D7: 8.466099739 | E7: 8.123999596 | F7: 8.32349968 | G7: 7.988999844 | H7: 8.184000015 | I7: 8.115799904 | J7: 7.016799927 | K7: 7.979400158 | L7: 7.656000137 | M7: 7.842999935 | N7: =SUM(B7:M7) -> 96.57209826 | R7: =A7 -> ACEJDMT D24 | S7: =IFERROR(VLOOKUP(R7,$R$116:$S$210,2,FALSE),0) -> 11.616 | T7: 8.333999634 | V7: =R7 -> ACEJDMT D24 | W7: 9.432 | X7: 8.540499687 | Z7: =R7 -> ACEJDMT D24 | AA7: 11.519 | AB7: 8.466099739 | AD7: =R7 -> ACEJDMT D24 | AE7: =SUM(S7,W7,AA7) -> 32.567 | AF7: =SUM(T7,X7,AB7) -> 25.34059906 | AL7: =AD7 -> ACEJDMT D24 | AM7: =IFERROR(VLOOKUP(AL7,$AL$116:$AM$206,2,FALSE),0) -> 11.474 | AN7: =IFERROR(VLOOKUP(AL7,$A$6:$M$119,5,FALSE),"") -> 8.123999596 | AP7: =AL7 -> ACEJDMT D24 | AQ7: =IFERROR(VLOOKUP(AP7,$AP$116:$AQ$215,2,FALSE),0) -> 11.963 | AR7: 8.32349968 | AT7: =AP7 -> ACEJDMT D24 | AU7: 13.746 | AV7: 7.988999844 | AX7: =AT7 -> ACEJDMT D24 | AY7: =SUM(AM7,AQ7,AU7) -> 37.183 | AZ7: =SUM(AN7,AR7,AV7) -> 24.43649912 | BG7: =R7 -> ACEJDMT D24 | BH7: 7.142 | BI7: 8.184000015 | BK7: =R7 -> ACEJDMT D24 | BL7: 11.334 | BM7: 8.115799904 | BO7: ACEJDMT D24 | BP7: 10.889 | BQ7: 7.016799927 | BS7: ACEJDMT D24 | BT7: 29.365 | BU7: 23.31659985 | CD7: ACEJDMT D24 | CE7: =IFERROR(VLOOKUP(CD7,$CD$115:$CF$202,2,FALSE),0) -> 10.448 | CF7: =IFERROR(VLOOKUP($A7,$A$6:$M$119,11,FALSE),"") -> 7.979400158 | CH7: ACEJDMT D24 | CI7: =IFERROR(VLOOKUP(CH7,$CH$115:$CJ$202,2,FALSE),0) -> 10.425 | CJ7: 7.656000137 | CL7: ACEJDMT D24 | CM7: =IFERROR(VLOOKUP(CL7,$CL$115:$CN$205,2,FALSE),0) -> 10.751 | CN7: 7.842999935 | CP7: ACEJDMT D24 | CQ7: 31.624 | CR7: 23.47840023
A8: BRFM D24 | B8: 1.853999972 | C8: 1.906499982 | D8: 1.894099951 | E8: 1.82099998 | F8: 1.872400045 | G8: 1.799999952 | H8: 1.847599983 | I8: 1.83829999 | J8: 1.593199968 | K8: 1.816599965 | L8: 1.746000051 | M8: 1.79489994 | N8: 21.78459978 | R8: BRFM D24 | S8: 1.996 | T8: 1.853999972 | V8: BRFM D24 | W8: 2.298 | X8: 1.906499982 | Z8: BRFM D24 | AA8: 2.242 | AB8: 1.894099951 | AD8: BRFM D24 | AE8: =SUM(S8,W8,AA8) -> 6.536 | AF8: =SUM(T8,X8,AB8) -> 5.654599905 | AL8: BRFM D24 | AM8: 2.083 | AN8: 1.82099998 | AP8: BRFM D24 | AQ8: 2.271 | AR8: 1.872400045 | AT8: BRFM D24 | AU8: 1.85 | AV8: 1.799999952 | AX8: BRFM D24 | AY8: =SUM(AM8,AQ8,AU8) -> 6.204 | AZ8: =SUM(AN8,AR8,AV8) -> 5.493399978 | BG8: BRFM D24 | BH8: 2.16 | BI8: 1.847599983 | BK8: =R8 -> BRFM D24 | BL8: 1.882 | BM8: 1.83829999 | BO8: BRFM D24 | BP8: 1.869 | BQ8: 1.593199968 | BS8: BRFM D24 | BT8: 5.911 | BU8: 5.279099941 | CD8: BRFM D24 | CE8: 2.167 | CF8: 1.816599965 | CH8: BRFM D24 | CI8: 1.608 | CJ8: 1.746000051 | CL8: BRFM D24 | CM8: 1.94 | CN8: 1.79489994 | CP8: BRFM D24 | CQ8: 5.715 | CR8: 5.357499957
A9: BRFQ D24 | B9: 0 | C9: 0 | D9: 0 | E9: 0 | F9: 0 | G9: 0 | H9: 138.2940979 | I9: 137.3083038 | J9: 118.8908005 | K9: 135.3645935 | L9: 130.0679932 | M9: 133.4519043 | N9: 793.3776932 | R9: BRFQ D24 | S9: 149.781 | T9: 0 | V9: BRFQ D24 | W9: 153.818 | X9: 0 | Z9: BRFQ D24 | AA9: 147.947 | AB9: 0 | AD9: BRFQ D24 | AE9: 451.546 | AF9: 0 | AL9: BRFQ D24 | AM9: 140.03 | AN9: 0 | AP9: BRFQ D24 | AQ9: 151.223 | AR9: 0 | AT9: BRFQ D24 | AU9: 136.55 | AV9: 0 | AX9: BRFQ D24 | AY9: 427.803 | AZ9: 0 | BG9: BRFQ D24 | BH9: 135.864 | BI9: 138.2940979 | BK9: =R9 -> BRFQ D24 | BL9: 138.411 | BM9: 137.3083038 | BO9: BRFQ D24 | BP9: 124.107 | BQ9: 118.8908005 | BS9: BRFQ D24 | BT9: 398.382 | BU9: 394.4932022 | CD9: BRFQ D24 | CE9: 139.706 | CF9: 135.3645935 | CH9: BRFQ D24 | CI9: 140.103 | CJ9: 130.0679932 | CL9: BRFQ D24 | CM9: 147.617 | CN9: 133.4519043 | CP9: BRFQ D24 | CQ9: 427.426 | CR9: 398.884491
A10: BRFQMT D24 | B10: 4.673999786 | C10: 4.804999828 | D10: 4.777100086 | E10: 4.598999977 | F10: 4.724400043 | G10: 4.547999859 | H10: 4.671700001 | I10: 4.646900177 | J10: 4.029200077 | K10: 4.597300053 | L10: 4.421999931 | M10: 4.54460001 | N10: 55.03919983 | R10: BRFQMT D24 | S10: 2.026 | T10: 4.673999786 | V10: BRFQMT D24 | W10: 1.199 | X10: 4.804999828 | Z10: BRFQMT D24 | AA10: 4.928 | AB10: 4.777100086 | AD10: BRFQMT D24 | AE10: 8.153 | AF10: 14.2560997 | AL10: BRFQMT D24 | AM10: 0.023 | AN10: 4.598999977 | AP10: BRFQMT D24 | AQ10: 6.63 | AR10: 4.724400043 | AT10: BRFQMT D24 | AU10: 1.283 | AV10: 4.547999859 | AX10: BRFQMT D24 | AY10: 7.936 | AZ10: 13.87139988 | BG10: BRFQMT D24 | BH10: 7.617 | BI10: 4.671700001 | BK10: =R10 -> BRFQMT D24 | BL10: =IFERROR(VLOOKUP($BK10,$BK$114:$BL$209,2,FALSE),0) -> 0 | BM10: 4.646900177 | BO10: BRFQMT D24 | BP10: 7.608 | BQ10: 4.029200077 | BS10: BRFQMT D24 | BT10: 15.225 | BU10: 13.34780025 | CD10: BRFQMT D24 | CE10: 1.49 | CF10: 4.597300053 | CH10: BRFQMT D24 | CI10: 5.429 | CJ10: 4.421999931 | CL10: BRFQMT D24 | CM10: 2.393 | CN10: 4.54460001 | CP10: BRFQMT D24 | CQ10: 9.312 | CR10: 13.56389999
A11: BRFW D24 | B11: 55.5359993 | C11: 56.96559906 | D11: 56.55020142 | E11: 54.32400131 | F11: 55.72249985 | G11: 53.39099884 | H11: 54.7677002 | I11: 54.3708992 | J11: 47.07080078 | K11: 53.58349991 | L11: 51.47700119 | M11: 52.80540085 | N11: 646.5646019 | R11: BRFW D24 | S11: 63.577 | T11: 55.5359993 | V11: BRFW D24 | W11: 71.723 | X11: 56.96559906 | Z11: BRFW D24 | AA11: 70.355 | AB11: 56.55020142 | AD11: BRFW D24 | AE11: 205.655 | AF11: 169.0517998 | AL11: BRFW D24 | AM11: 68.077 | AN11: 54.32400131 | AP11: BRFW D24 | AQ11: 71.415 | AR11: 55.72249985 | AT11: BRFW D24 | AU11: 61.315 | AV11: 53.39099884 | AX11: BRFW D24 | AY11: 200.807 | AZ11: 163.4375 | BG11: BRFW D24 | BH11: 67.218 | BI11: 54.7677002 | BK11: =BG11 -> BRFW D24 | BL11: 64.078 | BM11: 54.3708992 | BO11: BRFW D24 | BP11: 52.557 | BQ11: 47.07080078 | BS11: BRFW D24 | BT11: 183.853 | BU11: 156.2094002 | CD11: BRFW D24 | CE11: 57.48 | CF11: 53.58349991 | CH11: BRFW D24 | CI11: 57.978 | CJ11: 51.47700119 | CL11: BRFW D24 | CM11: 60.511 | CN11: 52.80540085 | CP11: BRFW D24 | CQ11: 175.969 | CR11: 157.8659019
A12: CBFR D24 | B12: 15.62699986 | C12: 16.00219917 | D12: 15.85960007 | E12: 15.21000004 | F12: 15.57439995 | G12: 14.93700027 | H12: 15.29850006 | I12: 15.16209984 | J12: 13.10400009 | K12: 14.88930035 | L12: 14.27999973 | M12: 14.62580013 | N12: 180.5698996 | R12: CBFR D24 | S12: 12.064 | T12: 15.62699986 | V12: CBFR D24 | W12: 4.681 | X12: 16.00219917 | Z12: CBFR D24 | AA12: 0 | AB12: 15.85960007 | AD12: CBFR D24 | AE12: 16.745 | AF12: 47.4887991 | AL12: CBFR D24 | AM12: 0 | AN12: 15.21000004 | AP12: CBFR D24 | AQ12: 0.021 | AR12: 15.57439995 | AT12: CBFR D24 | AU12: 27.674 | AV12: 14.93700027 | AX12: CBFR D24 | AY12: 27.695 | AZ12: 45.72140026 | BG12: CBFR D24 | BH12: 13.047 | BI12: 15.29850006 | BK12: =R12 -> CBFR D24 | BL12: 19.646 | BM12: 15.16209984 | BO12: CBFR D24 | BP12: 17.951 | BQ12: 13.10400009 | BS12: CBFR D24 | BT12: 50.644 | BU12: 43.56459999 | CD12: CBFR D24 | CE12: 19.196 | CF12: 14.88930035 | CH12: CBFR D24 | CI12: 17.982 | CJ12: 14.27999973 | CL12: CBFR D24 | CM12: 11.255 | CN12: 14.62580013 | CP12: CBFR D24 | CQ12: 48.433 | CR12: 43.79510021
A13: CCRUNIT D24 | B13: 497.4599915 | C13: 509.1781006 | D13: 504.428894 | E13: 483.6600037 | F13: 495.2312012 | G13: 474.9360046 | H13: 486.3869019 | I13: 482.0871887 | J13: 416.7323914 | K13: 473.7016907 | L13: 454.4639893 | M13: 465.5889893 | N13: 5743.855347 | R13: CCRUNIT D24 | S13: 457.373 | T13: 497.4599915 | V13: CCRUNIT D24 | W13: 481.667 | X13: 509.1781006 | Z13: CCRUNIT D24 | AA13: 487.875 | AB13: 504.428894 | AD13: CCRUNIT D24 | AE13: 1426.915 | AF13: 1511.066986 | AL13: CCRUNIT D24 | AM13: 461.125 | AN13: 483.6600037 | AP13: CCRUNIT D24 | AQ13: 444.636 | AR13: 495.2312012 | AT13: CCRUNIT D24 | AU13: 443.248 | AV13: 474.9360046 | AX13: CCRUNIT D24 | AY13: 1349.009 | AZ13: 1453.827209 | BG13: CCRUNIT D24 | BH13: 441.751 | BI13: 486.3869019 | BK13: CCRUNIT D24 | BL13: 464.328 | BM13: 482.0871887 | BO13: CCRUNIT D24 | BP13: 439.608 | BQ13: 416.7323914 | BS13: CCRUNIT D24 | BT13: 1345.687 | BU13: 1385.206482 | CD13: CCRUNIT D24 | CE13: 469.249 | CF13: 473.7016907 | CH13: CCRUNIT D24 | CI13: 449.733 | CJ13: 454.4639893 | CL13: CCRUNIT D24 | CM13: 470.877 | CN13: 465.5889893 | CP13: CCRUNIT D24 | CQ13: 1389.859 | CR13: 1393.754669
A14: CCRUNITMTD24 | B14: 42.11700058 | C14: 43.18920135 | D14: 42.86059952 | E14: 41.1629982 | F14: 42.21269989 | G14: 40.0379982 | H14: 41.06570053 | I14: 40.76499939 | J14: 35.28839874 | K14: 40.16669846 | L14: 38.5890007 | M14: 39.58390045 | N14: 487.039196 | R14: CCRUNITMTD24 | S14: 38.791 | T14: 42.11700058 | V14: CCRUNITMTD24 | W14: 40.24 | X14: 43.18920135 | Z14: CCRUNITMTD24 | AA14: 40.298 | AB14: 42.86059952 | AD14: CCRUNITMTD24 | AE14: 119.329 | AF14: 128.1668015 | AL14: CCRUNITMTD24 | AM14: 39.768 | AN14: 41.1629982 | AP14: CCRUNITMTD24 | AQ14: 40.331 | AR14: 42.21269989 | AT14: CCRUNITMTD24 | AU14: 40.734 | AV14: 40.0379982 | AX14: CCRUNITMTD24 | AY14: 120.833 | AZ14: 123.4136963 | BG14: CCRUNITMTD24 | BH14: 38.15 | BI14: 41.06570053 | BK14: CCRUNITMTD24 | BL14: 39.787 | BM14: 40.76499939 | BO14: CCRUNITMTD24 | BP14: 36.748 | BQ14: 35.28839874 | BS14: CCRUNITMTD24 | BT14: 114.685 | BU14: 117.1190987 | CD14: CCRUNITMTD24 | CE14: 40.619 | CF14: 40.16669846 | CH14: CCRUNITMTD24 | CI14: 39.152 | CJ14: 38.5890007 | CL14: CCRUNITMTD24 | CM14: 41.865 | CN14: 39.58390045 | CP14: CCRUNITMTD24 | CQ14: 121.636 | CR14: 118.3395996
A15: CHBT MT | B15: 15.25199986 | C15: 15.6704998 | D15: 15.58059978 | E15: 14.99400043 | F15: 15.40390015 | G15: 14.82299995 | H15: 15.23029995 | I15: 15.14350033 | J15: 13.13199997 | K15: 14.96990013 | L15: 14.40600014 | M15: 14.80249977 | N15: 179.4082003 | R15: CHBT MT | S15: 15.358 | T15: 15.25199986 | V15: CHBT MT | W15: 15.189 | X15: 15.6704998 | Z15: CHBT MT | AA15: 16.21 | AB15: 15.58059978 | AD15: CHBT MT | AE15: 46.757 | AF15: 46.50309944 | AL15: CHBT MT | AM15: 14.737 | AN15: 14.99400043 | AP15: CHBT MT | AQ15: 15.209 | AR15: 15.40390015 | AT15: CHBT MT | AU15: 14.087 | AV15: 14.82299995 | AX15: CHBT MT | AY15: 44.033 | AZ15: 45.22090054 | BG15: CHBT MT | BH15: 14.4 | BI15: 15.23029995 | BK15: CHBT MT | BL15: 14.531 | BM15: 15.14350033 | BO15: CHBT MT | BP15: 13.089 | BQ15: 13.13199997 | BS15: CHBT MT | BT15: 42.02 | BU15: 43.50580025 | CD15: CHBT MT | CE15: 14.828 | CF15: 14.96990013 | CH15: CHBT MT | CI15: 14.348 | CJ15: 14.40600014 | CL15: CHBT MT | CM15: 14.928 | CN15: 14.80249977 | CP15: CHBT MT | CQ15: 44.104 | CR15: 44.17840004
A16: CHBTBUFF D24 | B16: 0 | C16: 0 | D16: 0 | E16: 0 | F16: 0 | G16: 0.7170000076 | H16: 0.7347000241 | I16: 0.7315999866 | J16: 0.6355999708 | K16: 0.722299993 | L16: 0.69599998 | M16: 0.7160999775 | N16: 4.95329994 | R16: CHBTBUFF D24 | S16: 0.834 | T16: 0 | V16: CHBTBUFF D24 | W16: 0.747 | X16: 0 | Z16: CHBTBUFF D24 | AA16: 0.983 | AB16: 0 | AD16: CHBTBUFF D24 | AE16: 2.564 | AF16: 0 | AL16: CHBTBUFF D24 | AM16: 0.863 | AN16: 0 | AP16: CHBTBUFF D24 | AQ16: 1.024 | AR16: 0 | AT16: CHBTBUFF D24 | AU16: 0.817 | AV16: 0.7170000076 | AX16: CHBTBUFF D24 | AY16: 2.704 | AZ16: 0.7170000076 | BG16: CHBTBUFF D24 | BH16: 0.892 | BI16: 0.7347000241 | BK16: CHBTBUFF D24 | BL16: 0.89 | BM16: 0.7315999866 | BO16: CHBTBUFF D24 | BP16: 0.721 | BQ16: 0.6355999708 | BS16: CHBTBUFF D24 | BT16: 2.503 | BU16: 2.101899981 | CD16: CHBTBUFF D24 | CE16: 0.777 | CF16: 0.722299993 | CH16: CHBTBUFF D24 | CI16: 0.823 | CJ16: 0.69599998 | CL16: CHBTBUFF D24 | CM16: 0.935 | CN16: 0.7160999775 | CP16: CHBTBUFF D24 | CQ16: 2.535 | CR16: 2.134399951
A17: CHBTCAT2 D24 | B17: 93.46499634 | C17: 95.938797 | D17: 95.30020142 | E17: 91.61399841 | F17: 94.03849792 | G17: 90.40200043 | H17: 92.79229736 | I17: 92.17849731 | J17: 79.85320282 | K17: 90.96019745 | L17: 87.44100189 | M17: 89.75740051 | N17: 1093.741089 | R17: CHBTCAT2 D24 | S17: 78.82 | T17: 93.46499634 | V17: CHBTCAT2 D24 | W17: 92.633 | X17: 95.938797 | Z17: CHBTCAT2 D24 | AA17: 108.025 | AB17: 95.30020142 | AD17: CHBTCAT2 D24 | AE17: 279.478 | AF17: 284.7039948 | AL17: CHBTCAT2 D24 | AM17: 99.701 | AN17: 91.61399841 | AP17: CHBTCAT2 D24 | AQ17: 102.73 | AR17: 94.03849792 | AT17: CHBTCAT2 D24 | AU17: 95.924 | AV17: 90.40200043 | AX17: CHBTCAT2 D24 | AY17: 298.355 | AZ17: 276.0544968 | BG17: CHBTCAT2 D24 | BH17: 96.379 | BI17: 92.79229736 | BK17: CHBTCAT2 D24 | BL17: 92.384 | BM17: 92.17849731 | BO17: CHBTCAT2 D24 | BP17: 83.762 | BQ17: 79.85320282 | BS17: CHBTCAT2 D24 | BT17: 272.525 | BU17: 264.8239975 | CD17: CHBTCAT2 D24 | CE17: 99.221 | CF17: 90.96019745 | CH17: CHBTCAT2 D24 | CI17: 93.826 | CJ17: 87.44100189 | CL17: CHBTCAT2 D24 | CM17: 92.394 | CN17: 89.75740051 | CP17: CHBTCAT2 D24 | CQ17: 285.441 | CR17: 268.1585999
A18: CHBTCAT3 D24 | B18: 156.852005 | C18: 160.9705963 | D18: 159.8701019 | E18: 153.6569977 | F18: 157.4304047 | G18: 151.3170013 | H18: 155.2976074 | I18: 154.2467041 | J18: 133.602005 | K18: 151.8162994 | L18: 145.9049988 | M18: 149.4199982 | N18: 1830.38472 | R18: CHBTCAT3 D24 | S18: 146.814 | T18: 156.852005 | V18: CHBTCAT3 D24 | W18: 152.336 | X18: 160.9705963 | Z18: CHBTCAT3 D24 | AA18: 162.037 | AB18: 159.8701019 | AD18: CHBTCAT3 D24 | AE18: 461.187 | AF18: 477.6927032 | AL18: CHBTCAT3 D24 | AM18: 155.055 | AN18: 153.6569977 | AP18: CHBTCAT3 D24 | AQ18: 158.539 | AR18: 157.4304047 | AT18: CHBTCAT3 D24 | AU18: 151.683 | AV18: 151.3170013 | AX18: CHBTCAT3 D24 | AY18: 465.277 | AZ18: 462.4044037 | BG18: CHBTCAT3 D24 | BH18: 154.92 | BI18: 155.2976074 | BK18: CHBTCAT3 D24 | BL18: 147.051 | BM18: 154.2467041 | BO18: CHBTCAT3 D24 | BP18: 139.921 | BQ18: 133.602005 | BS18: CHBTCAT3 D24 | BT18: 441.892 | BU18: 443.1463165 | CD18: CHBTCAT3 D24 | CE18: 160.713 | CF18: 151.8162994 | CH18: CHBTCAT3 D24 | CI18: 150.518 | CJ18: 145.9049988 | CL18: CHBTCAT3 D24 | CM18: 154.843 | CN18: 149.4199982 | CP18: CHBTCAT3 D24 | CQ18: 466.074 | CR18: 447.1412964
A19: DRY PINY MT | B19: 0 | C19: 0 | D19: 0 | E19: 0 | F19: 0 | G19: 5.105999947 | H19: 5.232800007 | I19: 5.189400196 | J19: 4.488399982 | K19: 5.105700016 | L19: 4.90199995 | M19: 5.025100231 | N19: 35.04940033 | R19: DRY PINY MT | S19: 4.242 | T19: 0 | V19: DRY PINY MT | W19: 4.202 | X19: 0 | Z19: DRY PINY MT | AA19: 4.305 | AB19: 0 | AD19: DRY PINY MT | AE19: 12.749 | AF19: 0 | AL19: DRY PINY MT | AM19: 4.419 | AN19: 0 | AP19: DRY PINY MT | AQ19: 4.486 | AR19: 0 | AT19: DRY PINY MT | AU19: 4.355 | AV19: 5.105999947 | AX19: DRY PINY MT | AY19: 13.26 | AZ19: 5.105999947 | BG19: DRY PINY MT | BH19: 4.512 | BI19: 5.232800007 | BK19: DRY PINY MT | BL19: 4.096 | BM19: 5.189400196 | BO19: DRY PINY MT | BP19: 3.205 | BQ19: 4.488399982 | BS19: DRY PINY MT | BT19: 11.813 | BU19: 14.91060019 | CD19: DRY PINY MT | CE19: 4.23 | CF19: 5.105700016 | CH19: DRY PINY MT | CI19: 4.277 | CJ19: 4.90199995 | CL19: DRY PINY MT | CM19: 4.101 | CN19: 5.025100231 | CP19: DRY PINY MT | CQ19: 12.608 | CR19: 15.0328002
A20: DRYPINY6 D24 | B20: 1.026000023 | C20: 1.050899982 | D20: 1.041599989 | E20: 0.9990000129 | F20: 1.023000002 | G20: 0.9810000062 | H20: 1.004400015 | I20: 0.9951000214 | J20: 0.8596000075 | K20: 0.9764999747 | L20: 0.9359999895 | M20: 0.9610000253 | N20: 11.85410005 | R20: DRYPINY6 D24 | S20: 0.806 | T20: 1.026000023 | V20: DRYPINY6 D24 | W20: 0.729 | X20: 1.050899982 | Z20: DRYPINY6 D24 | AA20: 0.827 | AB20: 1.041599989 | AD20: DRYPINY6 D24 | AE20: 2.362 | AF20: 3.118499994 | AL20: DRYPINY6 D24 | AM20: 0.742 | AN20: 0.9990000129 | AP20: DRYPINY6 D24 | AQ20: 0.788 | AR20: 1.023000002 | AT20: DRYPINY6 D24 | AU20: 0.847 | AV20: 0.9810000062 | AX20: DRYPINY6 D24 | AY20: 2.377 | AZ20: 3.003000021 | BG20: DRYPINY6 D24 | BH20: 0.826 | BI20: 1.004400015 | BK20: DRYPINY6 D24 | BL20: 0.822 | BM20: 0.9951000214 | BO20: DRYPINY6 D24 | BP20: 0.712 | BQ20: 0.8596000075 | BS20: DRYPINY6 D24 | BT20: 2.36 | BU20: 2.859100044 | CD20: DRYPINY6 D24 | CE20: 0.695 | CF20: 0.9764999747 | CH20: DRYPINY6 D24 | CI20: 0.326 | CJ20: 0.9359999895 | CL20: DRYPINY6 D24 | CM20: 0.857 | CN20: 0.9610000253 | CP20: DRYPINY6 D24 | CQ20: 1.878 | CR20: 2.87349999
A21: DRYPINYU D24 | B21: 1.835999966 | C21: 1.887899995 | D21: 1.878600001 | E21: 1.809000015 | F21: 1.860000014 | G21: 1.791000009 | H21: 1.841400027 | I21: 1.832100034 | J21: 1.590399981 | K21: 1.816599965 | L21: 1.748999953 | M21: 1.797999978 | N21: 21.68999994 | R21: DRYPINYU D24 | S21: 1.911 | T21: 1.835999966 | V21: DRYPINYU D24 | W21: 1.967 | X21: 1.887899995 | Z21: DRYPINYU D24 | AA21: 1.951 | AB21: 1.878600001 | AD21: DRYPINYU D24 | AE21: 5.829 | AF21: 5.602499962 | AL21: DRYPINYU D24 | AM21: 1.837 | AN21: 1.809000015 | AP21: DRYPINYU D24 | AQ21: 1.899 | AR21: 1.860000014 | AT21: DRYPINYU D24 | AU21: 1.811 | AV21: 1.791000009 | AX21: DRYPINYU D24 | AY21: 5.547 | AZ21: 5.460000038 | BG21: DRYPINYU D24 | BH21: 1.887 | BI21: 1.841400027 | BK21: DRYPINYU D24 | BL21: 1.817 | BM21: 1.832100034 | BO21: DRYPINYU D24 | BP21: 1.601 | BQ21: 1.590399981 | BS21: DRYPINYU D24 | BT21: 5.305 | BU21: 5.263900042 | CD21: DRYPINYU D24 | CE21: 1.755 | CF21: 1.816599965 | CH21: DRYPINYU D24 | CI21: 1.737 | CJ21: 1.748999953 | CL21: DRYPINYU D24 | CM21: 1.723 | CN21: 1.797999978 | CP21: DRYPINYU D24 | CQ21: 5.215 | CR21: 5.363599896
A22: HWA DEEP D24 | B22: 0.1410000026 | C22: 0.139500007 | D22: 0.1333000064 | E22: 0.1230000034 | F22: 0.123999998 | G22: 0.1140000001 | H22: 0.114699997 | I22: 0.1084999964 | J22: 0.0923999995 | K22: 0.09920000285 | L22: 0.09300000221 | M22: 0.09300000221 | N22: 1.375600018 | R22: HWA DEEP D24 | S22: 0.462 | T22: 0.1410000026 | V22: HWA DEEP D24 | W22: 0.344 | X22: 0.139500007 | Z22: HWA DEEP D24 | AA22: 0 | AB22: 0.1333000064 | AD22: HWA DEEP D24 | AE22: 0.806 | AF22: 0.413800016 | AL22: HWA DEEP D24 | AM22: 0.028 | AN22: 0.1230000034 | AP22: HWA DEEP D24 | AQ22: 0.324 | AR22: 0.123999998 | AT22: HWA DEEP D24 | AU22: 0.46 | AV22: 0.1140000001 | AX22: HWA DEEP D24 | AY22: 0.812 | AZ22: 0.3610000014 | BG22: HWA DEEP D24 | BH22: 0.37 | BI22: 0.114699997 | BK22: HWA DEEP D24 | BL22: 0.398 | BM22: 0.1084999964 | BO22: HWA DEEP D24 | BP22: 0.334 | BQ22: 0.0923999995 | BS22: HWA DEEP D24 | BT22: 1.102 | BU22: 0.3155999929 | CD22: HWA DEEP D24 | CE22: 0.382 | CF22: 0.09920000285 | CH22: HWA DEEP D24 | CI22: 0.36 | CJ22: 0.09300000221 | CL22: HWA DEEP D24 | CM22: 0.352 | CN22: 0.09300000221 | CP22: HWA DEEP D24 | CQ22: 1.094 | CR22: 0.2852000073
A23: HWA MT | B23: 2.811000109 | C23: 2.882999897 | D23: 2.861299992 | E23: 2.747999907 | F23: 2.817899942 | G23: 2.709000111 | H23: 2.77760005 | I23: 2.755899906 | J23: 2.38560009 | K23: 2.715600014 | L23: 2.607000113 | M23: 2.675299883 | N23: 32.74720001 | R23: HWA MT | S23: 2.909 | T23: 2.811000109 | V23: HWA MT | W23: 3.266 | X23: 2.882999897 | Z23: HWA MT | AA23: 3.26 | AB23: 2.861299992 | AD23: HWA MT | AE23: 9.435 | AF23: 8.555299997 | AL23: HWA MT | AM23: 3.058 | AN23: 2.747999907 | AP23: HWA MT | AQ23: 3.734 | AR23: 2.817899942 | AT23: HWA MT | AU23: 2.28 | AV23: 2.709000111 | AX23: HWA MT | AY23: 9.072 | AZ23: 8.27489996 | BG23: HWA MT | BH23: 2.76 | BI23: 2.77760005 | BK23: HWA MT | BL23: 1.787 | BM23: 2.755899906 | BO23: HWA MT | BP23: 1.787 | BQ23: 2.38560009 | BS23: HWA MT | BT23: 6.334 | BU23: 7.919100046 | CD23: HWA MT | CE23: 2.719 | CF23: 2.715600014 | CH23: HWA MT | CI23: 1.226 | CJ23: 2.607000113 | CL23: HWA MT | CM23: 1.133 | CN23: 2.675299883 | CP23: HWA MT | CQ23: 5.078 | CR23: 7.997900009
A24: HWADEEPMTD24 | B24: 13.2869997 | C24: 13.64620018 | D24: 13.5656004 | E24: 13.04699993 | F24: 13.40130043 | G24: 12.89099979 | H24: 13.24009991 | I24: 13.15950012 | J24: 11.40719986 | K24: 12.9982996 | L24: 12.50399971 | M24: 12.84329987 | N24: 155.9904995 | R24: HWADEEPMTD24 | S24: 16.945 | T24: 13.2869997 | V24: HWADEEPMTD24 | W24: 16.376 | X24: 13.64620018 | Z24: HWADEEPMTD24 | AA24: 0 | AB24: 13.5656004 | AD24: HWADEEPMTD24 | AE24: 33.321 | AF24: 40.49880028 | AL24: HWADEEPMTD24 | AM24: 1.315 | AN24: 13.04699993 | AP24: HWADEEPMTD24 | AQ24: 9.456 | AR24: 13.40130043 | AT24: HWADEEPMTD24 | AU24: 15.898 | AV24: 12.89099979 | AX24: HWADEEPMTD24 | AY24: 26.669 | AZ24: 39.33930016 | BG24: HWADEEPMTD24 | BH24: 15.503 | BI24: 13.24009991 | BK24: HWADEEPMTD24 | BL24: 17.829 | BM24: 13.15950012 | BO24: HWADEEPMTD24 | BP24: 14.665 | BQ24: 11.40719986 | BS24: HWADEEPMTD24 | BT24: 47.997 | BU24: 37.80679989 | CD24: HWADEEPMTD24 | CE24: 16.964 | CF24: 12.9982996 | CH24: HWADEEPMTD24 | CI24: 15.39 | CJ24: 12.50399971 | CL24: HWADEEPMTD24 | CM24: 16.297 | CN24: 12.84329987 | CP24: HWADEEPMTD24 | CQ24: 48.651 | CR24: 38.34559917
A25: HWPL1&3MTD24 | B25: 7.710000038 | C25: 7.923600197 | D25: 7.880199909 | E25: 7.580999851 | F25: 7.790299892 | G25: 7.497000217 | H25: 7.703499794 | I25: 7.660099983 | J25: 6.64440012 | K25: 7.576399803 | L25: 7.289999962 | M25: 7.4927001 | N25: 90.74919987 | R25: HWPL1&3MTD24 | S25: 7.469 | T25: 7.710000038 | V25: HWPL1&3MTD24 | W25: 8.774 | X25: 7.923600197 | Z25: HWPL1&3MTD24 | AA25: 8.493 | AB25: 7.880199909 | AD25: HWPL1&3MTD24 | AE25: 24.736 | AF25: 23.51380014 | AL25: HWPL1&3MTD24 | AM25: 8.082 | AN25: 7.580999851 | AP25: HWPL1&3MTD24 | AQ25: 8.286 | AR25: 7.790299892 | AT25: HWPL1&3MTD24 | AU25: 7.74 | AV25: 7.497000217 | AX25: HWPL1&3MTD24 | AY25: 24.108 | AZ25: 22.86829996 | BG25: HWPL1&3MTD24 | BH25: 8.834 | BI25: 7.703499794 | BK25: HWPL1&3MTD24 | BL25: 8.318 | BM25: 7.660099983 | BO25: HWPL1&3MTD24 | BP25: 7.034 | BQ25: 6.64440012 | BS25: HWPL1&3MTD24 | BT25: 24.186 | BU25: 22.0079999 | CD25: =A25 -> HWPL1&3MTD24 | CE25: 7.814 | CF25: =IFERROR(VLOOKUP($A25,$A$6:$M$119,11,FALSE),"") -> 7.576399803 | CH25: =A25 -> HWPL1&3MTD24 | CI25: 7.638 | CJ25: =IFERROR(VLOOKUP($A25,$A$6:$M$119,12,FALSE),"") -> 7.289999962 | CL25: =A25 -> HWPL1&3MTD24 | CM25: 7.343 | CN25: =IFERROR(VLOOKUP($A25,$A$6:$M$119,13,FALSE),"") -> 7.4927001 | CP25: HWPL1&3MTD24 | CQ25: 22.795 | CR25: 22.35909986
A26: HWPLT1&3 D24 | B26: 77.90399933 | C26: 79.61109924 | D26: 78.73069763 | E26: 75.35099792 | F26: 77.00090027 | G26: 73.69799805 | H26: 75.3144989 | I26: 74.48680115 | J26: 64.2460022 | K26: 72.85929871 | L26: 69.73799896 | M26: 71.27210236 | N26: 890.2123947 | R26: HWPLT1&3 D24 | S26: 77.469 | T26: 77.90399933 | V26: HWPLT1&3 D24 | W26: 88.022 | X26: 79.61109924 | Z26: HWPLT1&3 D24 | AA26: 87.575 | AB26: 78.73069763 | AD26: HWPLT1&3 D24 | AE26: 253.066 | AF26: 236.2457962 | AL26: HWPLT1&3 D24 | AM26: 77.638 | AN26: 75.35099792 | AP26: HWPLT1&3 D24 | AQ26: 86.57 | AR26: 77.00090027 | AT26: HWPLT1&3 D24 | AU26: 73.438 | AV26: 73.69799805 | AX26: HWPLT1&3 D24 | AY26: 237.646 | AZ26: 226.0498962 | BG26: HWPLT1&3 D24 | BH26: 84.783 | BI26: 75.3144989 | BK26: HWPLT1&3 D24 | BL26: 79.844 | BM26: 74.48680115 | BO26: HWPLT1&3 D24 | BP26: 62.26 | BQ26: 64.2460022 | BS26: HWPLT1&3 D24 | BT26: 226.887 | BU26: 214.0473022 | CD26: HWPLT1&3 D24 | CE26: 71.134 | CF26: 72.85929871 | CH26: HWPLT1&3 D24 | CI26: 68.909 | CJ26: 69.73799896 | CL26: HWPLT1&3 D24 | CM26: 72.43 | CN26: 71.27210236 | CP26: HWPLT1&3 D24 | CQ26: 212.473 | CR26: 213.8694
A27: HWPLT2 D24 | B27: 4.938000202 | C27: 5.068500042 | D27: 5.034399986 | E27: 4.842000008 | F27: 4.969299793 | G27: 4.776000023 | H27: 4.904200077 | I27: 4.870100021 | J27: 4.219600201 | K27: 4.804999828 | L27: 4.619999886 | M27: 4.743000031 | N27: 57.7901001 | R27: HWPLT2 D24 | S27: 8.167 | T27: 4.938000202 | V27: HWPLT2 D24 | W27: 8.321 | X27: 5.068500042 | Z27: HWPLT2 D24 | AA27: 7.369 | AB27: 5.034399986 | AD27: HWPLT2 D24 | AE27: 23.857 | AF27: 15.04090023 | AL27: HWPLT2 D24 | AM27: 5.732 | AN27: 4.842000008 | AP27: HWPLT2 D24 | AQ27: 6.619 | AR27: 4.969299793 | AT27: HWPLT2 D24 | AU27: 6.279 | AV27: 4.776000023 | AX27: HWPLT2 D24 | AY27: 18.63 | AZ27: 14.58729982 | BG27: HWPLT2 D24 | BH27: 6.713 | BI27: 4.904200077 | BK27: HWPLT2 D24 | BL27: 6.335 | BM27: 4.870100021 | BO27: HWPLT2 D24 | BP27: 5.685 | BQ27: 4.219600201 | BS27: HWPLT2 D24 | BT27: 18.733 | BU27: 13.9939003 | CD27: HWPLT2 D24 | CE27: 5.46 | CF27: 4.804999828 | CH27: HWPLT2 D24 | CI27: 7.311 | CJ27: 4.619999886 | CL27: HWPLT2 D24 | CM27: 9.328 | CN27: 4.743000031 | CP27: HWPLT2 D24 | CQ27: 22.099 | CR27: 14.16799974
A28: HWPLT2MT D24 | B28: 4.215000153 | C28: 4.312099934 | D28: 4.268700123 | E28: 4.089000225 | F28: 4.181900024 | G28: 4.007999897 | H28: 4.098199844 | I28: 4.057899952 | J28: 3.502799988 | K28: 3.977299929 | L28: 3.812999964 | M28: 3.899800062 | N28: 48.42370009 | R28: HWPLT2MT D24 | S28: 3.029 | T28: 4.215000153 | V28: HWPLT2MT D24 | W28: 3.294 | X28: 4.312099934 | Z28: HWPLT2MT D24 | AA28: 3.197 | AB28: 4.268700123 | AD28: HWPLT2MT D24 | AE28: 9.52 | AF28: 12.79580021 | AL28: HWPLT2MT D24 | AM28: 4.3 | AN28: 4.089000225 | AP28: HWPLT2MT D24 | AQ28: 5.691 | AR28: 4.181900024 | AT28: HWPLT2MT D24 | AU28: 4.266 | AV28: 4.007999897 | AX28: HWPLT2MT D24 | AY28: 14.257 | AZ28: 12.27890015 | BG28: HWPLT2MT D24 | BH28: 4.023 | BI28: 4.098199844 | BK28: HWPLT2MT D24 | BL28: 2.721 | BM28: 4.057899952 | BO28: HWPLT2MT D24 | BP28: 1.655 | BQ28: 3.502799988 | BS28: HWPLT2MT D24 | BT28: 8.399 | BU28: 11.65889978 | CD28: HWPLT2MT D24 | CE28: 1.709 | CF28: 3.977299929 | CH28: HWPLT2MT D24 | CI28: 1.547 | CJ28: 3.812999964 | CL28: HWPLT2MT D24 | CM28: 1.545 | CN28: 3.899800062 | CP28: HWPLT2MT D24 | CQ28: 4.801 | CR28: 11.69009995
A29: ISLAND D24 | B29: 52.90499878 | C29: 53.67649841 | D29: 53.31069946 | E29: 51.24000168 | F29: 52.58530045 | G29: 50.54399872 | H29: 51.87229919 | I29: 50.25719833 | J29: 42.98559952 | K29: 48.95830154 | L29: 46.45500183 | M29: 47.68109894 | N29: 602.4709969 | R29: ISLAND D24 | S29: 48.96 | T29: 52.90499878 | V29: ISLAND D24 | W29: 46.465 | X29: 53.67649841 | Z29: ISLAND D24 | AA29: 46.34 | AB29: 53.31069946 | AD29: ISLAND D24 | AE29: 141.765 | AF29: 159.8921967 | AL29: ISLAND D24 | AM29: 42.093 | AN29: 51.24000168 | AP29: ISLAND D24 | AQ29: 53.608 | AR29: 52.58530045 | AT29: ISLAND D24 | AU29: 59.626 | AV29: 50.54399872 | AX29: ISLAND D24 | AY29: 155.327 | AZ29: 154.3693008 | BG29: ISLAND D24 | BH29: 62.51 | BI29: 51.87229919 | BK29: ISLAND D24 | BL29: 62.464 | BM29: 50.25719833 | BO29: ISLAND D24 | BP29: 52.529 | BQ29: 42.98559952 | BS29: ISLAND D24 | BT29: 177.503 | BU29: 145.115097 | CD29: ISLAND D24 | CE29: 47.874 | CF29: 48.95830154 | CH29: ISLAND D24 | CI29: 60.128 | CJ29: 46.45500183 | CL29: ISLAND D24 | CM29: 52.344 | CN29: 47.68109894 | CP29: ISLAND D24 | CQ29: 160.346 | CR29: 143.0944023
A30: JNSNRDG D24 | B30: 2.096999884 | C30: 2.157599926 | D30: 2.148299932 | E30: 2.072999954 | F30: 2.132800102 | G30: 2.055000067 | H30: 2.114200115 | I30: 2.10800004 | J30: 1.828400016 | K30: 2.089400053 | L30: 2.013000011 | M30: 2.073899984 | N30: 24.89060009 | R30: JNSNRDG D24 | S30: 5.517 | T30: 2.096999884 | V30: JNSNRDG D24 | W30: 3.347 | X30: 2.157599926 | Z30: JNSNRDG D24 | AA30: 2.897 | AB30: 2.148299932 | AD30: JNSNRDG D24 | AE30: 11.761 | AF30: 6.402899742 | AL30: JNSNRDG D24 | AM30: 2.618 | AN30: 2.072999954 | AP30: JNSNRDG D24 | AQ30: 2.72 | AR30: 2.132800102 | AT30: JNSNRDG D24 | AU30: 2.337 | AV30: 2.055000067 | AX30: JNSNRDG D24 | AY30: 7.675 | AZ30: 6.260800123 | BG30: JNSNRDG D24 | BH30: 2.066 | BI30: 2.114200115 | BK30: JNSNRDG D24 | BL30: 0.299 | BM30: 2.10800004 | BO30: JNSNRDG D24 | BP30: 0 | BQ30: 1.828400016 | BS30: JNSNRDG D24 | BT30: 2.365 | BU30: 6.050600171 | CD30: JNSNRDG D24 | CE30: 0 | CF30: 2.089400053 | CH30: JNSNRDG D24 | CI30: 0 | CJ30: 2.013000011 | CL30: JNSNRDG D24 | CM30: 0 | CN30: 2.073899984 | CP30: JNSNRDG D24 | CQ30: 0 | CR30: 6.176300049
A31: JRDG WFS D24 | B31: 2.720999956 | C31: 2.796200037 | D31: 2.77760005 | E31: 2.673000097 | F31: 2.743499994 | G31: 2.640000105 | H31: 2.709399939 | I31: 2.693900108 | J31: 2.335200071 | K31: 2.659800053 | L31: 2.559000015 | M31: 2.628799915 | N31: 31.93740034 | R31: JRDG WFS D24 | S31: 6.959 | T31: 2.720999956 | V31: JRDG WFS D24 | W31: 4.424 | X31: 2.796200037 | Z31: JRDG WFS D24 | AA31: 3.786 | AB31: 2.77760005 | AD31: JRDG WFS D24 | AE31: 15.169 | AF31: 8.294800043 | AL31: JRDG WFS D24 | AM31: 3.334 | AN31: 2.673000097 | AP31: JRDG WFS D24 | AQ31: 3.507 | AR31: 2.743499994 | AT31: JRDG WFS D24 | AU31: 2.887 | AV31: 2.640000105 | AX31: JRDG WFS D24 | AY31: 9.728 | AZ31: 8.056500196 | BG31: JRDG WFS D24 | BH31: 3.035 | BI31: 2.709399939 | BK31: JRDG WFS D24 | BL31: 2.008 | BM31: 2.693900108 | BO31: JRDG WFS D24 | BP31: 0 | BQ31: 2.335200071 | BS31: JRDG WFS D24 | BT31: 5.043 | BU31: 7.738500118 | CD31: JRDG WFS D24 | CE31: 0 | CF31: 2.659800053 | CH31: JRDG WFS D24 | CI31: 0 | CJ31: 2.559000015 | CL31: JRDG WFS D24 | CM31: 0 | CN31: 2.628799915 | CP31: JRDG WFS D24 | CQ31: 0 | CR31: 7.847599983
A32: KNY FLD D24 | B32: 15.23099995 | C32: 15.60540009 | D32: 15.4751997 | E32: 14.85299969 | F32: 15.22099972 | G32: 14.60999966 | H32: 14.97299957 | I32: 14.85519981 | J32: 12.85200024 | K32: 14.6196003 | L32: 14.0369997 | M32: 14.39330006 | N32: 176.7256985 | R32: KNY FLD D24 | S32: 9.682 | T32: 15.23099995 | V32: KNY FLD D24 | W32: 7.419 | X32: 15.60540009 | Z32: KNY FLD D24 | AA32: 8.441 | AB32: 15.4751997 | AD32: KNY FLD D24 | AE32: =SUM(S32,W32,AA32) -> 25.542 | AF32: =SUM(T32,X32,AB32) -> 46.31159973 | AL32: KNY FLD D24 | AM32: 2.084 | AN32: 14.85299969 | AP32: KNY FLD D24 | AQ32: 5.365 | AR32: 15.22099972 | AT32: KNY FLD D24 | AU32: 4.433 | AV32: 14.60999966 | AX32: KNY FLD D24 | AY32: 11.882 | AZ32: 44.68399906 | BG32: KNY FLD D24 | BH32: 4.654 | BI32: 14.97299957 | BK32: KNY FLD D24 | BL32: 5.909 | BM32: 14.85519981 | BO32: KNY FLD D24 | BP32: 6.378 | BQ32: 12.85200024 | BS32: KNY FLD D24 | BT32: 16.941 | BU32: 42.68019962 | CD32: KNY FLD D24 | CE32: 4.133 | CF32: 14.6196003 | CH32: KNY FLD D24 | CI32: 4.039 | CJ32: 14.0369997 | CL32: KNY FLD D24 | CM32: 3.931 | CN32: 14.39330006 | CP32: KNY FLD D24 | CQ32: 12.103 | CR32: 43.04990005
A33: MESA D24 | B33: 755.4780273 | C33: 772.9229736 | D33: 765.3156128 | E33: 733.3829956 | F33: 750.463501 | G33: 719.2379761 | H33: 736.0733032 | I33: 729.0424805 | J33: 629.7368164 | K33: 713.9547729 | L33: 684.4140015 | M33: 700.5906982 | N33: 8690.613159 | R33: MESA D24 | S33: 706.507 | T33: 755.4780273 | V33: MESA D24 | W33: 736.877 | X33: 772.9229736 | Z33: MESA D24 | AA33: 723.381 | AB33: 765.3156128 | AD33: MESA D24 | AE33: 2166.765 | AF33: 2293.716614 | AL33: MESA D24 | AM33: 684.525 | AN33: 733.3829956 | AP33: MESA D24 | AQ33: 690.516 | AR33: 750.463501 | AT33: MESA D24 | AU33: 655.601 | AV33: 719.2379761 | AX33: MESA D24 | AY33: 2030.642 | AZ33: 2203.084473 | BG33: MESA D24 | BH33: 668.242 | BI33: 736.0733032 | BK33: MESA D24 | BL33: 651.265 | BM33: 729.0424805 | BO33: MESA D24 | BP33: 575.965 | BQ33: 629.7368164 | BS33: MESA D24 | BT33: 1895.472 | BU33: 2094.8526 | CD33: MESA D24 | CE33: 625.67 | CF33: 713.9547729 | CH33: MESA D24 | CI33: 603.782 | CJ33: 684.4140015 | CL33: MESA D24 | CM33: 607.18 | CN33: 700.5906982 | CP33: MESA D24 | CQ33: 1836.632 | CR33: 2098.959473
A34: MOSUMT D24 | B34: 0 | C34: 0 | D34: 0 | E34: 0 | F34: 0 | G34: 1.164000034 | H34: 1.181100011 | I34: 1.159399986 | J34: 0.9940000176 | K34: 1.119099975 | L34: 1.062000036 | M34: 1.078799963 | N34: 7.758400023 | R34: MOSUMT D24 | S34: 0.683 | T34: 0 | V34: MOSUMT D24 | W34: 1.149 | X34: 0 | Z34: MOSUMT D24 | AA34: 1.119 | AB34: 0 | AD34: MOSUMT D24 | AE34: 2.951 | AF34: 0 | AL34: MOSUMT D24 | AM34: 1.583 | AN34: 0 | AP34: MOSUMT D24 | AQ34: 2.697 | AR34: 0 | AT34: MOSUMT D24 | AU34: 1.423 | AV34: 1.164000034 | AX34: MOSUMT D24 | AY34: 5.703 | AZ34: 1.164000034 | BG34: MOSUMT D24 | BH34: 1.305 | BI34: 1.181100011 | BK34: MOSUMT D24 | BL34: 1.286 | BM34: 1.159399986 | BO34: MOSUMT D24 | BP34: 0.823 | BQ34: 0.9940000176 | BS34: MOSUMT D24 | BT34: 3.414 | BU34: 3.334500015 | CD34: MOSUMT D24 | CE34: 0.9 | CF34: 1.119099975 | CH34: MOSUMT D24 | CI34: 0.942 | CJ34: 1.062000036 | CL34: MOSUMT D24 | CM34: 0.888 | CN34: 1.078799963 | CP34: MOSUMT D24 | CQ34: 2.73 | CR34: 3.259899974
A35: PDW MT | B35: 195.8880005 | C35: 200.6134033 | D35: 198.8650055 | E35: 190.8000031 | F35: 195.4983978 | G35: 187.6170044 | H35: 192.2774963 | I35: 190.7151031 | J35: 164.9815979 | K35: 187.673996 | L35: 180.1829987 | M35: 184.7290039 | N35: 2269.84201 | R35: PDW MT | S35: 187.392 | T35: 195.8880005 | V35: PDW MT | W35: 202.647 | X35: 200.6134033 | Z35: PDW MT | AA35: 198.192 | AB35: 198.8650055 | AD35: PDW MT | AE35: 588.231 | AF35: 595.3664093 | AL35: PDW MT | AM35: 188.933 | AN35: 190.8000031 | AP35: PDW MT | AQ35: 195.311 | AR35: 195.4983978 | AT35: PDW MT | AU35: 173.897 | AV35: 187.6170044 | AX35: PDW MT | AY35: =SUM(AM35,AQ35,AU35) -> 558.141 | AZ35: =SUM(AN35,AR35,AV35) -> 573.9154053 | BG35: PDW MT | BH35: 183.288 | BI35: 192.2774963 | BK35: PDW MT | BL35: 179.403 | BM35: 190.7151031 | BO35: PDW MT | BP35: 176.053 | BQ35: 164.9815979 | BS35: PDW MT | BT35: 538.744 | BU35: 547.9741974 | CD35: PDW MT | CE35: 187.217 | CF35: 187.673996 | CH35: PDW MT | CI35: 184.681 | CJ35: 180.1829987 | CL35: PDW MT | CM35: 198.313 | CN35: 184.7290039 | CP35: PDW MT | CQ35: 570.211 | CR35: 552.5859985
A36: PDW1A1B D24 | B36: 0.5879999995 | C36: 0.6044999957 | D36: 0.6014000177 | E36: 0.5759999752 | F36: 0.5921000242 | G36: 0.5699999928 | H36: 0.5827999711 | I36: 0.5796999931 | J36: 0.5012000203 | K36: 0.5734999776 | L36: 0.5490000248 | M36: 0.5641999841 | N36: 6.882399976 | R36: PDW1A1B D24 | S36: 0.185 | T36: 0.5879999995 | V36: PDW1A1B D24 | W36: 0.267 | X36: 0.6044999957 | Z36: PDW1A1B D24 | AA36: 0.199 | AB36: 0.6014000177 | AD36: PDW1A1B D24 | AE36: 0.651 | AF36: 1.793900013 | AL36: PDW1A1B D24 | AM36: 0.17 | AN36: 0.5759999752 | AP36: PDW1A1B D24 | AQ36: 0.176 | AR36: 0.5921000242 | AT36: PDW1A1B D24 | AU36: 0.166 | AV36: 0.5699999928 | AX36: PDW1A1B D24 | AY36: 0.512 | AZ36: 1.738099992 | BG36: PDW1A1B D24 | BH36: 0.163 | BI36: 0.5827999711 | BK36: PDW1A1B D24 | BL36: 0.193 | BM36: 0.5796999931 | BO36: PDW1A1B D24 | BP36: 0.21 | BQ36: 0.5012000203 | BS36: PDW1A1B D24 | BT36: 0.566 | BU36: 1.663699985 | CD36: PDW1A1B D24 | CE36: 0.619 | CF36: 0.5734999776 | CH36: PDW1A1B D24 | CI36: 1.098 | CJ36: 0.5490000248 | CL36: PDW1A1B D24 | CM36: 0.873 | CN36: 0.5641999841 | CP36: PDW1A1B D24 | CQ36: 2.59 | CR36: 1.686699986
A37: PDWCUT D24 | B37: 0 | C37: 0 | D37: 0 | E37: 0 | F37: 0 | G37: 1.440000057 | H37: 1.48179996 | I37: 1.475600004 | J37: 1.279600024 | K37: 1.463199973 | L37: 1.406999946 | M37: 1.447700024 | N37: 9.994899988 | R37: PDWCUT D24 | S37: 0.799 | T37: 0 | V37: PDWCUT D24 | W37: 1.122 | X37: 0 | Z37: PDWCUT D24 | AA37: 0 | AB37: 0 | AD37: PDWCUT D24 | AE37: 1.921 | AF37: 0 | AL37: PDWCUT D24 | AM37: 0 | AN37: 0 | AP37: PDWCUT D24 | AQ37: 0 | AR37: 0 | AT37: PDWCUT D24 | AU37: 2.317 | AV37: 1.440000057 | AX37: PDWCUT D24 | AY37: 2.317 | AZ37: 1.440000057 | BG37: PDWCUT D24 | BH37: 1.846 | BI37: 1.48179996 | BK37: PDWCUT D24 | BL37: 0.978 | BM37: 1.475600004 | BO37: PDWCUT D24 | BP37: 0.607 | BQ37: 1.279600024 | BS37: PDWCUT D24 | BT37: 3.431 | BU37: 4.236999989 | CD37: PDWCUT D24 | CE37: 1.172 | CF37: 1.463199973 | CH37: PDWCUT D24 | CI37: 1.389 | CJ37: 1.406999946 | CL37: PDWCUT D24 | CM37: 1.207 | CN37: 1.447700024 | CP37: PDWCUT D24 | CQ37: 3.768 | CR37: 4.317899942
A38: PDWMT D24 | B38: 27.22800064 | C38: 27.87829971 | D38: 27.63030052 | E38: 26.50499916 | F38: 27.14979935 | G38: 26.04899979 | H38: 26.69099998 | I38: 26.46780014 | J38: 22.88999939 | K38: 26.03380013 | L38: 24.98999977 | M38: 25.61529922 | N38: 315.1282978 | R38: PDWMT D24 | S38: 22.042 | T38: =IFERROR(VLOOKUP(R38,$A$6:$M$119,2,FALSE),"") -> 27.22800064 | V38: PDWMT D24 | W38: =IFERROR(VLOOKUP(V38,$V$116:$W$210,2,FALSE),0) -> 19.511 | X38: =IFERROR(VLOOKUP(V38,$A$6:$M$119,3,FALSE),"") -> 27.87829971 | Z38: PDWMT D24 | AA38: =IFERROR(VLOOKUP(A38,$Z$116:$AA$210,2,FALSE),0) -> 18.399 | AB38: =IFERROR(VLOOKUP(Z38,$A$6:$M$119,4,FALSE),"") -> 27.63030052 | AD38: PDWMT D24 | AE38: 59.952 | AF38: 82.73660088 | AL38: PDWMT D24 | AM38: =IFERROR(VLOOKUP(AL38,$AL$116:$AM$206,2,FALSE),0) -> 18.096 | AN38: 26.50499916 | AP38: PDWMT D24 | AQ38: =IFERROR(VLOOKUP(AP38,$AP$116:$AQ$215,2,FALSE),0) -> 17.348 | AR38: =IFERROR(VLOOKUP($AP38,$A$6:$M$119,6,FALSE),"") -> 27.14979935 | AT38: PDWMT D24 | AU38: =IFERROR(VLOOKUP(AT38,$AT$116:$AU$208,2,FALSE),0) -> 16.426 | AV38: =IFERROR(VLOOKUP($AT38,$A$6:$M$119,7,FALSE),"") -> 26.04899979 | AX38: PDWMT D24 | AY38: 51.87 | AZ38: 79.70379829 | BG38: PDWMT D24 | BH38: =IFERROR(VLOOKUP($BG38,$BG$114:$BH$209,2,FALSE),0) -> 21.428 | BI38: =IFERROR(VLOOKUP($BG38,$A$6:$M$119,8,FALSE),"") -> 26.69099998 | BK38: PDWMT D24 | BL38: =IFERROR(VLOOKUP($BK38,$BK$114:$BL$209,2,FALSE),0) -> 20.709 | BM38: =IFERROR(VLOOKUP($BK38,$A$6:$M$119,9,FALSE),"") -> 26.46780014 | BO38: =A38 -> PDWMT D24 | BP38: =IFERROR(VLOOKUP($BO38,$BO$114:$BP$209,2,FALSE),0) -> 17.717 | BQ38: =IFERROR(VLOOKUP($BO38,$A$6:$M$119,10,FALSE),0) -> 22.88999939 | BS38: =A38 -> PDWMT D24 | BT38: =SUM(BH38,BL38,BP38) -> 59.854 | BU38: =SUM(BI38,BM38,BQ38) -> 76.04879951 | CD38: PDWMT D24 | CE38: 18.82 | CF38: 26.03380013 | CH38: PDWMT D24 | CI38: 17.255 | CJ38: 24.98999977 | CL38: PDWMT D24 | CM38: 16.903 | CN38: 25.61529922 | CP38: PDWMT D24 | CQ38: 52.978 | CR38: 76.63909912
A39: PDWPLT2 D24 | B39: 4.652999878 | C39: 4.780200005 | D39: 4.749199867 | E39: 4.568999767 | F39: 4.690299988 | G39: 4.512000084 | H39: 4.634500027 | I39: 4.606599808 | J39: 3.992799997 | K39: 4.550799847 | L39: 4.376999855 | M39: 4.494999886 | N39: 54.61039901 | R39: PDWPLT2 D24 | S39: =IFERROR(VLOOKUP(R39,$R$116:$S$210,2,FALSE),0) -> 4.2 | T39: 4.652999878 | V39: PDWPLT2 D24 | W39: 5.157 | X39: 4.780200005 | Z39: PDWPLT2 D24 | AA39: 4.914 | AB39: 4.749199867 | AD39: PDWPLT2 D24 | AE39: 14.271 | AF39: 14.18239975 | AL39: PDWPLT2 D24 | AM39: 4.919 | AN39: 4.568999767 | AP39: PDWPLT2 D24 | AQ39: 5.614 | AR39: 4.690299988 | AT39: PDWPLT2 D24 | AU39: 4.744 | AV39: 4.512000084 | AX39: PDWPLT2 D24 | AY39: 15.277 | AZ39: 13.77129984 | BG39: PDWPLT2 D24 | BH39: 4.925 | BI39: 4.634500027 | BK39: PDWPLT2 D24 | BL39: 4.241 | BM39: 4.606599808 | BO39: PDWPLT2 D24 | BP39: 4.558 | BQ39: 3.992799997 | BS39: PDWPLT2 D24 | BT39: 13.724 | BU39: 13.23389983 | CD39: PDWPLT2 D24 | CE39: 4.821 | CF39: 4.550799847 | CH39: PDWPLT2 D24 | CI39: 4.613 | CJ39: 4.376999855 | CL39: PDWPLT2 D24 | CM39: 5.097 | CN39: 4.494999886 | CP39: PDWPLT2 D24 | CQ39: 14.531 | CR39: 13.42279959
A40: SGRLF D24 | B40: 1.692000031 | C40: 1.735999942 | D40: 1.72360003 | E40: 1.656000018 | F40: 1.698799968 | G40: 1.63499999 | H40: 1.677099943 | I40: 1.664700031 | J40: 1.442000031 | K40: 1.643000007 | L40: 1.577999949 | M40: 1.618199944 | N40: 19.76439989 | R40: SGRLF D24 | S40: 1.115 | T40: 1.692000031 | V40: SGRLF D24 | W40: 1.351 | X40: 1.735999942 | Z40: SGRLF D24 | AA40: 0 | AB40: 1.72360003 | AD40: SGRLF D24 | AE40: 2.466 | AF40: 5.151600003 | AL40: SGRLF D24 | AM40: 0 | AN40: 1.656000018 | AP40: SGRLF D24 | AQ40: 0.736 | AR40: 1.698799968 | AT40: SGRLF D24 | AU40: 2.585 | AV40: 1.63499999 | AX40: SGRLF D24 | AY40: 3.321 | AZ40: 4.989799976 | BG40: SGRLF D24 | BH40: 1.978 | BI40: 1.677099943 | BK40: SGRLF D24 | BL40: 1.961 | BM40: 1.664700031 | BO40: SGRLF D24 | BP40: 1.465 | BQ40: 1.442000031 | BS40: SGRLF D24 | BT40: 5.404 | BU40: 4.783800006 | CD40: SGRLF D24 | CE40: 1.364 | CF40: 1.643000007 | CH40: SGRLF D24 | CI40: 1.221 | CJ40: 1.577999949 | CL40: SGRLF D24 | CM40: 1.285 | CN40: 1.618199944 | CP40: SGRLF D24 | CQ40: 3.87 | CR40: 4.839199901
A41: SGRLFMT D24 | B41: 10.38300037 | C41: 10.65470028 | D41: 10.58030033 | E41: 10.17000008 | F41: 10.43459988 | G41: 10.02900028 | H41: 10.29199982 | I41: 10.22070026 | J41: 8.850799561 | K41: 10.0781002 | L41: 9.687000275 | M41: 9.938599586 | N41: 121.3188009 | R41: SGRLFMT D24 | S41: 21.869 | T41: 10.38300037 | V41: SGRLFMT D24 | W41: 16.974 | X41: 10.65470028 | Z41: SGRLFMT D24 | AA41: 0 | AB41: 10.58030033 | AD41: SGRLFMT D24 | AE41: 38.843 | AF41: 31.61800098 | AL41: SGRLFMT D24 | AM41: 9.906 | AN41: 10.17000008 | AP41: SGRLFMT D24 | AQ41: 21.78 | AR41: 10.43459988 | AT41: SGRLFMT D24 | AU41: 18.956 | AV41: 10.02900028 | AX41: SGRLFMT D24 | AY41: 50.642 | AZ41: 30.63360023 | BG41: SGRLFMT D24 | BH41: 19.748 | BI41: 10.29199982 | BK41: SGRLFMT D24 | BL41: 17.384 | BM41: 10.22070026 | BO41: SGRLFMT D24 | BP41: 15.481 | BQ41: 8.850799561 | BS41: SGRLFMT D24 | BT41: 52.613 | BU41: 29.36349964 | CD41: SGRLFMT D24 | CE41: 16.979 | CF41: 10.0781002 | CH41: SGRLFMT D24 | CI41: 15.602 | CJ41: 9.687000275 | CL41: SGRLFMT D24 | CM41: 12.303 | CN41: 9.938599586 | CP41: SGRLFMT D24 | CQ41: 44.884 | CR41: 29.70370007
A42: TRAIL D24 | B42: 370.32901 | C42: 375.4317017 | D42: 368.6830139 | E42: 350.6669922 | F42: 356.3945923 | G42: 339.4349976 | H42: 345.3927002 | I42: 340.2901001 | J42: 292.5132141 | K42: 330.7575989 | L42: 315.7619934 | M42: 321.9908142 | N42: 4107.646729 | R42: TRAIL D24 | S42: 403.745 | T42: 370.32901 | V42: TRAIL D24 | W42: 295.407 | X42: 375.4317017 | Z42: =R42 -> TRAIL D24 | AA42: 299.98 | AB42: 368.6830139 | AD42: TRAIL D24 | AE42: 999.132 | AF42: 1114.443726 | AL42: TRAIL D24 | AM42: 265.983 | AN42: 350.6669922 | AP42: TRAIL D24 | AQ42: 268.692 | AR42: 356.3945923 | AT42: TRAIL D24 | AU42: 355.335 | AV42: 339.4349976 | AX42: TRAIL D24 | AY42: 890.01 | AZ42: 1046.496582 | BG42: TRAIL D24 | BH42: 335.888 | BI42: 345.3927002 | BK42: TRAIL D24 | BL42: 341.066 | BM42: 340.2901001 | BO42: TRAIL D24 | BP42: 298.026 | BQ42: 292.5132141 | BS42: TRAIL D24 | BT42: 974.98 | BU42: 978.1960144 | CD42: TRAIL D24 | CE42: 322.736 | CF42: 330.7575989 | CH42: TRAIL D24 | CI42: 320.061 | CJ42: 315.7619934 | CL42: TRAIL D24 | CM42: 323.757 | CN42: 321.9908142 | CP42: TRAIL D24 | CQ42: 966.554 | CR42: 968.5104065
A43: TRAILMT D24 | B43: 56.68799973 | C43: 57.6631012 | D43: 56.80130005 | E43: 54.18299866 | F43: 55.21409988 | G43: 52.71900177 | H43: 53.76639938 | I43: 53.08750153 | J43: 45.72679901 | K43: 51.80720139 | L43: 49.54499817 | M43: 50.61059952 | N43: 637.8120003 | R43: TRAILMT D24 | S43: 51.382 | T43: 56.68799973 | V43: TRAILMT D24 | W43: 51.208 | X43: 57.6631012 | Z43: TRAILMT D24 | AA43: 51.99 | AB43: 56.80130005 | AD43: TRAILMT D24 | AE43: 154.58 | AF43: 171.152401 | AL43: TRAILMT D24 | AM43: 49.38 | AN43: 54.18299866 | AP43: TRAILMT D24 | AQ43: 49.088 | AR43: 55.21409988 | AT43: TRAILMT D24 | AU43: 49.323 | AV43: 52.71900177 | AX43: TRAILMT D24 | AY43: 147.791 | AZ43: 162.1161003 | BG43: TRAILMT D24 | BH43: 48.996 | BI43: 53.76639938 | BK43: TRAILMT D24 | BL43: 47.716 | BM43: 53.08750153 | BO43: TRAILMT D24 | BP43: 41.067 | BQ43: 45.72679901 | BS43: TRAILMT D24 | BT43: 137.779 | BU43: 152.5806999 | CD43: TRAILMT D24 | CE43: 50.879 | CF43: 51.80720139 | CH43: TRAILMT D24 | CI43: 51.752 | CJ43: 49.54499817 | CL43: TRAILMT D24 | CM43: 45.933 | CN43: 50.61059952 | CP43: TRAILMT D24 | CQ43: 148.564 | CR43: 151.9627991
A44: WHLA D24 | B44: 0 | C44: 0 | D44: 0 | E44: 0 | F44: 0 | G44: 0 | H44: 30.54430008 | I44: 30.31800079 | J44: 26.24440002 | K44: 29.8715992 | L44: 28.69199944 | M44: 29.4314003 | N44: 175.1016998 | R44: WHLA D24 | S44: 40.487 | T44: 0 | V44: WHLA D24 | W44: 43.626 | X44: 0 | Z44: WHLA D24 | AA44: 41.535 | AB44: 0 | AD44: WHLA D24 | AE44: 125.648 | AF44: 0 | AL44: WHLA D24 | AM44: 39.569 | AN44: 0 | AP44: WHLA D24 | AQ44: 34.634 | AR44: 0 | AT44: WHLA D24 | AU44: 35.102 | AV44: 0 | AX44: WHLA D24 | AY44: 109.305 | AZ44: 0 | BG44: WHLA D24 | BH44: 28.205 | BI44: 30.54430008 | BK44: =R44 -> WHLA D24 | BL44: 39.926 | BM44: 30.31800079 | BO44: WHLA D24 | BP44: 35.479 | BQ44: 26.24440002 | BS44: WHLA D24 | BT44: 103.61 | BU44: 87.1067009 | CD44: WHLA D24 | CE44: 34.014 | CF44: 29.8715992 | CH44: WHLA D24 | CI44: 32.256 | CJ44: 28.69199944 | CL44: WHLA D24 | CM44: 40.307 | CN44: 29.4314003 | CP44: WHLA D24 | CQ44: 106.577 | CR44: 87.99499893
A45: WWILSON D24 | B45: 0 | C45: 0 | D45: 0 | E45: 0 | F45: 0 | G45: 3.288000107 | H45: 3.37590003 | I45: 3.354199886 | J45: 2.906399965 | K45: 3.310800076 | L45: 3.183000088 | M45: 3.267400026 | N45: 22.68570018 | R45: WWILSON D24 | S45: 3.395 | T45: 0 | V45: WWILSON D24 | W45: 3.742 | X45: 0 | Z45: WWILSON D24 | AA45: 3.493 | AB45: 0 | AD45: WWILSON D24 | AE45: 10.63 | AF45: 0 | AL45: WWILSON D24 | AM45: 2.884 | AN45: 0 | AP45: WWILSON D24 | AQ45: 3.94 | AR45: 0 | AT45: WWILSON D24 | AU45: 3.091 | AV45: 3.288000107 | AX45: WWILSON D24 | AY45: 9.915 | AZ45: 3.288000107 | BG45: WWILSON D24 | BH45: 3.559 | BI45: 3.37590003 | BK45: WWILSON D24 | BL45: 4.01 | BM45: 3.354199886 | BO45: WWILSON D24 | BP45: 2.943 | BQ45: 2.906399965 | BS45: WWILSON D24 | BT45: 10.512 | BU45: 9.636499882 | CD45: WWILSON D24 | CE45: 3.248 | CF45: 3.310800076 | CH45: WWILSON D24 | CI45: 3.056 | CJ45: 3.183000088 | CL45: WWILSON D24 | CM45: 2.711 | CN45: 3.267400026 | CP45: WWILSON D24 | CQ45: 9.015 | CR45: 9.76120019
A46: ACEJDMT PC | B46: 3.66899991 | C46: 3.77579999 | D46: 3.757200003 | E46: 3.618000031 | F46: 3.723099947 | G46: 3.585000038 | H46: 3.688999891 | I46: 3.670399904 | J46: 3.186399937 | K46: 3.636300087 | L46: 3.500999928 | M46: 3.602200031 | N46: 43.4133997 | R46: ACEJDMT PC | S46: 3.443 | T46: 3.66899991 | V46: ACEJDMT PC | W46: 3.93 | X46: 3.77579999 | Z46: ACEJDMT PC | AA46: 2.512 | AB46: 3.757200003 | AD46: ACEJDMT PC | AE46: 9.885 | AF46: 11.2019999 | AL46: ACEJDMT PC | AM46: 3.395 | AN46: 3.618000031 | AP46: ACEJDMT PC | AQ46: 3.668 | AR46: 3.723099947 | AT46: ACEJDMT PC | AU46: 3.679 | AV46: 3.585000038 | AX46: ACEJDMT PC | AY46: 10.742 | AZ46: 10.92610002 | BG46: ACEJDMT PC | BH46: 3.892 | BI46: 3.688999891 | BK46: ACEJDMT PC | BL46: 3.759 | BM46: 3.670399904 | BO46: ACEJDMT PC | BP46: 3.452 | BQ46: 3.186399937 | BS46: ACEJDMT PC | BT46: 11.103 | BU46: 10.54579973 | CD46: ACEJDMT PC | CE46: 3.306 | CF46: 3.636300087 | CH46: ACEJDMT PC | CI46: 2.168 | CJ46: 3.500999928 | CL46: ACEJDMT PC | CM46: 3.51 | CN46: 3.602200031 | CP46: ACEJDMT PC | CQ46: 8.984 | CR46: 10.73950005
A47: BKSPUNT6MTPC | B47: 2.714999914 | C47: 2.793100119 | D47: 2.780699968 | E47: 2.678999901 | F47: 2.755899906 | G47: 2.654999971 | H47: 2.731100082 | I47: 2.715600014 | J47: 2.357599974 | K47: 2.690799952 | L47: 2.592000008 | M47: 2.665999889 | N47: 32.1317997 | R47: BKSPUNT6MTPC | S47: 5.84 | T47: 2.714999914 | V47: BKSPUNT6MTPC | W47: 3.016 | X47: 2.793100119 | Z47: BKSPUNT6MTPC | AA47: 2.403 | AB47: 2.780699968 | AD47: BKSPUNT6MTPC | AE47: 11.259 | AF47: 8.288800001 | AL47: BKSPUNT6MTPC | AM47: 0 | AN47: 2.678999901 | AP47: BKSPUNT6MTPC | AQ47: 0 | AR47: 2.755899906 | AT47: BKSPUNT6MTPC | AU47: 0 | AV47: 2.654999971 | AX47: BKSPUNT6MTPC | AY47: 0 | AZ47: 8.089899778 | BG47: BKSPUNT6MTPC | BH47: 0 | BI47: 2.731100082 | BK47: BKSPUNT6MTPC | BL47: 0 | BM47: 2.715600014 | BO47: BKSPUNT6MTPC | BP47: 0 | BQ47: 2.357599974 | BS47: BKSPUNT6MTPC | BT47: 0 | BU47: 7.80430007 | CD47: BKSPUNT6MTPC | CE47: 0 | CF47: 2.690799952 | CH47: BKSPUNT6MTPC | CI47: 0 | CJ47: 2.592000008 | CL47: BKSPUNT6MTPC | CM47: 0 | CN47: 2.665999889 | CP47: BKSPUNT6MTPC | CQ47: 0 | CR47: 7.948799849
A48: BRFM PC | B48: 0.1410000026 | C48: 0.1456999928 | D48: 0.1456999928 | E48: 0.1379999965 | F48: 0.1425999999 | G48: 0.1379999965 | H48: 0.139500007 | I48: 0.139500007 | J48: 0.1203999966 | K48: 0.1363999993 | L48: 0.1319999993 | M48: 0.1363999993 | N48: 1.65519999 | R48: BRFM PC | S48: 0.161 | T48: 0.1410000026 | V48: BRFM PC | W48: 0.165 | X48: 0.1456999928 | Z48: BRFM PC | AA48: 0.154 | AB48: 0.1456999928 | AD48: BRFM PC | AE48: 0.48 | AF48: 0.4323999882 | AL48: BRFM PC | AM48: 0.136 | AN48: 0.1379999965 | AP48: BRFM PC | AQ48: 0.172 | AR48: 0.1425999999 | AT48: BRFM PC | AU48: 0.14 | AV48: 0.1379999965 | AX48: BRFM PC | AY48: 0.448 | AZ48: 0.418599993 | BG48: BRFM PC | BH48: 0.154 | BI48: 0.139500007 | BK48: BRFM PC | BL48: 0.17 | BM48: 0.139500007 | BO48: BRFM PC | BP48: 0.146 | BQ48: 0.1203999966 | BS48: BRFM PC | BT48: 0.47 | BU48: 0.3994000107 | CD48: BRFM PC | CE48: 0.159 | CF48: 0.1363999993 | CH48: BRFM PC | CI48: 0.132 | CJ48: 0.1319999993 | CL48: BRFM PC | CM48: 0.157 | CN48: 0.1363999993 | CP48: BRFM PC | CQ48: 0.448 | CR48: 0.4047999978
A49: BRFQ PC | B49: 9.687000275 | C49: 9.954099655 | D49: 9.898300171 | E49: 9.527999878 | F49: 9.792900085 | G49: 9.425999641 | H49: 9.6875 | I49: 9.634799957 | J49: 8.357999802 | K49: 9.532500267 | L49: 9.177000046 | M49: 9.433300018 | N49: 114.1093998 | R49: BRFQ PC | S49: 10.736 | T49: 9.687000275 | V49: BRFQ PC | W49: 12.339 | X49: 9.954099655 | Z49: BRFQ PC | AA49: 9.308 | AB49: 9.898300171 | AD49: BRFQ PC | AE49: 32.383 | AF49: 29.5394001 | AL49: BRFQ PC | AM49: 13.003 | AN49: 9.527999878 | AP49: BRFQ PC | AQ49: 10.133 | AR49: 9.792900085 | AT49: BRFQ PC | AU49: 11.385 | AV49: 9.425999641 | AX49: BRFQ PC | AY49: 34.521 | AZ49: 28.7468996 | BB49: IRP Variance | BC49: Docket No. 17-057-12 | BD49: Dominion Energy Utah | BG49: BRFQ PC | BH49: 9.767 | BI49: 9.6875 | BK49: BRFQ PC | BL49: 8.82 | BM49: 9.634799957 | BO49: BRFQ PC | BP49: 8.334 | BQ49: 8.357999802 | BS49: BRFQ PC | BT49: 26.921 | BU49: 27.68029976 | CD49: BRFQ PC | CE49: 9.825 | CF49: 9.532500267 | CH49: BRFQ PC | CI49: 12.161 | CJ49: 9.177000046 | CL49: BRFQ PC | CM49: 11.953 | CN49: 9.433300018 | CP49: BRFQ PC | CQ49: 33.939 | CR49: 28.14280033
A50: BRFQMT PC | B50: 3.285000086 | C50: 3.369699955 | D50: 3.34800005 | E50: 3.21600008 | F50: 3.301500082 | G50: 3.174000025 | H50: 3.255000114 | I50: 3.233299971 | J50: 2.799999952 | K50: 3.189899921 | L50: 3.065999985 | M50: 3.143399954 | N50: 38.38180017 | R50: BRFQMT PC | S50: 6.549 | T50: 3.285000086 | V50: BRFQMT PC | W50: 6.742 | X50: 3.369699955 | Z50: BRFQMT PC | AA50: 7.094 | AB50: 3.34800005 | AD50: BRFQMT PC | AE50: 20.385 | AF50: 10.00270009 | AL50: BRFQMT PC | AM50: 2.173 | AN50: 3.21600008 | AP50: BRFQMT PC | AQ50: 3.85 | AR50: 3.301500082 | AT50: BRFQMT PC | AU50: 2.519 | AV50: 3.174000025 | AX50: BRFQMT PC | AY50: 8.542 | AZ50: 9.691500187 | BC50: 0 | BD50: 0 | BG50: BRFQMT PC | BH50: 2.987 | BI50: 3.255000114 | BK50: BRFQMT PC | BL50: 3.162 | BM50: 3.233299971 | BO50: BRFQMT PC | BP50: 4.052 | BQ50: 2.799999952 | BS50: BRFQMT PC | BT50: 10.201 | BU50: 9.288300037 | CD50: BRFQMT PC | CE50: 4.238 | CF50: 3.189899921 | CH50: BRFQMT PC | CI50: 4.19 | CJ50: 3.065999985 | CL50: BRFQMT PC | CM50: 4.452 | CN50: 3.143399954 | CP50: BRFQMT PC | CQ50: 12.88 | CR50: 9.39929986
A51: BRFW PC | B51: 9.75 | C51: 10.01920033 | D51: 9.963399887 | E51: 9.590999603 | F51: 9.85490036 | G51: 9.486000061 | H51: 9.746399879 | I51: 9.693699837 | J51: 8.408399582 | K51: 9.588299751 | L51: 9.227999687 | M51: 9.482899666 | N51: 114.8121986 | R51: BRFW PC | S51: 10.184 | T51: 9.75 | V51: BRFW PC | W51: 11.794 | X51: 10.01920033 | Z51: BRFW PC | AA51: 11.536 | AB51: 9.963399887 | AD51: BRFW PC | AE51: 33.514 | AF51: 29.73260021 | AH51: ='Ex 1 HDD'!I3 -> IRP Variance Exhibit | AI51: ='Ex 1 HDD'!I2 -> Docket No. 20-057-02 | AJ51: ='Ex 1 HDD'!I1 -> Dominion Energy Utah | AL51: BRFW PC | AM51: 10.526 | AN51: 9.590999603 | AP51: BRFW PC | AQ51: 10.788 | AR51: 9.85490036 | AT51: BRFW PC | AU51: 9.83 | AV51: 9.486000061 | AX51: BRFW PC | AY51: 31.144 | AZ51: 28.93190002 | BC51: 0 | BD51: 0 | BG51: BRFW PC | BH51: 9.651 | BI51: 9.746399879 | BK51: BRFW PC | BL51: 9.492 | BM51: 9.693699837 | BO51: BRFW PC | BP51: 8.116 | BQ51: 8.408399582 | BS51: BRFW PC | BT51: 27.259 | BU51: 27.8484993 | CD51: BRFW PC | CE51: 8.998 | CF51: 9.588299751 | CH51: BRFW PC | CI51: 11.069 | CJ51: 9.227999687 | CL51: BRFW PC | CM51: 10.921 | CN51: 9.482899666 | CP51: BRFW PC | CQ51: 30.988 | CR51: 28.2991991
A52: BRUFF MT | B52: 4.835999966 | C52: 4.966199875 | D52: 4.935200214 | E52: 4.745999813 | F52: 4.87319994 | G52: 4.68900013 | H52: 4.81430006 | I52: 4.783299923 | J52: 4.146800041 | K52: 4.724400043 | L52: 4.545000076 | M52: 4.665500164 | N52: 56.72490025 | R52: BRUFF MT | S52: 9.123 | T52: 4.835999966 | V52: BRUFF MT | W52: 9.647 | X52: 4.966199875 | Z52: BRUFF MT | AA52: 8.882 | AB52: 4.935200214 | AD52: BRUFF MT | AE52: 27.652 | AF52: 14.73740005 | AL52: BRUFF MT | AM52: 8.852 | AN52: 4.745999813 | AP52: BRUFF MT | AQ52: 8.561 | AR52: 4.87319994 | AT52: BRUFF MT | AU52: 8.564 | AV52: 4.68900013 | AX52: BRUFF MT | AY52: 25.977 | AZ52: 14.30819988 | BC52: 0 | BD52: 0 | BG52: BRUFF MT | BH52: 8.368 | BI52: 4.81430006 | BK52: BRUFF MT | BL52: 7.971 | BM52: 4.783299923 | BO52: BRUFF MT | BP52: 8.322 | BQ52: 4.146800041 | BS52: BRUFF MT | BT52: 24.661 | BU52: 13.74440002 | BV52: QGC Variance Exhibit | BW52: Docket No. 15-057-07 | BX52: Questar Gas Company | CD52: BRUFF MT | CE52: 8.717 | CF52: 4.724400043 | CH52: BRUFF MT | CI52: 7.723 | CJ52: 4.545000076 | CL52: BRUFF MT | CM52: 8.218 | CN52: 4.665500164 | CP52: BRUFF MT | CQ52: 24.658 | CR52: 13.93490028
A53: CBFR PC | B53: 57.91500092 | C53: 59.31230164 | D53: 58.78839874 | E53: 56.39400101 | F53: 57.76850128 | G53: 55.42499924 | H53: 56.78269958 | I53: 56.29909897 | J53: 48.68360138 | K53: 55.3567009 | L53: 53.12099838 | M53: 54.43600082 | N53: 670.2823029 | R53: CBFR PC | S53: 59.744 | T53: 57.91500092 | V53: CBFR PC | W53: 62.123 | X53: 59.31230164 | Z53: CBFR PC | AA53: 61.665 | AB53: 58.78839874 | AD53: CBFR PC | AE53: 183.532 | AF53: 176.0157013 | AL53: CBFR PC | AM53: 55.5 | AN53: 56.39400101 | AP53: CBFR PC | AQ53: 67.191 | AR53: 57.76850128 | AT53: CBFR PC | AU53: 58.116 | AV53: 55.42499924 | AX53: CBFR PC | AY53: 180.807 | AZ53: 169.5875015 | BC53: 0 | BD53: 0 | BG53: CBFR PC | BH53: 57.929 | BI53: 56.78269958 | BK53: CBFR PC | BL53: 60.341 | BM53: 56.29909897 | BO53: CBFR PC | BP53: 56.548 | BQ53: 48.68360138 | BS53: CBFR PC | BT53: 174.818 | BU53: 161.7653999 | CD53: CBFR PC | CE53: 61.236 | CF53: 55.3567009 | CH53: CBFR PC | CI53: 59.396 | CJ53: 53.12099838 | CL53: CBFR PC | CM53: 37.701 | CN53: 54.43600082 | CP53: CBFR PC | CQ53: 158.333 | CR53: 162.9137001
A54: CCRUNIT PC | B54: 50.97600174 | C54: 52.28150177 | D54: 51.89400101 | E54: 49.84500122 | F54: 51.12829971 | G54: 49.11299896 | H54: 50.37810135 | I54: 50.00920105 | J54: 43.29359818 | K54: 49.28379822 | L54: 47.34899902 | M54: 48.57699966 | N54: 594.1285019 | R54: CCRUNIT PC | S54: 49.077 | T54: 50.97600174 | V54: CCRUNIT PC | W54: 51.611 | X54: 52.28150177 | Z54: CCRUNIT PC | AA54: 47.936 | AB54: 51.89400101 | AD54: CCRUNIT PC | AE54: 148.624 | AF54: 155.1515045 | AL54: CCRUNIT PC | AM54: 48.207 | AN54: 49.84500122 | AP54: CCRUNIT PC | AQ54: 45.946 | AR54: 51.12829971 | AT54: CCRUNIT PC | AU54: 47.796 | AV54: 49.11299896 | AX54: CCRUNIT PC | AY54: 141.949 | AZ54: 150.0862999 | BC54: 0 | BD54: 0 | BG54: CCRUNIT PC | BH54: 44.122 | BI54: 50.37810135 | BK54: CCRUNIT PC | BL54: 46.357 | BM54: 50.00920105 | BO54: CCRUNIT PC | BP54: 40.672 | BQ54: 43.29359818 | BS54: CCRUNIT PC | BT54: 131.151 | BU54: 143.6809006 | CD54: CCRUNIT PC | CE54: 46.197 | CF54: 49.28379822 | CH54: CCRUNIT PC | CI54: 46.552 | CJ54: 47.34899902 | CL54: CCRUNIT PC | CM54: 49.463 | CN54: 48.57699966 | CP54: CCRUNIT PC | CQ54: 142.212 | CR54: 145.2097969
A55: CCRUNITMT PC | B55: 16.56299973 | C55: 17.00349998 | D55: 16.88879967 | E55: 16.23600006 | F55: 16.66869926 | G55: 16.02300072 | H55: 16.44860077 | I55: 16.34009933 | J55: 14.15680027 | K55: 16.12619972 | L55: 15.5010004 | M55: 15.91230011 | N55: 193.868 | R55: CCRUNITMT PC | S55: 13.841 | T55: 16.56299973 | V55: CCRUNITMT PC | W55: 14.451 | X55: 17.00349998 | Z55: CCRUNITMT PC | AA55: 16.351 | AB55: 16.88879967 | AD55: CCRUNITMT PC | AE55: 44.643 | AF55: 50.45529938 | AL55: CCRUNITMT PC | AM55: =IFERROR(VLOOKUP(AL55,$AL$116:$AM$206,2,FALSE),0) -> 15.943 | AN55: 16.23600006 | AP55: CCRUNITMT PC | AQ55: =IFERROR(VLOOKUP(AP55,$AP$116:$AQ$215,2,FALSE),0) -> 14.006 | AR55: 16.66869926 | AT55: CCRUNITMT PC | AU55: =IFERROR(VLOOKUP(AT55,$AT$116:$AU$208,2,FALSE),0) -> 15.621 | AV55: 16.02300072 | AX55: CCRUNITMT PC | AY55: 45.57 | AZ55: 48.92770004 | BC55: 0 | BD55: 0 | BG55: CCRUNITMT PC | BH55: =IFERROR(VLOOKUP($BG55,$BG$114:$BH$209,2,FALSE),0) -> 13.732 | BI55: 16.44860077 | BK55: CCRUNITMT PC | BL55: =IFERROR(VLOOKUP($BK55,$BK$114:$BL$209,2,FALSE),0) -> 14.766 | BM55: 16.34009933 | BO55: CCRUNITMT PC | BP55: =IFERROR(VLOOKUP($BO55,$BO$114:$BP$209,2,FALSE),0) -> 14.264 | BQ55: 14.15680027 | BS55: CCRUNITMT PC | BT55: 42.762 | BU55: 46.94550037 | CD55: CCRUNITMT PC | CE55: 15.891 | CF55: 16.12619972 | CH55: CCRUNITMT PC | CI55: 14.979 | CJ55: 15.5010004 | CL55: CCRUNITMT PC | CM55: 16.653 | CN55: 15.91230011 | CP55: CCRUNITMT PC | CQ55: 47.523 | CR55: 47.53950024
A56: CHBTC1 MT PC | B56: 19.68899918 | C56: 19.88030052 | D56: 19.43079948 | E56: 18.375 | F56: 18.55970001 | G56: 17.55599976 | H56: 17.73200035 | I56: 17.33519936 | J56: 14.77840042 | K56: 16.56949997 | L56: 15.67800045 | M56: 15.8409996 | N56: 211.4248991 | R56: CHBTC1 MT PC | S56: 19.572 | T56: 19.68899918 | V56: CHBTC1 MT PC | W56: 13.359 | X56: 19.88030052 | Z56: CHBTC1 MT PC | AA56: 25.3 | AB56: 19.43079948 | AD56: CHBTC1 MT PC | AE56: 58.231 | AF56: 59.00009918 | AL56: CHBTC1 MT PC | AM56: =IFERROR(VLOOKUP(AL56,$AL$116:$AM$206,2,FALSE),0) -> 20.82 | AN56: 18.375 | AP56: CHBTC1 MT PC | AQ56: =IFERROR(VLOOKUP(AP56,$AP$116:$AQ$215,2,FALSE),0) -> 22.003 | AR56: 18.55970001 | AT56: CHBTC1 MT PC | AU56: =IFERROR(VLOOKUP(AT56,$AT$116:$AU$208,2,FALSE),0) -> 20.712 | AV56: 17.55599976 | AX56: CHBTC1 MT PC | AY56: 63.535 | AZ56: 54.49069977 | BG56: CHBTC1 MT PC | BH56: =IFERROR(VLOOKUP($BG56,$BG$114:$BH$209,2,FALSE),0) -> 23.458 | BI56: 17.73200035 | BK56: CHBTC1 MT PC | BL56: =IFERROR(VLOOKUP($BK56,$BK$114:$BL$209,2,FALSE),0) -> 22.693 | BM56: 17.33519936 | BO56: CHBTC1 MT PC | BP56: =IFERROR(VLOOKUP($BO56,$BO$114:$BP$209,2,FALSE),0) -> 19.572 | BQ56: 14.77840042 | BS56: CHBTC1 MT PC | BT56: 65.723 | BU56: 49.84560013 | CD56: CHBTC1 MT PC | CE56: 21.739 | CF56: 16.56949997 | CH56: CHBTC1 MT PC | CI56: 20.155 | CJ56: 15.67800045 | CL56: CHBTC1 MT PC | CM56: 19.84 | CN56: 15.8409996 | CP56: CHBTC1 MT PC | CQ56: 61.734 | CR56: 48.08850002
A57: CHBTCAT1 PC | B57: 46.02000046 | C57: 47.16960144 | D57: 46.79140091 | E57: 44.91899872 | F57: 46.04430008 | G57: 44.20199966 | H57: 45.30960083 | I57: 44.95000076 | J57: 38.8891983 | K57: 44.24010086 | L57: 42.47399902 | M57: 43.54570007 | N57: 534.5549011 | R57: CHBTCAT1 PC | S57: 36.562 | T57: 46.02000046 | V57: CHBTCAT1 PC | W57: 41.836 | X57: 47.16960144 | Z57: CHBTCAT1 PC | AA57: 31.399 | AB57: 46.79140091 | AD57: CHBTCAT1 PC | AE57: 109.797 | AF57: 139.9810028 | AL57: CHBTCAT1 PC | AM57: 30.81 | AN57: 44.91899872 | AP57: CHBTCAT1 PC | AQ57: 31.559 | AR57: 46.04430008 | AT57: CHBTCAT1 PC | AU57: 40.977 | AV57: 44.20199966 | AX57: CHBTCAT1 PC | AY57: 103.346 | AZ57: 135.1652985 | BB57: 9.1 | BG57: CHBTCAT1 PC | BH57: 41.236 | BI57: 45.30960083 | BK57: CHBTCAT1 PC | BL57: 40.918 | BM57: 44.95000076 | BO57: CHBTCAT1 PC | BP57: 41.624 | BQ57: 38.8891983 | BS57: CHBTCAT1 PC | BT57: 123.778 | BU57: 129.1487999 | CD57: =A57 -> CHBTCAT1 PC | CE57: 35.675 | CF57: =IFERROR(VLOOKUP($A57,$A$6:$M$119,11,FALSE),"") -> 44.24010086 | CH57: =A57 -> CHBTCAT1 PC | CI57: 34.963 | CJ57: 42.47399902 | CL57: =A57 -> CHBTCAT1 PC | CM57: 37.314 | CN57: =IFERROR(VLOOKUP($A57,$A$6:$M$119,13,FALSE),"") -> 43.54570007 | CP57: CHBTCAT1 PC | CQ57: 107.952 | CR57: 130.2598
A58: CHBTCAT2 PC | B58: 2.403000116 | C58: 2.461400032 | D58: 2.439699888 | E58: 2.342999935 | F58: 2.399399996 | G58: 2.301000118 | H58: 2.359100103 | I58: 2.33739996 | J58: 2.021600008 | K58: 2.297100067 | L58: 2.204999924 | M58: 2.256799936 | N58: 27.82450008 | R58: CHBTCAT2 PC | S58: 2.041 | T58: 2.403000116 | V58: CHBTCAT2 PC | W58: 2.363 | X58: 2.461400032 | Z58: CHBTCAT2 PC | AA58: 2.435 | AB58: 2.439699888 | AD58: CHBTCAT2 PC | AE58: 6.839 | AF58: 7.304100037 | AL58: CHBTCAT2 PC | AM58: 2.265 | AN58: 2.342999935 | AP58: CHBTCAT2 PC | AQ58: 2.073 | AR58: 2.399399996 | AT58: CHBTCAT2 PC | AU58: 1.916 | AV58: 2.301000118 | AX58: CHBTCAT2 PC | AY58: 6.254 | AZ58: 7.043400049 | BG58: CHBTCAT2 PC | BH58: 1.759 | BI58: 2.359100103 | BK58: CHBTCAT2 PC | BL58: 1.777 | BM58: 2.33739996 | BO58: CHBTCAT2 PC | BP58: 1.608 | BQ58: 2.021600008 | BS58: CHBTCAT2 PC | BT58: 5.144 | BU58: 6.718100071 | CD58: CHBTCAT2 PC | CE58: 1.908 | CF58: 2.297100067 | CH58: CHBTCAT2 PC | CI58: 1.835 | CJ58: 2.204999924 | CL58: CHBTCAT2 PC | CM58: 1.97 | CN58: 2.256799936 | CP58: CHBTCAT2 PC | CQ58: 5.713 | CR58: 6.758899927
A59: DRYPINY6 PC | B59: 1.082999945 | C59: 1.116000056 | D59: 1.109799981 | E59: 1.07099998 | F59: 1.100499988 | G59: 1.062000036 | H59: 1.091199994 | I59: 1.088099957 | J59: 0.943599999 | K59: 1.078799963 | L59: 1.037999988 | M59: 1.069499969 | N59: 12.85149986 | R59: DRYPINY6 PC | S59: 1.134 | T59: 1.082999945 | V59: DRYPINY6 PC | W59: 1.108 | X59: 1.116000056 | Z59: DRYPINY6 PC | AA59: 1.137 | AB59: 1.109799981 | AD59: DRYPINY6 PC | AE59: 3.379 | AF59: 3.308799982 | AH59: 9.1 | AL59: DRYPINY6 PC | AM59: 1.108 | AN59: 1.07099998 | AP59: DRYPINY6 PC | AQ59: 1.173 | AR59: 1.100499988 | AT59: DRYPINY6 PC | AU59: 0.987 | AV59: 1.062000036 | AX59: DRYPINY6 PC | AY59: 3.268 | AZ59: 3.233500004 | BG59: DRYPINY6 PC | BH59: 1.056 | BI59: 1.091199994 | BK59: DRYPINY6 PC | BL59: 0.934 | BM59: 1.088099957 | BO59: DRYPINY6 PC | BP59: 0.71 | BQ59: 0.943599999 | BS59: DRYPINY6 PC | BT59: 2.7 | BU59: 3.12289995 | CD59: DRYPINY6 PC | CE59: 0.907 | CF59: 1.078799963 | CH59: DRYPINY6 PC | CI59: 0.949 | CJ59: 1.037999988 | CL59: DRYPINY6 PC | CM59: 0.986 | CN59: 1.069499969 | CP59: DRYPINY6 PC | CQ59: 2.842 | CR59: 3.18629992
A60: DRYPINYU PC | B60: 12.26399994 | C60: 12.59220028 | D60: 12.51469994 | E60: 12.03600025 | F60: 12.3597002 | G60: 11.88599968 | H60: 12.20779991 | I60: 12.13029957 | J60: 10.51399994 | K60: 11.98149967 | L60: 11.52299976 | M60: 11.83269978 | N60: 143.8418989 | R60: DRYPINYU PC | S60: 9.202 | T60: 12.26399994 | V60: DRYPINYU PC | W60: 10.166 | X60: 12.59220028 | Z60: DRYPINYU PC | AA60: 9.829 | AB60: 12.51469994 | AD60: DRYPINYU PC | AE60: 29.197 | AF60: 37.37090015 | AL60: DRYPINYU PC | AM60: 9.876 | AN60: 12.03600025 | AP60: DRYPINYU PC | AQ60: 9.368 | AR60: 12.3597002 | AT60: DRYPINYU PC | AU60: 9.945 | AV60: 11.88599968 | AX60: DRYPINYU PC | AY60: 29.189 | AZ60: 36.28170013 | BG60: DRYPINYU PC | BH60: 10.01 | BI60: 12.20779991 | BK60: DRYPINYU PC | BL60: 9.881 | BM60: 12.13029957 | BO60: DRYPINYU PC | BP60: 7.835 | BQ60: 10.51399994 | BS60: DRYPINYU PC | BT60: 27.726 | BU60: 34.85209942 | CD60: DRYPINYU PC | CE60: 9.082 | CF60: 11.98149967 | CH60: DRYPINYU PC | CI60: 9.959 | CJ60: 11.52299976 | CL60: DRYPINYU PC | CM60: 10.562 | CN60: 11.83269978 | CP60: DRYPINYU PC | CQ60: 29.603 | CR60: 35.33719921
A61: FOGARTY PC | B61: 0.4740000069 | C61: 0.4866999984 | D61: 0.4805000126 | E61: 0.4620000124 | F61: 0.4742999971 | G61: 0.4530000091 | H61: 0.4650000036 | I61: 0.4618999958 | J61: 0.3975999951 | K61: 0.4526000023 | L61: 0.4350000024 | M61: 0.4463999867 | N61: 5.489000022 | R61: FOGARTY PC | S61: 0 | T61: 0.4740000069 | V61: FOGARTY PC | W61: 1.249 | X61: 0.4866999984 | Z61: FOGARTY PC | AA61: 1.108 | AB61: 0.4805000126 | AD61: FOGARTY PC | AE61: 2.357 | AF61: 1.441200018 | AL61: FOGARTY PC | AM61: 0.828 | AN61: 0.4620000124 | AP61: FOGARTY PC | AQ61: 0.904 | AR61: 0.4742999971 | AT61: FOGARTY PC | AU61: 0 | AV61: 0.4530000091 | AX61: FOGARTY PC | AY61: 1.732 | AZ61: 1.389300019 | BG61: FOGARTY PC | BH61: 0 | BI61: 0.4650000036 | BK61: FOGARTY PC | BL61: 0 | BM61: 0.4618999958 | BO61: FOGARTY PC | BP61: 0 | BQ61: 0.3975999951 | BS61: FOGARTY PC | BT61: 0 | BU61: 1.324499995 | BW61: 9.1 | CD61: FOGARTY PC | CE61: 0 | CF61: 0.4526000023 | CH61: FOGARTY PC | CI61: 0 | CJ61: 0.4350000024 | CL61: FOGARTY PC | CM61: 0.884 | CN61: 0.4463999867 | CP61: FOGARTY PC | CQ61: 0.884 | CR61: 1.333999991
A62: HWA DEEP PC | B62: 1.121999979 | C62: 1.150099993 | D62: 1.143900037 | E62: 1.09800005 | F62: 1.128399968 | G62: 1.085999966 | H62: 1.112900019 | I62: 1.106699944 | J62: 0.9575999975 | K62: 1.091199994 | L62: 1.049999952 | M62: 1.078799963 | N62: 13.12559986 | R62: HWA DEEP PC | S62: 0.197 | T62: 1.121999979 | V62: HWA DEEP PC | W62: 0.133 | X62: 1.150099993 | Z62: HWA DEEP PC | AA62: 0 | AB62: 1.143900037 | AD62: HWA DEEP PC | AE62: 0.33 | AF62: 3.416000009 | AL62: HWA DEEP PC | AM62: 0.108 | AN62: 1.09800005 | AP62: HWA DEEP PC | AQ62: 0.268 | AR62: 1.128399968 | AT62: HWA DEEP PC | AU62: 0.3 | AV62: 1.085999966 | AX62: HWA DEEP PC | AY62: 0.676 | AZ62: 3.312399983 | BG62: HWA DEEP PC | BH62: 0.43 | BI62: 1.112900019 | BK62: HWA DEEP PC | BL62: 0.113 | BM62: 1.106699944 | BO62: HWA DEEP PC | BP62: 0.095 | BQ62: 0.9575999975 | BS62: HWA DEEP PC | BT62: 0.638 | BU62: 3.17719996 | CD62: HWA DEEP PC | CE62: 0.222 | CF62: 1.091199994 | CH62: HWA DEEP PC | CI62: 0.14 | CJ62: 1.049999952 | CL62: HWA DEEP PC | CM62: 0.212 | CN62: 1.078799963 | CP62: HWA DEEP PC | CQ62: 0.574 | CR62: 3.219999909
A63: HWPL1&3MTPC | B63: 6.414000034 | C63: 6.578199863 | D63: 6.528600216 | E63: 6.269999981 | F63: 6.429399967 | G63: 6.173999786 | H63: 6.330200195 | I63: 6.283699989 | J63: 5.437600136 | K63: 6.187600136 | L63: 5.94299984 | M63: 6.094600201 | N63: 74.67090034 | R63: HWPL1&3MTPC | S63: 4.412 | T63: 6.414000034 | V63: HWPL1&3MTPC | W63: 8.21 | X63: 6.578199863 | Z63: HWPL1&3MTPC | AA63: 6.123 | AB63: 6.528600216 | AD63: HWPL1&3MTPC | AE63: 18.745 | AF63: 19.52080011 | AL63: HWPL1&3MTPC | AM63: 6.568 | AN63: 6.269999981 | AP63: HWPL1&3MTPC | AQ63: 7.275 | AR63: 6.429399967 | AT63: HWPL1&3MTPC | AU63: 6.867 | AV63: 6.173999786 | AX63: HWPL1&3MTPC | AY63: 20.71 | AZ63: 18.87339973 | BG63: HWPL1&3MTPC | BH63: 7.61 | BI63: 6.330200195 | BK63: HWPL1&3MTPC | BL63: 7.243 | BM63: 6.283699989 | BO63: HWPL1&3MTPC | BP63: 6.465 | BQ63: 5.437600136 | BS63: HWPL1&3MTPC | BT63: 21.318 | BU63: 18.05150032 | CD63: HWPL1&3MTPC | CE63: 6.901 | CF63: 6.187600136 | CH63: HWPL1&3MTPC | CI63: 6.702 | CJ63: 5.94299984 | CL63: HWPL1&3MTPC | CM63: 6.349 | CN63: 6.094600201 | CP63: HWPL1&3MTPC | CQ63: 19.952 | CR63: 18.22520018
A64: HWPLT1&3 PC | B64: 55.72200012 | C64: 57.18259811 | D64: 56.78889847 | E64: 54.58200073 | F64: 56.01699829 | G64: 53.8409996 | H64: 55.25749969 | I64: 54.88240051 | J64: 47.53839874 | K64: 54.14459991 | L64: 52.04399872 | M64: 53.4192009 | N64: 651.4195938 | R64: HWPLT1&3 PC | S64: 56.234 | T64: 55.72200012 | V64: HWPLT1&3 PC | W64: 25.878 | X64: 57.18259811 | Z64: =R64 -> HWPLT1&3 PC | AA64: 14.04 | AB64: 56.78889847 | AD64: HWPLT1&3 PC | AE64: 96.152 | AF64: 169.6934967 | AL64: HWPLT1&3 PC | AM64: 13.754 | AN64: 54.58200073 | AP64: HWPLT1&3 PC | AQ64: 17.86 | AR64: 56.01699829 | AT64: HWPLT1&3 PC | AU64: 66.181 | AV64: 53.8409996 | AX64: HWPLT1&3 PC | AY64: 97.795 | AZ64: 164.4399986 | BG64: HWPLT1&3 PC | BH64: 70.792 | BI64: 55.25749969 | BK64: HWPLT1&3 PC | BL64: 68.179 | BM64: 54.88240051 | BO64: HWPLT1&3 PC | BP64: 58.409 | BQ64: 47.53839874 | BS64: HWPLT1&3 PC | BT64: 197.38 | BU64: 157.678299 | CD64: HWPLT1&3 PC | CE64: 57.178 | CF64: 54.14459991 | CH64: HWPLT1&3 PC | CI64: 49.181 | CJ64: 52.04399872 | CL64: HWPLT1&3 PC | CM64: 59.79 | CN64: 53.4192009 | CP64: HWPLT1&3 PC | CQ64: 166.149 | CR64: 159.6077995
A65: HWPLT2 PC | B65: 0.8519999981 | C65: 0.8711000085 | D65: 0.8648999929 | E65: 0.8280000091 | F65: 0.8493999839 | G65: 0.8159999847 | H65: 0.8029000163 | I65: 0.7967000008 | J65: 0.6887999773 | K65: 0.7843000293 | L65: 0.753000021 | M65: 0.7749999762 | N65: 9.682099998 | R65: HWPLT2 PC | S65: 0.617 | T65: 0.8519999981 | V65: HWPLT2 PC | W65: 1.079 | X65: 0.8711000085 | Z65: HWPLT2 PC | AA65: 0.988 | AB65: 0.8648999929 | AD65: HWPLT2 PC | AE65: 2.684 | AF65: 2.588 | AL65: HWPLT2 PC | AM65: 1.427 | AN65: 0.8280000091 | AP65: HWPLT2 PC | AQ65: 1.383 | AR65: 0.8493999839 | AT65: HWPLT2 PC | AU65: 0.771 | AV65: 0.8159999847 | AX65: HWPLT2 PC | AY65: 3.581 | AZ65: 2.493399978 | BG65: HWPLT2 PC | BH65: 2.277 | BI65: 0.8029000163 | BK65: HWPLT2 PC | BL65: 0.731 | BM65: 0.7967000008 | BO65: HWPLT2 PC | BP65: 0.692 | BQ65: 0.6887999773 | BS65: HWPLT2 PC | BT65: 3.7 | BU65: 2.288399994 | CD65: HWPLT2 PC | CE65: 0.846 | CF65: 0.7843000293 | CH65: HWPLT2 PC | CI65: 0.811 | CJ65: 0.753000021 | CL65: HWPLT2 PC | CM65: 0.853 | CN65: 0.7749999762 | CP65: HWPLT2 PC | CQ65: 2.51 | CR65: 2.312300026
A66: ISLAND PC | B66: 0.6779999733 | C66: 0.6974999905 | D66: 0.6912999749 | E66: 0.6660000086 | F66: 0.685100019 | G66: 0.6570000052 | H66: 0.6758000255 | I66: 0.6726999879 | J66: 0.5824000239 | K66: 0.6633999944 | L66: 0.6389999986 | M66: 0.6541000009 | N66: 7.962300003 | R66: ISLAND PC | S66: 0.579 | T66: 0.6779999733 | V66: ISLAND PC | W66: 0.56 | X66: 0.6974999905 | Z66: ISLAND PC | AA66: 0.607 | AB66: 0.6912999749 | AD66: ISLAND PC | AE66: 1.746 | AF66: 2.066799939 | AL66: ISLAND PC | AM66: 0.583 | AN66: 0.6660000086 | AP66: ISLAND PC | AQ66: 0.732 | AR66: 0.685100019 | AT66: ISLAND PC | AU66: 0.724 | AV66: 0.6570000052 | AX66: ISLAND PC | AY66: 2.039 | AZ66: 2.008100033 | BG66: ISLAND PC | BH66: 0.659 | BI66: 0.6758000255 | BK66: ISLAND PC | BL66: 0.642 | BM66: 0.6726999879 | BO66: ISLAND PC | BP66: 0.611 | BQ66: 0.5824000239 | BS66: ISLAND PC | BT66: 1.912 | BU66: 1.930900037 | CD66: ISLAND PC | CE66: 0.589 | CF66: 0.6633999944 | CH66: ISLAND PC | CI66: 0.804 | CJ66: 0.6389999986 | CL66: ISLAND PC | CM66: 0.662 | CN66: 0.6541000009 | CP66: ISLAND PC | CQ66: 2.055 | CR66: 1.956499994
A67: JNSNRDG PC | B67: 2.436000109 | C67: 2.5079 | D67: 2.495500088 | E67: 2.405999899 | F67: 2.476900101 | G67: 2.38499999 | H67: 2.455199957 | I67: 2.445899963 | J67: 2.122400045 | K67: 2.424200058 | L67: 2.336999893 | M67: 2.402499914 | N67: 28.89450002 | R67: JNSNRDG PC | S67: 4.041 | T67: 2.436000109 | V67: JNSNRDG PC | W67: 2.982 | X67: 2.5079 | Z67: JNSNRDG PC | AA67: 2.556 | AB67: 2.495500088 | AD67: JNSNRDG PC | AE67: 9.579 | AF67: 7.439400196 | AL67: JNSNRDG PC | AM67: 2.599 | AN67: 2.405999899 | AP67: JNSNRDG PC | AQ67: 2.575 | AR67: 2.476900101 | AT67: JNSNRDG PC | AU67: 2.168 | AV67: 2.38499999 | AX67: JNSNRDG PC | AY67: 7.342 | AZ67: 7.26789999 | BG67: JNSNRDG PC | BH67: 2.313 | BI67: 2.455199957 | BK67: JNSNRDG PC | BL67: 0.445 | BM67: 2.445899963 | BO67: JNSNRDG PC | BP67: 0 | BQ67: 2.122400045 | BS67: JNSNRDG PC | BT67: 2.758 | BU67: 7.023499966 | CD67: JNSNRDG PC | CE67: 0 | CF67: 2.424200058 | CH67: JNSNRDG PC | CI67: 0 | CJ67: 2.336999893 | CL67: JNSNRDG PC | CM67: 0 | CN67: 2.402499914 | CP67: JNSNRDG PC | CQ67: 0 | CR67: 7.163699865
A68: KNY FLD PC | B68: 2.943000078 | C68: 3.028700113 | D68: 3.019399881 | E68: 2.910000086 | F68: 2.994600058 | G68: 2.885999918 | H68: 2.969799995 | I68: 2.960500002 | J68: 2.5704 | K68: 2.93569994 | L68: 2.828999996 | M68: 2.914000034 | N68: 34.9611001 | R68: KNY FLD PC | S68: 4.355 | T68: 2.943000078 | V68: KNY FLD PC | W68: 0.087 | X68: 3.028700113 | Z68: KNY FLD PC | AA68: 1.852 | AB68: 3.019399881 | AD68: KNY FLD PC | AE68: 6.294 | AF68: 8.991100073 | AL68: KNY FLD PC | AM68: 3.33 | AN68: 2.910000086 | AP68: KNY FLD PC | AQ68: 3.756 | AR68: 2.994600058 | AT68: KNY FLD PC | AU68: 3.06 | AV68: 2.885999918 | AX68: KNY FLD PC | AY68: 10.146 | AZ68: 8.790600061 | BG68: KNY FLD PC | BH68: 3.577 | BI68: 2.969799995 | BK68: KNY FLD PC | BL68: 3.526 | BM68: 2.960500002 | BO68: KNY FLD PC | BP68: 2.809 | BQ68: 2.5704 | BS68: KNY FLD PC | BT68: 9.912 | BU68: 8.500699997 | CD68: KNY FLD PC | CE68: 3.391 | CF68: 2.93569994 | CH68: KNY FLD PC | CI68: 2.387 | CJ68: 2.828999996 | CL68: KNY FLD PC | CM68: 4.129 | CN68: 2.914000034 | CP68: KNY FLD PC | CQ68: 9.907 | CR68: 8.67869997
A69: MOSUMT PC | B69: 11.92500019 | C69: 12.23260021 | D69: 12.1427002 | E69: 11.66699982 | F69: 11.9659996 | G69: 11.49600029 | H69: 11.79240036 | I69: 11.70559978 | J69: 10.13599968 | K69: 11.53820038 | L69: 11.08500004 | M69: 11.37080002 | N69: 139.0573006 | R69: MOSUMT PC | S69: 7.428 | T69: 11.92500019 | V69: MOSUMT PC | W69: 9.699 | X69: 12.23260021 | Z69: MOSUMT PC | AA69: 9.271 | AB69: 12.1427002 | AD69: MOSUMT PC | AE69: 26.398 | AF69: 36.3003006 | AL69: MOSUMT PC | AM69: 7.967 | AN69: 11.66699982 | AP69: MOSUMT PC | AQ69: 8.384 | AR69: 11.9659996 | AT69: MOSUMT PC | AU69: 6.661 | AV69: 11.49600029 | AX69: MOSUMT PC | AY69: 23.012 | AZ69: 35.12899971 | BG69: MOSUMT PC | BH69: 7.319 | BI69: 11.79240036 | BK69: MOSUMT PC | BL69: 6.832 | BM69: 11.70559978 | BO69: MOSUMT PC | BP69: 6.353 | BQ69: 10.13599968 | BS69: MOSUMT PC | BT69: 20.504 | BU69: 33.63399982 | CD69: MOSUMT PC | CE69: 8.406 | CF69: 11.53820038 | CH69: MOSUMT PC | CI69: 7.098 | CJ69: =IFERROR(VLOOKUP($A69,$A$6:$M$119,12,FALSE),"") -> 11.08500004 | CL69: MOSUMT PC | CM69: 7.211 | CN69: 11.37080002 | CP69: MOSUMT PC | CQ69: 22.715 | CR69: 33.99400043
A70: PDW1A1B PC | B70: 0 | C70: 0 | D70: 0 | E70: 0 | F70: 0 | G70: 0.9779999852 | H70: 1.004400015 | I70: 0.9981999993 | J70: 0.8623999953 | K70: 0.9826999903 | L70: 0.7409999967 | M70: 0.7595000267 | N70: 6.326200008 | R70: PDW1A1B PC | S70: 0.962 | T70: =IFERROR(VLOOKUP(R70,$A$6:$M$119,2,FALSE),"") -> 0 | V70: PDW1A1B PC | W70: =IFERROR(VLOOKUP(V70,$V$116:$W$210,2,FALSE),0) -> 0.964 | X70: =IFERROR(VLOOKUP(V70,$A$6:$M$119,3,FALSE),"") -> 0 | Z70: PDW1A1B PC | AA70: =IFERROR(VLOOKUP(A70,$Z$116:$AA$210,2,FALSE),0) -> 1.188 | AB70: =IFERROR(VLOOKUP(Z70,$A$6:$M$119,4,FALSE),"") -> 0 | AD70: PDW1A1B PC | AE70: 3.114 | AF70: 0 | AL70: PDW1A1B PC | AM70: 1.187 | AN70: 0 | AP70: PDW1A1B PC | AQ70: 1.39 | AR70: =IFERROR(VLOOKUP($AP70,$A$6:$M$119,6,FALSE),"") -> 0 | AT70: PDW1A1B PC | AU70: 1.128 | AV70: =IFERROR(VLOOKUP($AT70,$A$6:$M$119,7,FALSE),"") -> 0.9779999852 | AX70: PDW1A1B PC | AY70: 3.705 | AZ70: 0.9779999852 | BG70: PDW1A1B PC | BH70: 1.288 | BI70: =IFERROR(VLOOKUP($BG70,$A$6:$M$119,8,FALSE),"") -> 1.004400015 | BK70: PDW1A1B PC | BL70: 0.403 | BM70: =IFERROR(VLOOKUP($BK70,$A$6:$M$119,9,FALSE),"") -> 0.9981999993 | BO70: =A70 -> PDW1A1B PC | BP70: 0.608 | BQ70: =IFERROR(VLOOKUP($BO70,$A$6:$M$119,10,FALSE),0) -> 0.8623999953 | BS70: =A70 -> PDW1A1B PC | BT70: =SUM(BH70,BL70,BP70) -> 2.299 | BU70: =SUM(BI70,BM70,BQ70) -> 2.86500001 | CD70: PDW1A1B PC | CE70: 0.265 | CF70: 0.9826999903 | CH70: PDW1A1B PC | CI70: 1.083 | CJ70: 0.7409999967 | CL70: PDW1A1B PC | CM70: 1.037 | CN70: 0.7595000267 | CP70: PDW1A1B PC | CQ70: =CM70+CI70+CE70 -> 2.385 | CR70: =CN70+CJ70+CF70 -> 2.483200014
A71: PDW1AB MT PC | B71: 3.513000011 | C71: 3.611500025 | D71: 3.592900038 | E71: 3.461999893 | F71: 3.558799982 | G71: 3.428999901 | H71: 3.524699926 | I71: 3.509200096 | J71: 3.043600082 | K71: 3.47510004 | L71: 3.345000029 | M71: 3.440999985 | N71: =SUM(B71:M71) -> 41.50580001 | R71: PDW1AB MT PC | S71: =IFERROR(VLOOKUP(R71,$R$116:$S$210,2,FALSE),0) -> 4.781 | T71: 3.513000011 | V71: PDW1AB MT PC | W71: 5.571 | X71: 3.611500025 | Z71: PDW1AB MT PC | AA71: 5.346 | AB71: 3.592900038 | AD71: PDW1AB MT PC | AE71: =SUM(S71,W71,AA71) -> 15.698 | AF71: =SUM(T71,X71,AB71) -> 10.71740007 | AL71: =AD71 -> PDW1AB MT PC | AM71: 4.088 | AN71: =IFERROR(VLOOKUP(AL71,$A$6:$M$119,5,FALSE),"") -> 3.461999893 | AP71: =AL71 -> PDW1AB MT PC | AQ71: 4.755 | AR71: 3.558799982 | AT71: PDW1AB MT PC | AU71: 4.145 | AV71: 3.428999901 | AX71: PDW1AB MT PC | AY71: 12.988 | AZ71: 10.44979978 | BG71: PDW1AB MT PC | BH71: 4.405 | BI71: 3.524699926 | BK71: PDW1AB MT PC | BL71: 5.077 | BM71: 3.509200096 | BO71: PDW1AB MT PC | BP71: 4.393 | BQ71: 3.043600082 | BS71: PDW1AB MT PC | BT71: 13.875 | BU71: 10.0775001 | CD71: PDW1AB MT PC | CE71: =IFERROR(VLOOKUP(CD71,$CD$115:$CF$202,2,FALSE),0) -> 4.328 | CF71: 3.47510004 | CH71: PDW1AB MT PC | CI71: =IFERROR(VLOOKUP(CH71,$CH$115:$CJ$202,2,FALSE),0) -> 3.761 | CJ71: 3.345000029 | CL71: PDW1AB MT PC | CM71: =IFERROR(VLOOKUP(CL71,$CL$115:$CN$205,2,FALSE),0) -> 5.106 | CN71: 3.440999985 | CP71: PDW1AB MT PC | CQ71: 13.195 | CR71: 10.26110005
A72: PDWCUT PC | B72: 0.6150000095 | C72: 0.6355000138 | D72: 0.6323999763 | E72: 0.6090000272 | F72: 0.6262000203 | G72: 0.6060000062 | H72: 0.6230999827 | I72: 0.6200000048 | J72: 0.5404000282 | K72: 0.6169000268 | L72: 0.5939999819 | M72: 0.6107000113 | N72: 7.329200089 | R72: PDWCUT PC | S72: 0.602 | T72: 0.6150000095 | V72: PDWCUT PC | W72: 1.034 | X72: 0.6355000138 | Z72: PDWCUT PC | AA72: 1.294 | AB72: 0.6323999763 | AD72: PDWCUT PC | AE72: 2.93 | AF72: 1.8829 | AL72: PDWCUT PC | AM72: 1.044 | AN72: 0.6090000272 | AP72: PDWCUT PC | AQ72: 1.333 | AR72: 0.6262000203 | AT72: =AP72 -> PDWCUT PC | AU72: 0.483 | AV72: 0.6060000062 | AX72: =AT72 -> PDWCUT PC | AY72: =SUM(AM72,AQ72,AU72) -> 2.86 | AZ72: =SUM(AN72,AR72,AV72) -> 1.841200054 | BG72: PDWCUT PC | BH72: 1.144 | BI72: 0.6230999827 | BK72: PDWCUT PC | BL72: 0.809 | BM72: 0.6200000048 | BO72: PDWCUT PC | BP72: 0.365 | BQ72: 0.5404000282 | BS72: PDWCUT PC | BT72: 2.318 | BU72: 1.783500016 | CD72: PDWCUT PC | CE72: 0.207 | CF72: 0.6169000268 | CH72: PDWCUT PC | CI72: 0.967 | CJ72: 0.5939999819 | CL72: PDWCUT PC | CM72: 0.121 | CN72: 0.6107000113 | CP72: PDWCUT PC | CQ72: 1.295 | CR72: 1.82160002
A73: PDWPLT2 PC | B73: 4.217999935 | C73: 4.336900234 | D73: 4.31829977 | E73: 4.157999992 | F73: 4.27489996 | G73: 4.118999958 | H73: 4.234600067 | I73: 4.21600008 | J73: 3.659600019 | K73: 4.175700188 | L73: 4.019999981 | M73: 4.135399818 | N73: 49.8664 | R73: =A73 -> PDWPLT2 PC | S73: 6.387 | T73: 4.217999935 | V73: =R73 -> PDWPLT2 PC | W73: 5.339 | X73: 4.336900234 | Z73: =R73 -> PDWPLT2 PC | AA73: 0.001 | AB73: 4.31829977 | AD73: =R73 -> PDWPLT2 PC | AE73: 11.727 | AF73: 12.87319994 | AL73: PDWPLT2 PC | AM73: 0 | AN73: 4.157999992 | AP73: PDWPLT2 PC | AQ73: 0.003 | AR73: 4.27489996 | AT73: PDWPLT2 PC | AU73: 8.809 | AV73: 4.118999958 | AX73: PDWPLT2 PC | AY73: 8.812 | AZ73: 12.55189991 | BG73: =R73 -> PDWPLT2 PC | BH73: 6.847 | BI73: 4.234600067 | BK73: PDWPLT2 PC | BL73: 6.221 | BM73: 4.21600008 | BO73: PDWPLT2 PC | BP73: 5.848 | BQ73: 3.659600019 | BS73: PDWPLT2 PC | BT73: 18.916 | BU73: 12.11020017 | CD73: PDWPLT2 PC | CE73: 6.073 | CF73: 4.175700188 | CH73: PDWPLT2 PC | CI73: 5.335 | CJ73: 4.019999981 | CL73: PDWPLT2 PC | CM73: 4.624 | CN73: 4.135399818 | CP73: PDWPLT2 PC | CQ73: 16.032 | CR73: 12.33109999
A74: PDWPLT3 PC | B74: 5.237999916 | C74: 5.384699821 | D74: 5.359899998 | E74: 5.163000107 | F74: 5.307199955 | G74: 5.111999989 | H74: 5.257599831 | I74: 5.232800007 | J74: 4.541600227 | K74: 5.183199883 | L74: 4.992000103 | M74: 5.133600235 | N74: 61.90560007 | R74: PDWPLT3 PC | S74: 5.312 | T74: 5.237999916 | V74: PDWPLT3 PC | W74: 6.686 | X74: 5.384699821 | Z74: PDWPLT3 PC | AA74: 6.209 | AB74: 5.359899998 | AD74: PDWPLT3 PC | AE74: 18.207 | AF74: 15.98259974 | AL74: PDWPLT3 PC | AM74: 5.4 | AN74: 5.163000107 | AP74: PDWPLT3 PC | AQ74: 5.46 | AR74: 5.307199955 | AT74: PDWPLT3 PC | AU74: 3.846 | AV74: 5.111999989 | AX74: PDWPLT3 PC | AY74: 14.706 | AZ74: 15.58220005 | BG74: PDWPLT3 PC | BH74: 3.63 | BI74: 5.257599831 | BK74: PDWPLT3 PC | BL74: 3.38 | BM74: 5.232800007 | BO74: PDWPLT3 PC | BP74: 3.693 | BQ74: 4.541600227 | BS74: PDWPLT3 PC | BT74: 10.703 | BU74: 15.03200006 | CD74: PDWPLT3 PC | CE74: 5.644 | CF74: 5.183199883 | CH74: PDWPLT3 PC | CI74: 5.662 | CJ74: 4.992000103 | CL74: PDWPLT3 PC | CM74: 6.053 | CN74: 5.133600235 | CP74: PDWPLT3 PC | CQ74: 17.359 | CR74: 15.30880022
A75: SGRLF PC | B75: 36.58200073 | C75: 37.5223999 | D75: 37.24959946 | E75: 35.78699875 | F75: 36.7132988 | G75: 35.27399826 | H75: 36.18939972 | I75: 35.93209839 | J75: 31.11639977 | K75: 35.42990112 | L75: 34.04700089 | M75: 34.93700027 | N75: 426.7800961 | R75: SGRLF PC | S75: 41.143 | T75: 36.58200073 | V75: SGRLF PC | W75: 41.033 | X75: 37.5223999 | Z75: SGRLF PC | AA75: 0 | AB75: 37.24959946 | AD75: SGRLF PC | AE75: 82.176 | AF75: 111.3540001 | AL75: SGRLF PC | AM75: 13.485 | AN75: 35.78699875 | AP75: SGRLF PC | AQ75: 32.813 | AR75: 36.7132988 | AT75: SGRLF PC | AU75: 52.407 | AV75: 35.27399826 | AX75: SGRLF PC | AY75: 98.705 | AZ75: 107.7742958 | BG75: SGRLF PC | BH75: 49.606 | BI75: 36.18939972 | BK75: SGRLF PC | BL75: 47.789 | BM75: 35.93209839 | BO75: SGRLF PC | BP75: 38.812 | BQ75: 31.11639977 | BS75: SGRLF PC | BT75: 136.207 | BU75: 103.2378979 | CD75: SGRLF PC | CE75: 41.77 | CF75: 35.42990112 | CH75: SGRLF PC | CI75: 40.853 | CJ75: =IFERROR(VLOOKUP($A75,$A$6:$M$119,12,FALSE),"") -> 34.04700089 | CL75: SGRLF PC | CM75: 28.839 | CN75: 34.93700027 | CP75: SGRLF PC | CQ75: 111.462 | CR75: 104.4139023
A76: TRAIL PC | B76: 1.218000054 | C76: 1.252400041 | D76: 1.243100047 | E76: 1.194000006 | F76: 1.224499941 | G76: 1.175999999 | H76: 1.208999991 | I76: 1.199699998 | J76: 1.038800001 | K76: 1.184200048 | L76: 1.136999965 | M76: 1.165599942 | N76: 14.24230003 | R76: TRAIL PC | S76: 1.317 | T76: 1.218000054 | V76: TRAIL PC | W76: 1.388 | X76: 1.252400041 | Z76: TRAIL PC | AA76: 1.237 | AB76: 1.243100047 | AD76: TRAIL PC | AE76: 3.942 | AF76: 3.713500142 | AL76: TRAIL PC | AM76: 1.08 | AN76: 1.194000006 | AP76: TRAIL PC | AQ76: 1.132 | AR76: 1.224499941 | AT76: TRAIL PC | AU76: 0.983 | AV76: 1.175999999 | AX76: TRAIL PC | AY76: 3.195 | AZ76: 3.594499946 | BG76: TRAIL PC | BH76: 0.844 | BI76: 1.208999991 | BK76: =R76 -> TRAIL PC | BL76: 0.911 | BM76: 1.199699998 | BO76: TRAIL PC | BP76: 0.8 | BQ76: 1.038800001 | BS76: TRAIL PC | BT76: 2.555 | BU76: 3.44749999 | CD76: TRAIL PC | CE76: 0.937 | CF76: 1.184200048 | CH76: TRAIL PC | CI76: 0.849 | CJ76: 1.136999965 | CL76: TRAIL PC | CM76: 1.091 | CN76: 1.165599942 | CP76: TRAIL PC | CQ76: 2.877 | CR76: 3.486799955
A77: WHLA PC | B77: 8.105999947 | C77: 8.304900169 | D77: 8.233599663 | E77: 7.90199995 | F77: 8.094099998 | G77: 7.769999981 | H77: 7.960800171 | I77: 7.895699978 | J77: 6.826399803 | K77: 7.765500069 | L77: 7.452000141 | M77: 7.638400078 | N77: 93.94939995 | R77: WHLA PC | S77: 3.868 | T77: 8.105999947 | V77: WHLA PC | W77: 6.962 | X77: 8.304900169 | Z77: WHLA PC | AA77: 3.694 | AB77: 8.233599663 | AD77: WHLA PC | AE77: 14.524 | AF77: 24.64449978 | AL77: WHLA PC | AM77: 6.745 | AN77: 7.90199995 | AP77: WHLA PC | AQ77: 5.949 | AR77: 8.094099998 | AT77: WHLA PC | AU77: 6.934 | AV77: 7.769999981 | AX77: WHLA PC | AY77: 19.628 | AZ77: 23.76609993 | BG77: WHLA PC | BH77: 5.208 | BI77: 7.960800171 | BK77: WHLA PC | BL77: 8.654 | BM77: 7.895699978 | BO77: WHLA PC | BP77: 5.069 | BQ77: 6.826399803 | BS77: WHLA PC | BT77: 18.931 | BU77: 22.68289995 | CD77: WHLA PC | CE77: 4.7 | CF77: 7.765500069 | CH77: WHLA PC | CI77: 5.546 | CJ77: 7.452000141 | CL77: WHLA PC | CM77: 5.697 | CN77: 7.638400078 | CP77: WHLA PC | CQ77: 15.943 | CR77: 22.85590029
A78: WWILSON PC | B78: 12.70800018 | C78: 13.05099964 | D78: 12.97350025 | E78: 12.47999954 | F78: 12.81849957 | G78: 12.32999992 | H78: 12.66349983 | I78: 12.58600044 | J78: 10.91160011 | K78: 12.43410015 | L78: 11.96100044 | M78: 12.28530025 | N78: 149.2025003 | R78: WWILSON PC | S78: 8.171 | T78: 12.70800018 | V78: WWILSON PC | W78: 14.019 | X78: 13.05099964 | Z78: WWILSON PC | AA78: 12.108 | AB78: 12.97350025 | AD78: WWILSON PC | AE78: 34.298 | AF78: 38.73250008 | AL78: WWILSON PC | AM78: 9.149 | AN78: 12.47999954 | AP78: WWILSON PC | AQ78: 11.732 | AR78: 12.81849957 | AT78: WWILSON PC | AU78: 11.744 | AV78: 12.32999992 | AX78: WWILSON PC | AY78: 32.625 | AZ78: 37.62849903 | BG78: WWILSON PC | BH78: 11.498 | BI78: 12.66349983 | BK78: WWILSON PC | BL78: 8.763 | BM78: 12.58600044 | BO78: WWILSON PC | BP78: 10.179 | BQ78: 10.91160011 | BS78: WWILSON PC | BT78: 30.44 | BU78: 36.16110039 | CD78: WWILSON PC | CE78: 11.68 | CF78: 12.43410015 | CH78: WWILSON PC | CI78: 8.113 | CJ78: 11.96100044 | CL78: WWILSON PC | CM78: 7.684 | CN78: 12.28530025 | CP78: WWILSON PC | CQ78: 27.477 | CR78: 36.68040085
A79: MOSU MT | B79: 0 | C79: 0 | D79: 0 | E79: 0 | F79: 0 | G79: 0 | H79: 0 | I79: 0 | J79: 0 | K79: 0 | L79: 0 | M79: 0 | N79: 0 | R79: MOSU MT | S79: 0.015 | T79: 0 | V79: MOSU MT | W79: 0.362 | X79: 0 | Z79: MOSU MT | AA79: 0.51 | AB79: 0 | AD79: MOSU MT | AE79: 0.887 | AF79: 0 | AL79: MOSU MT | AM79: 0.534 | AN79: 0 | AP79: MOSU MT | AQ79: 0.509 | AR79: 0 | AT79: MOSU MT | AU79: 0.833 | AV79: 0 | AX79: MOSU MT | AY79: 1.876 | AZ79: 0 | BG79: MOSU MT | BH79: 0.904 | BI79: 0 | BK79: MOSU MT | BL79: 0.529 | BM79: 0 | BO79: MOSU MT | BP79: 0.382 | BQ79: 0 | BS79: MOSU MT | BT79: 1.815 | BU79: 0 | CD79: MOSU MT | CE79: 0.378 | CF79: 0 | CH79: MOSU MT | CI79: 0.315 | CJ79: 0 | CL79: MOSU MT | CM79: 0.271 | CN79: 0 | CP79: MOSU MT | CQ79: 0.964 | CR79: 0
A80: PDW1A1B D21 | R80: PDW1A1B D21 | S80: 0.437 | T80: 0 | V80: PDW1A1B D21 | W80: 0.886 | X80: 0 | Z80: PDW1A1B D21 | AA80: =AA175 -> 0.63 | AB80: 0 | AD80: PDW1A1B D21 | AE80: =SUM(S80,W80,AA80) -> 1.953 | AF80: =SUM(T80,X80,AB80) -> 0 | AL80: PDW1A1B D21 | AM80: 0.601 | AN80: 0 | AP80: PDW1A1B D21 | AQ80: 0.496 | AR80: 0 | AT80: PDW1A1B D21 | AU80: 0.297 | AV80: 0 | AX80: PDW1A1B D21 | AY80: 1.394 | AZ80: 0 | BG80: PDW1A1B D21 | BH80: =IFERROR(VLOOKUP($BG80,$BG$114:$BH$209,2,FALSE),0) -> 0.231 | BI80: 0 | BK80: =BG80 -> PDW1A1B D21 | BL80: =IFERROR(VLOOKUP($BK80,$BK$114:$BL$209,2,FALSE),0) -> 0.194 | BM80: 0 | BO80: =BK80 -> PDW1A1B D21 | BP80: 0.081 | BQ80: 0 | BS80: =BO80 -> PDW1A1B D21 | BT80: 0.506 | BU80: 0 | CD80: PDW1A1B D21 | CE80: 0.568 | CF80: 0 | CH80: PDW1A1B D21 | CI80: 0.935 | CJ80: 0 | CL80: PDW1A1B D21 | CM80: 1.15 | CN80: 0 | CP80: PDW1A1B D21 | CQ80: =CM80+CI80+CE80 -> 2.653 | CR80: =CN80+CJ80+CF80 -> 0
A81: Legacy Total | B81: =SUM(B6:B79) -> 3013.617028 | C81: =SUM(C6:C79) -> 3081.976571 | D81: 3051.44163 | E81: 2924.276985 | F81: 2992.526089 | G81: 2880.713974 | H81: 3117.794004 | I81: 3087.885178 | J81: 2668.108823 | K81: 3030.566152 | L81: 2906.078974 | M81: 2976.365814 | N81: 35731.35122 | R81: =A81 -> Legacy Total | S81: =SUM(S6:S80) -> 3138.969 | T81: =SUM(T6:T79) -> 3013.617028 | V81: =R81 -> Legacy Total | W81: =SUM(W6:W80) -> 3115.088 | X81: =SUM(X6:X79) -> 3081.976571 | Z81: Legacy Total | AA81: =SUM(AA6:AA80) -> 3014.381 | AB81: =SUM(AB6:AB79) -> 3051.44163 | AD81: Legacy Total | AE81: =SUM(AE6:AE79) -> 9266.485 | AF81: =SUM(AF6:AF79) -> 9147.035229 | AL81: =AD81 -> Legacy Total | AM81: =SUM(AM6:AM80) -> 2841.855 | AN81: =SUM(AN6:AN79) -> 2924.276985 | AP81: =AL81 -> Legacy Total | AQ81: =SUM(AQ6:AQ80) -> 2953.992 | AR81: =SUM(AR6:AR79) -> 2992.526089 | AT81: =AP81 -> Legacy Total | AU81: =SUM(AU6:AU80) -> 3016.973 | AV81: =SUM(AV6:AV79) -> 2880.713974 | AX81: =AT81 -> Legacy Total | AY81: =SUM(AM81,AQ81,AU81) -> 8812.82 | AZ81: 8797.517048 | BF81: =(AY81-AZ81)/AZ81 -> 0.001739462607 | BG81: =R81 -> Legacy Total | BH81: =SUM(BH6:BH80) -> 3029.997 | BI81: =SUM(BI6:BI79) -> 3117.794004 | BK81: =R81 -> Legacy Total | BL81: =SUM(BL6:BL80) -> 3022.518 | BM81: =SUM(BM6:BM79) -> 3087.885178 | BO81: =A81 -> Legacy Total | BP81: =SUM(BP6:BP79) -> 2730.775 | BQ81: =SUM(BQ6:BQ79) -> 2668.108823 | BS81: =A81 -> Legacy Total | BT81: =SUM(BH81,BL81,BP81) -> 8783.29 | BU81: =SUM(BI81,BM81,BQ81) -> 8873.788006 | CD81: Legacy Total | CE81: =SUM(CE6:CE80) -> 2955.622 | CF81: =SUM(CF6:CF80) -> 3030.566152 | CH81: Legacy Total | CI81: =SUM(CI6:CI80) -> 2887.109 | CJ81: =SUM(CJ6:CJ80) -> 2906.078974 | CL81: Legacy Total | CM81: =SUM(CM6:CM80) -> 2926.96 | CN81: =SUM(CN6:CN80) -> 2976.365814 | CP81: Legacy Total | CQ81: =CE81+CI81+CM81 -> 8769.691 | CR81: =CF81+CJ81+CN81 -> 8913.010941
X82: =IFERROR(VLOOKUP(V82,$A$6:$M$119,3,FALSE),"") ->  | AB82: =IFERROR(VLOOKUP(Z82,$A$6:$M$119,4,FALSE),"") ->  | AR82: =IFERROR(VLOOKUP($AP82,$A$6:$M$119,6,FALSE),"") ->  | AV82: =IFERROR(VLOOKUP($AT82,$A$6:$M$119,7,FALSE),"") ->  | BM82: =IFERROR(VLOOKUP($BK82,$A$6:$M$119,9,FALSE),"") ->  | CN82: =IFERROR(VLOOKUP($A82,$A$6:$M$119,13,FALSE),"") -> 
A83: Wexpro I | B83: =B5 -> 2020-06-01 | C83: 2020-07-01 | D83: 2020-08-01 | E83: 2020-09-01 | F83: 2020-10-01 | G83: 2020-11-01 | H83: 2020-12-01 | I83: 2021-01-01 | J83: 2021-02-01 | K83: 2021-03-01 | L83: 2021-04-01 | M83: 2021-05-01 | N83: Total | R83: =A83 -> Wexpro I | V83: =R83 -> Wexpro I | Z83: =R83 -> Wexpro I | AD83: =R83 -> Wexpro I | AL83: =AD83 -> Wexpro I | AP83: =AL83 -> Wexpro I | AT83: =AL83 -> Wexpro I | AX83: =AL83 -> Wexpro I | BG83: =AT83 -> Wexpro I | BK83: =AX83 -> Wexpro I | BO83: Wexpro I | BS83: =A83 -> Wexpro I | CD83: Wexpro I | CH83: Wexpro I | CJ83: =IFERROR(VLOOKUP($A82,$A$6:$M$119,12,FALSE),"") ->  | CL83: Wexpro I | CN83: =IFERROR(VLOOKUP($A82,$A$6:$M$119,12,FALSE),"") ->  | CP83: Wexpro I
A84: CCRUNIT MT | B84: 52.40100098 | C84: 53.01309967 | D84: 51.93740082 | E84: 49.27500153 | F84: 49.94409943 | G84: 47.43600082 | H84: 48.13370132 | I84: 47.29050064 | J84: 40.53559875 | K84: 45.70330048 | L84: 43.50899887 | M84: 44.24629974 | N84: =SUM(B84:M84) -> 573.4250031 | R84: CCRUNIT MT | S84: =IFERROR(VLOOKUP(R84,$R$116:$S$210,2,FALSE),0)*O139 -> 53.48584584 | T84: =IFERROR(VLOOKUP(R84,$A$6:$M$119,2,FALSE),"") -> 52.40100098 | V84: CCRUNIT MT | W84: =IFERROR(VLOOKUP(V84,$V$116:$W$210,2,FALSE),0)*O140 -> 56.25912581 | X84: =IFERROR(VLOOKUP(V84,$A$6:$M$119,3,FALSE),"") -> 53.01309967 | Z84: CCRUNIT MT | AA84: =AA135*O141 -> 54.85785523 | AB84: =IFERROR(VLOOKUP(Z84,$A$6:$M$119,4,FALSE),"") -> 51.93740082 | AD84: CCRUNIT MT | AE84: =SUM(S84,W84,AA84) -> 164.6028269 | AF84: =SUM(T84,X84,AB84) -> 157.3515015 | AL84: CCRUNIT MT | AM84: =IFERROR(VLOOKUP(AL84,$AL$116:$AM$206,2,FALSE),0) -> 75.495 | AN84: =IFERROR(VLOOKUP(AL84,$A$6:$M$119,5,FALSE),"") -> 49.27500153 | AP84: CCRUNIT MT | AQ84: =IFERROR(VLOOKUP(AP84,$AP$116:$AQ$215,2,FALSE),0) -> 72.771 | AR84: =IFERROR(VLOOKUP($AP84,$A$6:$M$119,6,FALSE),"") -> 49.94409943 | AT84: CCRUNIT MT | AU84: =IFERROR(VLOOKUP(AT84,$AT$116:$AU$208,2,FALSE),0) -> 67.719 | AV84: =IFERROR(VLOOKUP($AT84,$A$6:$M$119,7,FALSE),"") -> 47.43600082 | AX84: CCRUNIT MT | AY84: =SUM(AM84,AQ84,AU84) -> 215.985 | AZ84: =SUM(AN84,AR84,AV84) -> 146.6551018 | BG84: =R84 -> CCRUNIT MT | BH84: =IFERROR(VLOOKUP($BG84,$BG$114:$BH$209,2,FALSE),0)*O145 -> 49.15612004 | BI84: =IFERROR(VLOOKUP($BG84,$A$6:$M$119,8,FALSE),"") -> 48.13370132 | BK84: =R84 -> CCRUNIT MT | BL84: =IFERROR(VLOOKUP($BK84,$BK$118:$BL$207,2,FALSE),0)*O146 -> 46.86685252 | BM84: =IFERROR(VLOOKUP($BK84,$A$6:$M$119,9,FALSE),"") -> 47.29050064 | BO84: =A84 -> CCRUNIT MT | BP84: =IFERROR(VLOOKUP($BO84,$BO$117:$BP$204,2,FALSE),0)*O147 -> 41.70621807 | BQ84: =IFERROR(VLOOKUP($BO84,$A$6:$M$119,10,FALSE),0) -> 40.53559875 | BS84: CCRUNIT MT | BT84: =SUM(BH84,BL84,BP84) -> 137.7291906 | BU84: 135.9598007 | CD84: =A84 -> CCRUNIT MT | CE84: =IFERROR(VLOOKUP(CD84,$CD$115:$CF$202,2,FALSE),0)*O148 -> 46.96161831 | CF84: =IFERROR(VLOOKUP($A84,$A$6:$M$119,11,FALSE),"") -> 45.70330048 | CH84: =A84 -> CCRUNIT MT | CI84: =IFERROR(VLOOKUP(CH84,$CH$115:$CJ$202,2,FALSE),0)*O149 -> 45.42728843 | CJ84: =IFERROR(VLOOKUP($A84,$A$6:$M$119,12,FALSE),"") -> 43.50899887 | CL84: =A84 -> CCRUNIT MT | CM84: =IFERROR(VLOOKUP(CL84,$CL$115:$CN$205,2,FALSE),0)*O150 -> 45.49165558 | CN84: =IFERROR(VLOOKUP($A84,$A$6:$M$119,13,FALSE),"") -> 44.24629974 | CP84: CCRUNIT MT | CQ84: =CM84+CI84+CE84 -> 137.8805623 | CR84: =CN84+CJ84+CF84 -> 133.4585991
A85: CCRUNIT D8 | B85: 246.845993 | C85: 247.414093 | D85: 240.5413971 | E85: 226.7640076 | F85: 227.8159027 | G85: 213.9210052 | H85: 214.8392944 | I85: 209.1011963 | J85: 177.7160034 | K85: 198.8339996 | L85: 187.9440002 | M85: 189.875 | N85: =SUM(B85:M85) -> 2581.611893 | R85: CCRUNIT D8 | S85: =IFERROR(VLOOKUP(R85,$R$116:$S$210,2,FALSE),0) -> 252.393 | T85: 246.845993 | V85: CCRUNIT D8 | W85: =IFERROR(VLOOKUP(V85,$V$116:$W$210,2,FALSE),0) -> 267.975 | X85: 247.414093 | Z85: CCRUNIT D8 | AA85: =IFERROR(VLOOKUP(Z85,$Z$116:$AA$210,2,FALSE),0) -> 254.277 | AB85: 240.5413971 | AD85: CCRUNIT D8 | AE85: =SUM(S85,W85,AA85) -> 774.645 | AF85: 734.8014832 | AL85: CCRUNIT D8 | AM85: 213.767 | AN85: 226.7640076 | AP85: CCRUNIT D8 | AQ85: 208.179 | AR85: 227.8159027 | AT85: CCRUNIT D8 | AU85: 202.017 | AV85: 213.9210052 | AX85: CCRUNIT D8 | AY85: =SUM(AM85,AQ85,AU85) -> 623.963 | AZ85: =SUM(AN85,AR85,AV85) -> 668.5009155 | BG85: CCRUNIT D8 | BH85: =IFERROR(VLOOKUP($BG85,$BG$114:$BH$209,2,FALSE),0) -> 203.297 | BI85: 214.8392944 | BK85: CCRUNIT D8 | BL85: =IFERROR(VLOOKUP($BK85,$BK$118:$BL$207,2,FALSE),0) -> 198.98 | BM85: 209.1011963 | BO85: CCRUNIT D8 | BP85: =IFERROR(VLOOKUP($BO85,$BO$117:$BP$204,2,FALSE),0) -> 172.564 | BQ85: 177.7160034 | BS85: CCRUNIT D8 | BT85: 574.841 | BU85: 601.6564941 | CD85: =A85 -> CCRUNIT D8 | CE85: 189.273 | CF85: =IFERROR(VLOOKUP($A85,$A$6:$M$119,11,FALSE),"") -> 198.8339996 | CH85: =A85 -> CCRUNIT D8 | CI85: =IFERROR(VLOOKUP(CH85,$CH$115:$CJ$202,2,FALSE),0) -> 178.606 | CJ85: =IFERROR(VLOOKUP($A85,$A$6:$M$119,12,FALSE),"") -> 187.9440002 | CL85: CCRUNIT D8 | CM85: =IFERROR(VLOOKUP(CL85,$CL$115:$CN$205,2,FALSE),0) -> 187.455 | CN85: 189.875 | CP85: CCRUNIT D8 | CQ85: =CM85+CI85+CE85 -> 555.334 | CR85: =CN85+CJ85+CF85 -> 576.6529999
A86: KNY FLD D8 | B86: 20.47200012 | C86: 20.87540054 | D86: 20.60880089 | E86: 19.69199944 | F86: 20.09729958 | G86: 19.21500015 | H86: 19.61989975 | I86: 19.39360046 | J86: 16.71879959 | K86: 18.95960045 | L86: 18.14699936 | M86: 18.55039978 | N86: 232.3498001 | R86: KNY FLD D8 | S86: 0 | T86: 20.47200012 | V86: KNY FLD D8 | W86: 0 | X86: 20.87540054 | Z86: KNY FLD D8 | AA86: 15.391 | AB86: 20.60880089 | AD86: KNY FLD D8 | AE86: =SUM(S86,W86,AA86) -> 15.391 | AF86: =SUM(T86,X86,AB86) -> 61.95620155 | AL86: KNY FLD D8 | AM86: 21.88 | AN86: 19.69199944 | AP86: KNY FLD D8 | AQ86: 23.022 | AR86: 20.09729958 | AT86: KNY FLD D8 | AU86: 20.762 | AV86: 19.21500015 | AX86: KNY FLD D8 | AY86: =SUM(AM86,AQ86,AU86) -> 65.664 | AZ86: =SUM(AN86,AR86,AV86) -> 59.00429916 | BG86: KNY FLD D8 | BH86: 20.278 | BI86: 19.61989975 | BK86: KNY FLD D8 | BL86: 22.239 | BM86: 19.39360046 | BO86: KNY FLD D8 | BP86: 21.611 | BQ86: 16.71879959 | BS86: KNY FLD D8 | BT86: 64.128 | BU86: 55.7322998 | CD86: =A86 -> KNY FLD D8 | CE86: 24.576 | CF86: =IFERROR(VLOOKUP($A86,$A$6:$M$119,11,FALSE),"") -> 18.95960045 | CH86: KNY FLD D8 | CI86: 23.574 | CJ86: 18.14699936 | CL86: KNY FLD D8 | CM86: 1.765 | CN86: 18.55039978 | CP86: KNY FLD D8 | CQ86: 49.915 | CR86: 55.65699959
A87: MESA D8 | B87: 681.7470093 | C87: 677.3530884 | D87: 653.4055786 | E87: 611.6040039 | F87: 612.6499023 | G87: 575.8380127 | H87: 578.8723145 | I87: 563.9675293 | J87: 479.7687988 | K87: 537.2703247 | L87: 508.2900085 | M87: 513.9396973 | N87: 6994.706268 | R87: MESA D8 | S87: 442.108 | T87: 681.7470093 | V87: MESA D8 | W87: 436.103 | X87: 677.3530884 | Z87: MESA D8 | AA87: 415.627 | AB87: 653.4055786 | AD87: MESA D8 | AE87: 1293.838 | AF87: 2012.505676 | AL87: MESA D8 | AM87: 348.104 | AN87: 611.6040039 | AP87: MESA D8 | AQ87: 395.888 | AR87: 612.6499023 | AT87: MESA D8 | AU87: 372.12 | AV87: 575.8380127 | AX87: MESA D8 | AY87: 1116.112 | AZ87: 1800.091919 | BG87: MESA D8 | BH87: 371.451 | BI87: 578.8723145 | BK87: MESA D8 | BL87: 359.744 | BM87: 563.9675293 | BO87: MESA D8 | BP87: 311.124 | BQ87: 479.7687988 | BS87: MESA D8 | BT87: 1042.319 | BU87: 1622.608643 | CD87: =A87 -> MESA D8 | CE87: 344.871 | CF87: =IFERROR(VLOOKUP($A87,$A$6:$M$119,11,FALSE),"") -> 537.2703247 | CH87: MESA D8 | CI87: 302.873 | CJ87: 508.2900085 | CL87: MESA D8 | CM87: 326.861 | CN87: 513.9396973 | CP87: MESA D8 | CQ87: 974.605 | CR87: 1559.500031
A88: TRAIL D8 | B88: 100.4489975 | C88: 101.0010986 | D88: 98.42189789 | E88: 92.94000244 | F88: 93.81839752 | G88: 88.78800201 | H88: 89.80699921 | I88: 87.98419952 | J88: 75.23320007 | K88: 84.64550018 | L88: 80.42700195 | M88: 81.65090179 | N88: 1075.166199 | R88: TRAIL D8 | S88: 105.489 | T88: 100.4489975 | V88: TRAIL D8 | W88: 52.922 | X88: 101.0010986 | Z88: TRAIL D8 | AA88: 52.912 | AB88: 98.42189789 | AD88: TRAIL D8 | AE88: 211.323 | AF88: 299.871994 | AL88: TRAIL D8 | AM88: 46.452 | AN88: 92.94000244 | AP88: TRAIL D8 | AQ88: 49.412 | AR88: 93.81839752 | AT88: TRAIL D8 | AU88: 146.218 | AV88: 88.78800201 | AX88: TRAIL D8 | AY88: 242.082 | AZ88: 275.546402 | BG88: TRAIL D8 | BH88: 111.583 | BI88: 89.80699921 | BK88: TRAIL D8 | BL88: 96.285 | BM88: 87.98419952 | BO88: TRAIL D8 | BP88: 81.864 | BQ88: 75.23320007 | BS88: TRAIL D8 | BT88: 289.732 | BU88: 253.0243988 | CD88: =A88 -> TRAIL D8 | CE88: 85.376 | CF88: =IFERROR(VLOOKUP($A88,$A$6:$M$119,11,FALSE),"") -> 84.64550018 | CH88: TRAIL D8 | CI88: 82.602 | CJ88: 80.42700195 | CL88: TRAIL D8 | CM88: 79.5 | CN88: 81.65090179 | CP88: TRAIL D8 | CQ88: 247.478 | CR88: 246.7234039
A89: z20 MESA D8 | R89: z20 MESA D8 | S89: 253.097 | T89: 0 | V89: =R89 -> z20 MESA D8 | W89: 250.736 | X89: 0 | Z89: =R89 -> z20 MESA D8 | AA89: 235.046 | AB89: 0 | AD89: =R89 -> z20 MESA D8 | AE89: =SUM(S89,W89,AA89) -> 738.879 | AF89: =SUM(T89,X89,AB89) -> 0 | AL89: z20 MESA D8 | AM89: 215.467 | AN89: 0 | AP89: =AL89 -> z20 MESA D8 | AQ89: 214.754 | AR89: 0 | AT89: =AP89 -> z20 MESA D8 | AU89: 202.501 | AV89: 0 | AX89: =AT89 -> z20 MESA D8 | AY89: =SUM(AM89,AQ89,AU89) -> 632.722 | AZ89: =SUM(AN89,AR89,AV89) -> 0 | BG89: z20 MESA D8 | BH89: =IFERROR(VLOOKUP($BG89,$BG$114:$BH$209,2,FALSE),0) -> 199.375 | BI89: =IFERROR(VLOOKUP($BG89,$A$6:$M$119,8,FALSE),"") -> 0 | BK89: z20 MESA D8 | BL89: 191.658 | BM89: 0 | BO89: z20 MESA D8 | BP89: 167.655 | BQ89: 0 | BS89: z20 MESA D8 | BT89: =SUM(BH89,BL89,BP89) -> 558.688 | BU89: =SUM(BI89,BM89,BQ89) -> 0 | CD89: =BS89 -> z20 MESA D8 | CE89: 180.261 | CF89: =IFERROR(VLOOKUP($A89,$A$6:$M$119,11,FALSE),"") -> 0 | CH89: z20 MESA D8 | CI89: 169.962 | CJ89: 0 | CL89: z20 MESA D8 | CM89: 168.747 | CN89: 0 | CP89: z20 MESA D8 | CQ89: 518.97 | CR89: 0
A90: z20 TRAIL D8 | B90: 0 | C90: 0 | D90: 0 | E90: 0 | F90: 204.8325043 | G90: 174.2189941 | H90: 161.9781036 | I90: 148.1148987 | J90: 119.5235977 | K90: 127.9773026 | L90: 116.4779968 | M90: 113.8567963 | N90: 1166.980194 | R90: =A90 -> z20 TRAIL D8 | S90: 0 | T90: 0 | V90: =R90 -> z20 TRAIL D8 | W90: 0 | X90: 0 | Z90: =R90 -> z20 TRAIL D8 | AA90: 0 | AB90: 0 | AD90: =R90 -> z20 TRAIL D8 | AE90: =SUM(S90,W90,AA90) -> 0 | AF90: =SUM(T90,X90,AB90) -> 0 | AL90: z20 TRAIL D8 | AM90: 0 | AN90: 0 | AP90: =AL90 -> z20 TRAIL D8 | AQ90: 0 | AR90: 204.8325043 | AT90: =AP90 -> z20 TRAIL D8 | AU90: 0 | AV90: 174.2189941 | AX90: =AT90 -> z20 TRAIL D8 | AY90: =SUM(AM90,AQ90,AU90) -> 0 | AZ90: =SUM(AN90,AR90,AV90) -> 379.0514984 | BG90: =R90 -> z20 TRAIL D8 | BH90: =IFERROR(VLOOKUP($BG90,$BG$114:$BH$209,2,FALSE),0) -> 223.063 | BI90: =IFERROR(VLOOKUP($BG90,$A$6:$M$119,8,FALSE),"") -> 161.9781036 | BK90: z20 TRAIL D8 | BL90: 220.661 | BM90: 148.1148987 | BO90: z20 TRAIL D8 | BP90: 196.605 | BQ90: 119.5235977 | BS90: z20 TRAIL D8 | BT90: =SUM(BH90,BL90,BP90) -> 640.329 | BU90: =SUM(BI90,BM90,BQ90) -> 429.6166 | CD90: =BS90 -> z20 TRAIL D8 | CE90: 215.632 | CF90: 127.9773026 | CH90: z20 TRAIL D8 | CI90: 199.91 | CJ90: 116.4779968 | CL90: z20 TRAIL D8 | CM90: 166.035 | CN90: 113.8567963 | CP90: z20 TRAIL D8 | CQ90: 581.577 | CR90: 358.3120956
A91: z21 CCRK D8 | B91: 0 | C91: 0 | D91: 0 | E91: 0 | F91: 0 | G91: 0 | H91: 0 | I91: 0 | J91: 0 | K91: 0 | L91: 0 | M91: 0 | N91: 0 | R91: z21 CCRK D8 | S91: 0 | T91: 0 | V91: z21 CCRK D8 | W91: 0 | X91: 0 | Z91: z21 CCRK D8 | AA91: 0 | AB91: 0 | AD91: z21 CCRK D8 | AE91: 0 | AF91: 0 | AL91: z21 CCRK D8 | AM91: 0 | AN91: 0 | AP91: z21 CCRK D8 | AQ91: 0 | AR91: 0 | AT91: z21 CCRK D8 | AU91: 0 | AV91: 0 | AX91: z21 CCRK D8 | AY91: 0 | AZ91: 0 | BG91: =R91 -> z21 CCRK D8 | BH91: =IFERROR(VLOOKUP($BG91,$BG$114:$BH$209,2,FALSE),0) -> 0 | BI91: =IFERROR(VLOOKUP($BG91,$A$6:$M$119,8,FALSE),"") -> 0 | BK91: z21 CCRK D8 | BL91: 0 | BM91: 0 | BO91: z21 CCRK D8 | BP91: 0 | BQ91: 0 | BS91: z21 CCRK D8 | BT91: 0 | BU91: 0 | CD91: z21 CCRK D8 | CE91: 0 | CF91: 0 | CH91: z21 CCRK D8 | CI91: 0 | CJ91: 0 | CL91: z21 CCRK D8 | CM91: 0 | CN91: 0 | CP91: z21 CCRK D8 | CQ91: 0 | CR91: 0
A92: z21 CHBT D8 | B92: 0 | C92: 0 | D92: 0 | E92: 0 | F92: 0 | G92: 0 | H92: 0 | I92: 0 | J92: 0 | K92: 0 | L92: 0 | M92: 0 | N92: 0 | R92: z21 CHBT D8 | S92: 0 | T92: 0 | V92: z21 CHBT D8 | W92: 0 | X92: 0 | Z92: z21 CHBT D8 | AA92: 0 | AB92: 0 | AD92: z21 CHBT D8 | AE92: 0 | AF92: 0 | AL92: z21 CHBT D8 | AM92: 0 | AN92: 0 | AP92: z21 CHBT D8 | AQ92: 0 | AR92: 0 | AT92: z21 CHBT D8 | AU92: 0 | AV92: 0 | AX92: z21 CHBT D8 | AY92: 0 | AZ92: 0 | BG92: =R92 -> z21 CHBT D8 | BH92: 0 | BI92: 0 | BK92: z21 CHBT D8 | BL92: 0 | BM92: 0 | BO92: z21 CHBT D8 | BP92: 0 | BQ92: 0 | BS92: z21 CHBT D8 | BT92: 0 | BU92: 0 | CD92: z21 CHBT D8 | CE92: 0 | CF92: 0 | CH92: z21 CHBT D8 | CI92: 0 | CJ92: 0 | CL92: z21 CHBT D8 | CM92: 0 | CN92: 0 | CP92: z21 CHBT D8 | CQ92: 0 | CR92: 0
A93: z21 TRAIL D8 | B93: 0 | C93: 0 | D93: 0 | E93: 0 | F93: 0 | G93: 0 | H93: 0 | I93: 0 | J93: 0 | K93: 0 | L93: 0 | M93: 0 | N93: 0 | R93: z21 TRAIL D8 | S93: 0 | T93: 0 | V93: =R93 -> z21 TRAIL D8 | W93: 0 | X93: 0 | Z93: z21 TRAIL D8 | AA93: 0 | AB93: 0 | AD93: z21 TRAIL D8 | AE93: 0 | AF93: 0 | AL93: z21 TRAIL D8 | AM93: 0 | AN93: 0 | AP93: z21 TRAIL D8 | AQ93: 0 | AR93: 0 | AT93: z21 TRAIL D8 | AU93: 0 | AV93: 0 | AX93: z21 TRAIL D8 | AY93: 0 | AZ93: 0 | BG93: =R93 -> z21 TRAIL D8 | BH93: =IFERROR(VLOOKUP($BG93,$BG$114:$BH$209,2,FALSE),0) -> 0 | BI93: =IFERROR(VLOOKUP($BG93,$A$6:$M$119,8,FALSE),"") -> 0 | BK93: z21 TRAIL D8 | BL93: 0 | BM93: 0 | BO93: z21 TRAIL D8 | BP93: 0 | BQ93: 0 | BS93: z21 TRAIL D8 | BT93: 0 | BU93: 0 | CD93: z21 TRAIL D8 | CE93: 0 | CF93: 0 | CH93: z21 TRAIL D8 | CI93: 0 | CJ93: 0 | CL93: z21 TRAIL D8 | CM93: 0 | CN93: 0 | CP93: z21 TRAIL D8 | CQ93: 0 | CR93: 0
A94: Wexpro I Total | B94: =SUM(B84:B93) -> 1101.915001 | C94: 1099.65678 | D94: 1064.915075 | E94: 1000.275015 | F94: 1209.158106 | G94: 1119.417015 | H94: 1113.250313 | I94: 1075.851925 | J94: 909.4959984 | K94: 1013.390028 | L94: 954.7950058 | M94: 962.1190948 | N94: 12624.23936 | R94: Wexpro l Total | S94: =SUM(S84:S93) -> 1106.572846 | T94: =SUM(T84:T93) -> 1101.915001 | V94: Wexpro l Total | W94: =SUM(W84:W93) -> 1063.995126 | X94: =SUM(X84:X93) -> 1099.65678 | Z94: Wexpro l Total | AA94: =SUM(AA84:AA93) -> 1028.110855 | AB94: =SUM(AB84:AB93) -> 1064.915075 | AD94: Wexpro l Total | AE94: 582.763 | AF94: 840.7417049 | AL94: =Z94 -> Wexpro l Total | AM94: =SUM(AM84:AM93) -> 921.165 | AN94: =SUM(AN84:AN93) -> 1000.275015 | AP94: =AD94 -> Wexpro l Total | AQ94: =SUM(AQ84:AQ93) -> 964.026 | AR94: =SUM(AR84:AR93) -> 1209.158106 | AT94: Wexpro l Total | AU94: =SUM(AU84:AU93) -> 1011.337 | AV94: =SUM(AV84:AV93) -> 1119.417015 | AX94: Wexpro l Total | AY94: =SUM(AM94,AQ94,AU94) -> 2896.528 | AZ94: =SUM(AN94,AR94,AV94) -> 3328.850136 | BF94: =(AY94-AZ94)/AZ94 -> -0.1298713124 | BG94: Wexpro l Total | BH94: =SUM(BH84:BH93) -> 1178.20312 | BI94: =SUM(BI84:BI93) -> 1113.250313 | BK94: Wexpro l Total | BL94: =SUM(BL84:BL93) -> 1136.433853 | BM94: =SUM(BM84:BM93) -> 1075.851925 | BO94: Wexpro l Total | BP94: =SUM(BP84:BP93) -> 993.1292181 | BQ94: =SUM(BQ84:BQ93) -> 909.4959984 | BS94: Wexpro l Total | BT94: =SUM(BH94,BL94,BP94) -> 3307.766191 | BU94: =SUM(BI94,BM94,BQ94) -> 3098.598236 | CD94: Wexpro I Total | CE94: =SUM(CE84:CE93) -> 1086.950618 | CF94: =SUM(CF84:CF93) -> 1013.390028 | CI94: =SUM(CI84:CI93) -> 1002.954288 | CJ94: =SUM(CJ84:CJ93) -> 954.7950058 | CM94: =SUM(CM84:CM93) -> 975.8546556 | CN94: =SUM(CN84:CN93) -> 962.1190948 | CQ94: =CM94+CI94+CE94 -> 3065.759562 | CR94: =CN94+CJ94+CF94 -> 2930.304129
T95: =IFERROR(VLOOKUP(R95,$A$6:$M$119,2,FALSE),"") ->  | X95: =IFERROR(VLOOKUP(V95,$A$6:$M$119,3,FALSE),"") ->  | AB95: =IFERROR(VLOOKUP(Z95,$A$6:$M$119,4,FALSE),"") ->  | AN95: =IFERROR(VLOOKUP(AL95,$A$6:$M$119,5,FALSE),"") ->  | AR95: =IFERROR(VLOOKUP($AP95,$A$6:$M$119,6,FALSE),"") ->  | AV95: =IFERROR(VLOOKUP($AT95,$A$6:$M$119,7,FALSE),"") ->  | BB95: IRP Variance | BC95: ='Ex 1 HDD'!I2 -> Docket No. 20-057-02 | BD95: Dominion Energy Utah | BI95: =IFERROR(VLOOKUP($BG95,$A$6:$M$119,8,FALSE),"") ->  | BM95: =IFERROR(VLOOKUP($BK95,$A$6:$M$119,9,FALSE),"") ->  | CF95: =IFERROR(VLOOKUP($A95,$A$6:$M$119,11,FALSE),"") ->  | CJ95: =IFERROR(VLOOKUP($A95,$A$6:$M$119,12,FALSE),"") ->  | CN95: =IFERROR(VLOOKUP($A95,$A$6:$M$119,13,FALSE),"") -> 
A96: Wexpro II | B96: =B5 -> 2020-06-01 | C96: 2020-07-01 | D96: 2020-08-01 | E96: 2020-09-01 | F96: 2020-10-01 | G96: 2020-11-01 | H96: 2020-12-01 | I96: 2021-01-01 | J96: 2021-02-01 | K96: 2021-03-01 | L96: 2021-04-01 | M96: 2021-05-01 | N96: =N83 -> Total | R96: =A96 -> Wexpro II | V96: Wexpro II | Z96: Wexpro II | AD96: =V96 -> Wexpro II | AL96: =AD96 -> Wexpro II | AP96: Wexpro II | AT96: Wexpro II | AX96: Wexpro II | BG96: Wexpro II | BK96: =BG96 -> Wexpro II | BO96: =BK96 -> Wexpro II | BS96: =BO96 -> Wexpro II | CD96: =A96 -> Wexpro II | CH96: =A96 -> Wexpro II | CL96: =A96 -> Wexpro II | CP96: Wexpro II
A97: CCOPA 2E | B97: 4.782000065 | C97: 4.913499832 | D97: 4.88560009 | E97: 4.701000214 | F97: 4.829800129 | G97: 4.650000095 | H97: 4.777100086 | I97: 4.749199867 | J97: 4.118800163 | K97: 4.696499825 | L97: 4.518000126 | M97: 4.640699863 | N97: =SUM(B97:M97) -> 56.26220036 | R97: CCOPA 2E | S97: =IFERROR(VLOOKUP(R97,$R$116:$S$210,2,FALSE),0) -> 4.443 | T97: =IFERROR(VLOOKUP(R97,$A$6:$M$119,2,FALSE),"") -> 4.782000065 | V97: CCOPA 2E | W97: =IFERROR(VLOOKUP(V97,$V$116:$W$210,2,FALSE),0) -> 4.127 | X97: =IFERROR(VLOOKUP(V97,$A$6:$M$119,3,FALSE),"") -> 4.913499832 | Z97: =R97 -> CCOPA 2E | AA97: =IFERROR(VLOOKUP(Z97,$Z$116:$AA$208,2,FALSE),0) -> 3.523 | AB97: =IFERROR(VLOOKUP(Z97,$A$6:$M$119,4,FALSE),"") -> 4.88560009 | AD97: CCOPA 2E | AE97: =SUM(S97,W97,AA97) -> 12.093 | AF97: =SUM(T97,X97,AB97) -> 14.58109999 | AH97: ='Ex 1 HDD'!I3 -> IRP Variance Exhibit | AI97: ='Ex 1 HDD'!I2 -> Docket No. 20-057-02 | AJ97: ='Ex 1 HDD'!I1 -> Dominion Energy Utah | AL97: CCOPA 2E | AM97: =IFERROR(VLOOKUP(AL97,$AL$116:$AM$206,2,FALSE),0) -> 2.88 | AN97: =IFERROR(VLOOKUP(AL97,$A$6:$M$119,5,FALSE),"") -> 4.701000214 | AP97: CCOPA 2E | AQ97: =IFERROR(VLOOKUP(AP97,$AP$116:$AQ$215,2,FALSE),0) -> 5.525 | AR97: =IFERROR(VLOOKUP($AP97,$A$6:$M$119,6,FALSE),"") -> 4.829800129 | AT97: CCOPA 2E | AU97: =IFERROR(VLOOKUP(AT97,$AT$116:$AU$208,2,FALSE),0) -> 3.658 | AV97: =IFERROR(VLOOKUP($AT97,$A$6:$M$119,7,FALSE),"") -> 4.650000095 | AX97: CCOPA 2E | AY97: =SUM(AM97,AQ97,AU97) -> 12.063 | AZ97: =SUM(AN97,AR97,AV97) -> 14.18080044 | BG97: =R97 -> CCOPA 2E | BH97: =IFERROR(VLOOKUP($BG97,$BG$114:$BH$209,2,FALSE),0) -> 2.78 | BI97: =IFERROR(VLOOKUP($BG97,$A$6:$M$119,8,FALSE),"") -> 4.777100086 | BK97: =R97 -> CCOPA 2E | BL97: =IFERROR(VLOOKUP($BK97,$BK$117:$BL$207,2,FALSE),0) -> 2.846 | BM97: =IFERROR(VLOOKUP($BK97,$A$6:$M$119,9,FALSE),"") -> 4.749199867 | BO97: =A97 -> CCOPA 2E | BP97: =IFERROR(VLOOKUP($BO97,$BO$117:$BP$207,2,FALSE),0) -> 2.882 | BQ97: =IFERROR(VLOOKUP($BO97,$A$6:$M$119,10,FALSE),0) -> 4.118800163 | BS97: =A97 -> CCOPA 2E | BT97: =SUM(BH97,BL97,BP97) -> 8.508 | BU97: =SUM(BI97,BM97,BQ97) -> 13.64510012 | CD97: CCOPA 2E | CE97: 3.359 | CF97: =IFERROR(VLOOKUP($A97,$A$6:$M$119,11,FALSE),"") -> 4.696499825 | CH97: =A97 -> CCOPA 2E | CI97: =IFERROR(VLOOKUP(CH97,$CH$115:$CJ$202,2,FALSE),0) -> 3.571 | CJ97: =IFERROR(VLOOKUP($A97,$A$6:$M$119,12,FALSE),"") -> 4.518000126 | CL97: =A97 -> CCOPA 2E | CM97: =IFERROR(VLOOKUP(CL97,$CL$115:$CN$205,2,FALSE),0) -> 3.714 | CN97: =IFERROR(VLOOKUP($A97,$A$6:$M$119,13,FALSE),"") -> 4.640699863 | CP97: CCOPA 2E | CQ97: =CM97+CI97+CE97 -> 10.644 | CR97: =CN97+CJ97+CF97 -> 13.85519981
A98: CCRUNIT2EMT | B98: 24.40200043 | C98: 25.02939987 | D98: 24.8465004 | E98: 23.86800003 | F98: 24.48380089 | G98: 23.31299973 | H98: 23.91650009 | I98: 23.74600029 | J98: 20.56040001 | K98: 23.40810013 | L98: 22.49399948 | M98: 23.07640076 | N98: =SUM(B98:M98) -> 283.1441021 | R98: CCRUNIT2EMT | S98: 23.314 | T98: 24.40200043 | V98: CCRUNIT2EMT | W98: 26.322 | X98: 25.02939987 | Z98: CCRUNIT2EMT | AA98: =IFERROR(VLOOKUP(Z98,$Z$116:$AA$208,2,FALSE),0) -> 27.247 | AB98: 24.8465004 | AD98: CCRUNIT2EMT | AE98: =SUM(S98,W98,AA98) -> 76.883 | AF98: =SUM(T98,X98,AB98) -> 74.2779007 | AL98: CCRUNIT2EMT | AM98: =IFERROR(VLOOKUP(AL98,$AL$116:$AM$206,2,FALSE),0) -> 26.806 | AN98: 23.86800003 | AP98: CCRUNIT2EMT | AQ98: =IFERROR(VLOOKUP(AP98,$AP$116:$AQ$206,2,FALSE),0) -> 26.145 | AR98: 24.48380089 | AT98: CCRUNIT2EMT | AU98: =IFERROR(VLOOKUP(AT98,$AT$116:$AU$208,2,FALSE),0) -> 27.112 | AV98: 23.31299973 | AX98: CCRUNIT2EMT | AY98: =SUM(AM98,AQ98,AU98) -> 80.063 | AZ98: =SUM(AN98,AR98,AV98) -> 71.66480064 | BG98: CCRUNIT2EMT | BH98: =IFERROR(VLOOKUP($BG98,$BG$114:$BH$209,2,FALSE),0) -> 23.842 | BI98: 23.91650009 | BK98: CCRUNIT2EMT | BL98: =IFERROR(VLOOKUP($BK98,$BK$117:$BL$207,2,FALSE),0) -> 25.071 | BM98: 23.74600029 | BO98: CCRUNIT2EMT | BP98: =IFERROR(VLOOKUP($BO98,$BO$117:$BP$207,2,FALSE),0) -> 23.443 | BQ98: 20.56040001 | BS98: CCRUNIT2EMT | BT98: 72.356 | BU98: 68.22290039 | CD98: CCRUNIT2EMT | CE98: 27.193 | CF98: 23.40810013 | CH98: =A98 -> CCRUNIT2EMT | CI98: =IFERROR(VLOOKUP(CH98,$CH$115:$CJ$202,2,FALSE),0) -> 26.043 | CJ98: 22.49399948 | CL98: =A98 -> CCRUNIT2EMT | CM98: =IFERROR(VLOOKUP(CL98,$CL$115:$CN$205,2,FALSE),0) -> 26.892 | CN98: 23.07640076 | CP98: CCRUNIT2EMT | CQ98: =CM98+CI98+CE98 -> 80.128 | CR98: =CN98+CJ98+CF98 -> 68.97850037
A99: CCRUNIT 2D8 | B99: 100.2509995 | C99: 100.4430981 | D99: 97.62210083 | E99: 92.00099945 | F99: 92.39550018 | G99: 86.71800232 | H99: 87.05420113 | I99: 84.70129967 | J99: 71.96280003 | K99: 80.48530102 | L99: 76.0530014 | M99: 76.80869865 | N99: 1046.496002 | R99: CCRUNIT 2D8 | S99: 95.178 | T99: 100.2509995 | V99: CCRUNIT 2D8 | W99: 94.546 | X99: 100.4430981 | Z99: CCRUNIT 2D8 | AA99: 91.214 | AB99: 97.62210083 | AD99: CCRUNIT 2D8 | AE99: =SUM(S99,W99,AA99) -> 280.938 | AF99: =SUM(T99,X99,AB99) -> 298.3161983 | AL99: CCRUNIT 2D8 | AM99: =IFERROR(VLOOKUP(AL99,$AL$116:$AM$206,2,FALSE),0) -> 101.055 | AN99: 92.00099945 | AP99: CCRUNIT 2D8 | AQ99: =IFERROR(VLOOKUP(AP99,$AP$116:$AQ$215,2,FALSE),0) -> 98.412 | AR99: 92.39550018 | AT99: CCRUNIT 2D8 | AU99: =IFERROR(VLOOKUP(AT99,$AT$116:$AU$208,2,FALSE),0) -> 95.172 | AV99: 86.71800232 | AX99: CCRUNIT 2D8 | AY99: =SUM(AM99,AQ99,AU99) -> 294.639 | AZ99: =SUM(AN99,AR99,AV99) -> 271.114502 | BG99: CCRUNIT 2D8 | BH99: =IFERROR(VLOOKUP($BG99,$BG$114:$BH$209,2,FALSE),0) -> 91.364 | BI99: 87.05420113 | BK99: CCRUNIT 2D8 | BL99: =IFERROR(VLOOKUP($BK99,$BK$117:$BL$207,2,FALSE),0) -> 89.218 | BM99: 84.70129967 | BO99: CCRUNIT 2D8 | BP99: =IFERROR(VLOOKUP($BO99,$BO$117:$BP$207,2,FALSE),0) -> 76.959 | BQ99: 71.96280003 | BS99: CCRUNIT 2D8 | BT99: 257.541 | BU99: 243.7183008 | BV99: IRP Variance | BW99: Docket No. 19-057-01 | BX99: Dominion Energy Utah | CD99: CCRUNIT 2D8 | CE99: 88.752 | CF99: 80.48530102 | CH99: CCRUNIT 2D8 | CI99: 83.732 | CJ99: 76.0530014 | CL99: CCRUNIT 2D8 | CM99: 83.999 | CN99: 76.80869865 | CP99: CCRUNIT 2D8 | CQ99: 256.483 | CR99: 233.3470011
A100: CCRUNIT 2E | B100: 284.9880066 | C100: 290.4978943 | D100: 286.7034912 | E100: 273.947998 | F100: 279.6106873 | G100: 267.3659973 | H100: 273.0697021 | I100: 269.9758911 | J100: 232.8312073 | K100: 264.085907 | L100: 252.845993 | M100: 258.5462036 | N100: 3234.468979 | R100: CCRUNIT 2E | S100: 262.572 | T100: 284.9880066 | V100: CCRUNIT 2E | W100: 277.737 | X100: 290.4978943 | Z100: CCRUNIT 2E | AA100: 278.277 | AB100: 286.7034912 | AD100: CCRUNIT 2E | AE100: 818.586 | AF100: 862.1893921 | AL100: CCRUNIT 2E | AM100: =IFERROR(VLOOKUP(AL100,$AL$116:$AM$206,2,FALSE),0) -> 262.008 | AN100: 273.947998 | AP100: CCRUNIT 2E | AQ100: =IFERROR(VLOOKUP(AP100,$AP$116:$AQ$215,2,FALSE),0) -> 256.333 | AR100: 279.6106873 | AT100: CCRUNIT 2E | AU100: =IFERROR(VLOOKUP(AT100,$AT$116:$AU$208,2,FALSE),0) -> 253.888 | AV100: 267.3659973 | AX100: CCRUNIT 2E | AY100: 772.229 | AZ100: 820.9246826 | BG100: CCRUNIT 2E | BH100: 239.896 | BI100: 273.0697021 | BK100: CCRUNIT 2E | BL100: 250.463 | BM100: 269.9758911 | BO100: CCRUNIT 2E | BP100: 235.646 | BQ100: 232.8312073 | BS100: CCRUNIT 2E | BT100: 726.005 | BU100: 775.8768005 | CD100: CCRUNIT 2E | CE100: 264.225 | CF100: 264.085907 | CH100: CCRUNIT 2E | CI100: 254.247 | CJ100: 252.845993 | CL100: CCRUNIT 2E | CM100: 254.286 | CN100: 258.5462036 | CP100: CCRUNIT 2E | CQ100: 772.758 | CR100: 775.4781036
A101: TRAIL 2E | B101: 404.243988 | C101: 409.9284973 | D101: 402.6496887 | E101: 383.04599 | F101: 389.3599854 | G101: 370.881012 | H101: 377.4312134 | I101: 371.8883972 | J101: 319.6983948 | K101: 361.5220032 | L101: 345.1470032 | M101: 351.973999 | N101: 4487.770172 | R101: TRAIL 2E | S101: 433.419 | T101: 404.243988 | V101: TRAIL 2E | W101: 326.705 | X101: 409.9284973 | Z101: TRAIL 2E | AA101: 330.971 | AB101: 402.6496887 | AD101: TRAIL 2E | AE101: 1091.095 | AF101: 1216.822174 | AL101: TRAIL 2E | AM101: 293.206 | AN101: 383.04599 | AP101: TRAIL 2E | AQ101: =IFERROR(VLOOKUP(AP101,$AP$116:$AQ$215,2,FALSE),0) -> 298.982 | AR101: 389.3599854 | AT101: TRAIL 2E | AU101: 391.36 | AV101: 370.881012 | AX101: TRAIL 2E | AY101: 983.548 | AZ101: 1143.286987 | BG101: TRAIL 2E | BH101: 369.779 | BI101: 377.4312134 | BK101: TRAIL 2E | BL101: 372.144 | BM101: 371.8883972 | BO101: TRAIL 2E | BP101: 325.373 | BQ101: 319.6983948 | BS101: TRAIL 2E | BT101: 1067.296 | BU101: 1069.018005 | CD101: TRAIL 2E | CE101: 350.598 | CF101: 361.5220032 | CH101: TRAIL 2E | CI101: 349.884 | CJ101: 345.1470032 | CL101: TRAIL 2E | CM101: 353.066 | CN101: 351.973999 | CP101: TRAIL 2E | CQ101: 1053.548 | CR101: 1058.643005
A102: TRAIL 2E MT | B102: 54.50699997 | C102: 55.43730164 | D102: 54.60340118 | E102: 52.08000183 | F102: 53.06579971 | G102: 50.66400146 | H102: 51.66770172 | I102: 51.0135994 | J102: 43.93759918 | K102: 49.77360153 | L102: 47.60100174 | M102: 48.62039948 | N102: 612.9714088 | R102: TRAIL 2E MT | S102: 50.777 | T102: 54.50699997 | V102: TRAIL 2E MT | W102: 50.702 | X102: 55.43730164 | Z102: TRAIL 2E MT | AA102: 51.258 | AB102: 54.60340118 | AD102: TRAIL 2E MT | AE102: 152.737 | AF102: 164.5477028 | AL102: TRAIL 2E MT | AM102: 48.783 | AN102: 52.08000183 | AP102: TRAIL 2E MT | AQ102: 48.51 | AR102: 53.06579971 | AT102: TRAIL 2E MT | AU102: 48.722 | AV102: 50.66400146 | AX102: TRAIL 2E MT | AY102: 146.015 | AZ102: 155.809803 | BG102: TRAIL 2E MT | BH102: 48.522 | BI102: 51.66770172 | BK102: TRAIL 2E MT | BL102: 47.205 | BM102: 51.0135994 | BO102: TRAIL 2E MT | BP102: 40.581 | BQ102: 43.93759918 | BS102: TRAIL 2E MT | BT102: 136.308 | BU102: 146.6189003 | CD102: TRAIL 2E MT | CE102: 50.233 | CF102: 49.77360153 | CH102: TRAIL 2E MT | CI102: 51.195 | CJ102: 47.60100174 | CL102: TRAIL 2E MT | CM102: 45.357 | CN102: 48.62039948 | CP102: TRAIL 2E MT | CQ102: 146.785 | CR102: 145.9950027
A103: WHISKEYC 2E | B103: 98.28900146 | C103: 99.74250031 | D103: 98.01270294 | E103: 93.26100159 | F103: 94.80419922 | G103: 90.30000305 | H103: 91.88089752 | I103: 90.51380157 | J103: 77.78959656 | K103: 87.94080353 | L103: 83.93399811 | M103: 85.56620026 | N103: 1092.034706 | R103: WHISKEYC 2E | S103: 99.989 | T103: 98.28900146 | V103: WHISKEYC 2E | W103: 99.754 | X103: 99.74250031 | Z103: WHISKEYC 2E | AA103: 97.158 | AB103: 98.01270294 | AD103: WHISKEYC 2E | AE103: 296.901 | AF103: 296.0442047 | AL103: WHISKEYC 2E | AM103: 92.761 | AN103: 93.26100159 | AP103: WHISKEYC 2E | AQ103: 92.357 | AR103: 94.80419922 | AT103: WHISKEYC 2E | AU103: 87.941 | AV103: 90.30000305 | AX103: WHISKEYC 2E | AY103: =SUM(AM103,AQ103,AU103) -> 273.059 | AZ103: =SUM(AN103,AR103,AV103) -> 278.3652039 | BG103: WHISKEYC 2E | BH103: 80.01 | BI103: 91.88089752 | BK103: WHISKEYC 2E | BL103: 93.441 | BM103: 90.51380157 | BO103: WHISKEYC 2E | BP103: 78.291 | BQ103: 77.78959656 | BS103: WHISKEYC 2E | BT103: 251.742 | BU103: 260.1842957 | CD103: WHISKEYC 2E | CE103: 83.892 | CF103: 87.94080353 | CH103: WHISKEYC 2E | CI103: 82.988 | CJ103: 83.93399811 | CL103: WHISKEYC 2E | CM103: 83.007 | CN103: 85.56620026 | CP103: WHISKEYC 2E | CQ103: 249.887 | CR103: 257.4410019
A104: WHISKEY MT | B104: 33.26699829 | C104: 33.70320129 | D104: 33.0646019 | E104: 31.40999985 | F104: 31.87730026 | G104: 30.31800079 | H104: 30.8015995 | I104: 30.29940033 | J104: 26.00359917 | K104: 29.35700035 | L104: 27.9810009 | M104: 28.48900032 | N104: 366.571703 | R104: WHISKEY MT | S104: 31.854 | T104: 33.26699829 | V104: WHISKEY MT | W104: 31.377 | X104: 33.70320129 | Z104: WHISKEY MT | AA104: 34.848 | AB104: 33.0646019 | AD104: WHISKEY MT | AE104: 98.079 | AF104: 100.0348015 | AL104: WHISKEY MT | AM104: 30.912 | AN104: 31.40999985 | AP104: WHISKEY MT | AQ104: 29.573 | AR104: 31.87730026 | AT104: WHISKEY MT | AU104: 25.697 | AV104: 30.31800079 | AX104: WHISKEY MT | AY104: 86.182 | AZ104: 93.6053009 | BB104: 9.2 | BG104: WHISKEY MT | BH104: =IFERROR(VLOOKUP($BG104,$BG$115:$BH$209,2,FALSE),0) -> 24.798 | BI104: 30.8015995 | BK104: WHISKEY MT | BL104: 23.721 | BM104: 30.29940033 | BO104: WHISKEY MT | BP104: 24.929 | BQ104: 26.00359917 | BS104: WHISKEY MT | BT104: 73.448 | BU104: 87.104599 | CD104: WHISKEY MT | CE104: 25.145 | CF104: 29.35700035 | CH104: WHISKEY MT | CI104: 25.751 | CJ104: 27.9810009 | CL104: WHISKEY MT | CM104: 29.947 | CN104: 28.48900032 | CP104: WHISKEY MT | CQ104: 80.843 | CR104: 85.82700157
A105: TRAIL 2D8 | B105: 94.52700043 | C105: 94.39499664 | D105: 91.40660095 | E105: 85.80599976 | F105: 86.14589691 | G105: 81.11100006 | H105: 81.65399933 | I105: 79.63899994 | J105: 67.81040192 | K105: 75.99340057 | L105: 71.93699646 | M105: 72.77559662 | N105: 983.2008896 | R105: TRAIL 2D8 | S105: 65.23 | T105: 94.52700043 | V105: TRAIL 2D8 | W105: 18.459 | X105: 94.39499664 | Z105: TRAIL 2D8 | AA105: 18.334 | AB105: 91.40660095 | AD105: TRAIL 2D8 | AE105: 102.023 | AF105: 280.328598 | AL105: TRAIL 2D8 | AM105: 16.829 | AN105: 85.80599976 | AP105: TRAIL 2D8 | AQ105: 15.992 | AR105: 86.14589691 | AT105: TRAIL 2D8 | AU105: 136.508 | AV105: 81.11100006 | AX105: TRAIL 2D8 | AY105: 169.329 | AZ105: 253.0628967 | BG105: TRAIL 2D8 | BH105: =IFERROR(VLOOKUP($BG105,$BG$115:$BH$209,2,FALSE),0) -> 121.081 | BI105: 81.65399933 | BK105: TRAIL 2D8 | BL105: 106.065 | BM105: 79.63899994 | BO105: TRAIL 2D8 | BP105: 87.604 | BQ105: 67.81040192 | BS105: TRAIL 2D8 | BT105: 314.75 | BU105: 229.1034012 | CD105: TRAIL 2D8 | CE105: 89.432 | CF105: 75.99340057 | CH105: TRAIL 2D8 | CI105: 81.094 | CJ105: 71.93699646 | CL105: TRAIL 2D8 | CM105: 75.485 | CN105: 72.77559662 | CP105: TRAIL 2D8 | CQ105: 246.011 | CR105: 220.7059937
A106: CCRUNIT MT | B106: 21.79199982 | C106: 22.04409981 | D106: 21.59770012 | E106: 20.48999977 | F106: 20.77000046 | G106: 19.72500038 | H106: 20.01670074 | I106: 19.66329956 | J106: 16.8560009 | K106: 19.0060997 | L106: 18.09300041 | M106: 18.39850044 | N106: 238.4524021 | R106: CCRUNIT MT | S106: =S137*P139 -> 22.24315416 | T106: =B106 -> 21.79199982 | V106: =R106 -> CCRUNIT MT | W106: =W137*P140 -> 23.39387419 | X106: =C106 -> 22.04409981 | Z106: =R106 -> CCRUNIT MT | AA106: =AA135*P141 -> 22.81214477 | AB106: =D106 -> 21.59770012 | AD106: =R106 -> CCRUNIT MT | AE106: =SUM(S106,W106,AA106) -> 68.44917312 | AF106: =SUM(T106,X106,AB106) -> 65.43379974 | AL106: =AD106 -> CCRUNIT MT | BG106: CCRUNIT MT | BH106: =IFERROR(VLOOKUP($BG106,$BG$115:$BH$209,2,FALSE),0)*P145 -> 20.44187996 | BI106: =IFERROR(VLOOKUP($BG106,$A$6:$M$119,8,FALSE),"") -> 48.13370132 | BK106: CCRUNIT MT | BL106: =IFERROR(VLOOKUP($BK106,$BK$117:$BL$207,2,FALSE),0)*P146 -> 19.48714748 | BM106: 47.29050064 | BO106: CCRUNIT MT | BP106: =IFERROR(VLOOKUP($BO106,$BO$117:$BP$207,2,FALSE),0)*P147 -> 17.34278193 | BQ106: 40.53559875 | BS106: CCRUNIT MT | BT106: 57.27180937 | BU106: 135.9598007 | CD106: CCRUNIT MT | CE106: =IFERROR(VLOOKUP(CD106,$CD$115:$CF$202,2,FALSE),0)*P148 -> 19.52938169 | CF106: 45.70330048 | CH106: CCRUNIT MT | CI106: =IFERROR(VLOOKUP(CH106,$CH$115:$CJ$202,2,FALSE),0)*P149 -> 18.89071157 | CJ106: 43.50899887 | CL106: CCRUNIT MT | CM106: =IFERROR(VLOOKUP(CL106,$CL$115:$CN$205,2,FALSE),0)*P150 -> 18.91634442 | CN106: 44.24629974 | CP106: CCRUNIT MT | CQ106: 57.33643768 | CR106: 133.4585991
A107: z20 TRAIL2D8 | B107: 0 | C107: 0 | D107: 0 | E107: 0 | F107: 394.6238098 | G107: 335.7869873 | H107: 312.2753906 | I107: 285.6061096 | J107: 230.5072021 | K107: 246.8406067 | L107: 224.6820068 | M107: 219.6443024 | N107: 2249.966415 | R107: z20 TRAIL2D8 | S107: =IFERROR(VLOOKUP(R107,$R$116:$S$210,2,FALSE),0) -> 0 | T107: =IFERROR(VLOOKUP(R107,$A$6:$M$119,2,FALSE),"") -> 0 | V107: =R107 -> z20 TRAIL2D8 | W107: =IFERROR(VLOOKUP(V107,$V$116:$W$210,2,FALSE),0) -> 0 | X107: =IFERROR(VLOOKUP(V107,$A$6:$M$119,3,FALSE),"") -> 0 | Z107: =R107 -> z20 TRAIL2D8 | AA107: =IFERROR(VLOOKUP(Z107,$Z$116:$AA$208,2,FALSE),0) -> 0 | AB107: =IFERROR(VLOOKUP(Z107,$A$6:$M$119,4,FALSE),"") -> 0 | AD107: =R107 -> z20 TRAIL2D8 | AE107: =SUM(S107,W107,AA107) -> 0 | AF107: =SUM(T107,X107,AB107) -> 0 | AL107: =AD107 -> z20 TRAIL2D8 | BG107: z20 TRAIL2D8 | BH107: =IFERROR(VLOOKUP($BG107,$BG$115:$BH$209,2,FALSE),0) -> 410.551 | BI107: =IFERROR(VLOOKUP($BG107,$A$6:$M$119,8,FALSE),"") -> 312.2753906 | BK107: z20 TRAIL2D8 | BL107: 398.148 | BM107: 285.6061096 | BO107: z20 TRAIL2D8 | BP107: 330.828 | BQ107: 230.5072021 | BS107: z20 TRAIL2D8 | BT107: 1139.527 | BU107: 828.3887024 | CD107: z20 TRAIL2D8 | CE107: 345.589 | CF107: 246.8406067 | CH107: z20 TRAIL2D8 | CI107: 309.648 | CJ107: 224.6820068 | CL107: z20 TRAIL2D8 | CM107: 263.619 | CN107: 219.6443024 | CP107: z20 TRAIL2D8 | CQ107: 918.856 | CR107: 691.1669159
A108: z21 CCRK 2D8 | B108: 0 | C108: 0 | D108: 0 | E108: 0 | F108: 0 | G108: 0 | H108: 0 | I108: 0 | J108: 0 | K108: 0 | L108: 0 | M108: 0 | N108: 0 | R108: z21 CCRK 2D8 | S108: =IFERROR(VLOOKUP(R108,$R$116:$S$210,2,FALSE),0) -> 0 | T108: =IFERROR(VLOOKUP(R108,$A$6:$M$119,2,FALSE),"") -> 0 | V108: z21 CCRK 2D8 | W108: =IFERROR(VLOOKUP(V108,$V$116:$W$210,2,FALSE),0) -> 0 | X108: =IFERROR(VLOOKUP(V108,$A$6:$M$119,3,FALSE),"") -> 0 | Z108: z21 CCRK 2D8 | AA108: =IFERROR(VLOOKUP(Z108,$Z$116:$AA$208,2,FALSE),0) -> 0 | AB108: =IFERROR(VLOOKUP(Z108,$A$6:$M$119,4,FALSE),"") -> 0 | AD108: z21 CCRK 2D8 | AE108: 0 | AF108: 0 | AL108: z21 CCRK 2D8 | BG108: z21 CCRK 2D8 | BH108: 0 | BI108: =IFERROR(VLOOKUP($BG108,$A$6:$M$119,8,FALSE),"") -> 0 | BK108: z21 CCRK 2D8 | BL108: 0 | BM108: 0 | BO108: z21 CCRK 2D8 | BP108: 0 | BQ108: 0 | BS108: z21 CCRK 2D8 | BT108: 0 | BU108: 0 | CD108: z21 CCRK 2D8 | CE108: 0 | CF108: 0 | CH108: z21 CCRK 2D8 | CI108: 0 | CJ108: 0 | CL108: z21 CCRK 2D8 | CM108: 0 | CN108: 0 | CP108: z21 CCRK 2D8 | CQ108: 0 | CR108: 0
A109: z21 TRAIL2D8 | B109: 0 | C109: 0 | D109: 0 | E109: 0 | F109: 0 | G109: 0 | H109: 0 | I109: 0 | J109: 0 | K109: 0 | L109: 0 | M109: 0 | N109: 0 | R109: z21 TRAIL2D8 | S109: =IFERROR(VLOOKUP(R109,$R$116:$S$210,2,FALSE),0) -> 0 | T109: =IFERROR(VLOOKUP(R109,$A$6:$M$119,2,FALSE),"") -> 0 | V109: z21 TRAIL2D8 | W109: =IFERROR(VLOOKUP(V109,$V$116:$W$210,2,FALSE),0) -> 0 | X109: =IFERROR(VLOOKUP(V109,$A$6:$M$119,3,FALSE),"") -> 0 | Z109: z21 TRAIL2D8 | AA109: =IFERROR(VLOOKUP(Z109,$Z$116:$AA$208,2,FALSE),0) -> 0 | AB109: =IFERROR(VLOOKUP(Z109,$A$6:$M$119,4,FALSE),"") -> 0 | AD109: z21 TRAIL2D8 | AE109: 0 | AF109: 0 | AL109: z21 TRAIL2D8 | BG109: z21 TRAIL2D8 | BH109: 0 | BI109: =IFERROR(VLOOKUP($BG109,$A$6:$M$119,8,FALSE),"") -> 0 | BK109: z21 TRAIL2D8 | BL109: 0 | BM109: 0 | BO109: z21 TRAIL2D8 | BP109: 0 | BQ109: 0 | BS109: z21 TRAIL2D8 | BT109: 0 | BU109: 0 | CD109: z21 TRAIL2D8 | CE109: 0 | CF109: 0 | CH109: z21 TRAIL2D8 | CI109: 0 | CJ109: 0 | CL109: z21 TRAIL2D8 | CM109: 0 | CN109: 0 | CP109: z21 TRAIL2D8 | CQ109: 0 | CR109: 0
A110: z21 WSKY 2D8 | B110: 0 | C110: 0 | D110: 0 | E110: 0 | F110: 0 | G110: 0 | H110: 0 | I110: 0 | J110: 0 | K110: 0 | L110: 0 | M110: 0 | N110: 0 | R110: z21 WSKY 2D8 | S110: =IFERROR(VLOOKUP(R110,$R$116:$S$210,2,FALSE),0) -> 0 | T110: =IFERROR(VLOOKUP(R110,$A$6:$M$119,2,FALSE),"") -> 0 | V110: z21 WSKY 2D8 | W110: =IFERROR(VLOOKUP(V110,$V$116:$W$210,2,FALSE),0) -> 0 | X110: =IFERROR(VLOOKUP(V110,$A$6:$M$119,3,FALSE),"") -> 0 | Z110: z21 WSKY 2D8 | AA110: =IFERROR(VLOOKUP(Z110,$Z$116:$AA$208,2,FALSE),0) -> 0 | AB110: =IFERROR(VLOOKUP(Z110,$A$6:$M$119,4,FALSE),"") -> 0 | AD110: z21 WSKY 2D8 | AE110: 0 | AF110: 0 | AL110: z21 WSKY 2D8 | BG110: z21 WSKY 2D8 | BH110: 0 | BI110: =IFERROR(VLOOKUP($BG110,$A$6:$M$119,8,FALSE),"") -> 0 | BK110: z21 WSKY 2D8 | BL110: 0 | BM110: 0 | BO110: z21 WSKY 2D8 | BP110: 0 | BQ110: 0 | BS110: z21 WSKY 2D8 | BT110: 0 | BU110: 0 | CD110: z21 WSKY 2D8 | CE110: 0 | CF110: 0 | CH110: z21 WSKY 2D8 | CI110: 0 | CJ110: 0 | CL110: z21 WSKY 2D8 | CM110: 0 | CN110: 0 | CP110: z21 WSKY 2D8 | CQ110: 0 | CR110: 0
A111: Wexpro II Total | B111: =SUM(B97:B110) -> 1121.048995 | C111: 1136.134489 | D111: 1115.392388 | E111: 1060.610991 | F111: 1471.96678 | G111: 1360.833004 | H111: 1354.545006 | I111: 1311.795999 | J111: 1112.076002 | K111: 1243.109324 | L111: 1175.286002 | M111: 1188.540001 | N111: 14651.33898 | R111: Wexpro II Total | S111: =SUM(S97:S110) -> 1089.019154 | T111: =SUM(T97:T110) -> 1121.048995 | V111: Wexpro II Total | W111: =SUM(W97:W110) -> 953.1228742 | X111: =SUM(X97:X110) -> 1136.134489 | Z111: Wexpro II Total | AA111: =SUM(AA97:AA110) -> 955.6421448 | AB111: =SUM(AB97:AB110) -> 1115.392388 | AD111: Wexpro II Total | AE111: =SUM(AE97:AE110) -> 2997.784173 | AF111: =SUM(AF97:AF110) -> 3372.575872 | AL111: =AD111 -> Wexpro II Total | AM111: =SUM(AM97:AM110) -> 875.24 | AN111: =SUM(AN97:AN110) -> 1040.120991 | AP111: New Drill Total | AQ111: =SUM(AQ97:AQ110) -> 871.829 | AR111: =SUM(AR97:AR110) -> 1056.57297 | AT111: New Drill Total | AU111: =SUM(AU97:AU110) -> 1070.058 | AV111: =SUM(AV97:AV110) -> 1005.321017 | AX111: New Drill Total | AY111: 2817.127 | AZ111: 3102.014977 | BG111: =R111 -> Wexpro II Total | BH111: =SUM(BH97:BH110) -> 1433.06488 | BI111: =SUM(BI97:BI110) -> 1382.662007 | BK111: =R111 -> Wexpro II Total | BL111: =SUM(BL97:BL110) -> 1427.809147 | BM111: =SUM(BM97:BM110) -> 1339.4232 | BO111: =BK111 -> Wexpro II Total | BP111: =SUM(BP97:BP110) -> 1243.878782 | BQ111: =SUM(BQ97:BQ110) -> 1135.7556 | BT111: =SUM(BT97:BT110) -> 4104.752809 | BU111: =SUM(BU97:BU110) -> 3857.840806 | CE111: =SUM(CE97:CE110) -> 1347.947382 | CF111: =SUM(CF97:CF110) -> 1269.806524 | CI111: =SUM(CI97:CI110) -> 1287.043712 | CJ111: =SUM(CJ97:CJ110) -> 1200.702 | CM111: =SUM(CM97:CM110) -> 1238.288344 | CN111: =SUM(CN97:CN110) -> 1214.387801 | CQ111: =CM111+CI111+CE111 -> 3873.279438 | CR111: =CN111+CJ111+CF111 -> 3684.896325
BW112: 9.2
A113: Off System | B113: =B5 -> 2020-06-01 | C113: 2020-07-01 | D113: 2020-08-01 | E113: 2020-09-01 | F113: 2020-10-01 | G113: 2020-11-01 | H113: 2020-12-01 | I113: 2021-01-01 | J113: 2021-02-01 | K113: 2021-03-01 | L113: 2021-04-01 | M113: 2021-05-01 | N113: =N96 -> Total | R113: Total | S113: =SUM(S81,S94,S111) -> 5334.561 | T113: =SUM(T81,T94,T111) -> 5236.581024 | V113: Total | W113: =SUM(W81,W94,W111) -> 5132.206 | X113: =SUM(X81,X94,X111) -> 5317.76784 | Z113: Total | AA113: =SUM(AA81,AA94,AA111) -> 4998.134 | AB113: =SUM(AB81,AB94,AB111) -> 5231.749093 | AD113: Total | AE113: =SUM(AE81,AE94,AE111) -> 12847.03217 | AF113: =SUM(AF81,AF94,AF111) -> 13360.35281 | AL113: Total | AM113: =SUM(AM81,AM94,AM111) -> 4638.26 | AN113: =SUM(AN81,AN94,AN111) -> 4964.67299 | AP113: Total | AQ113: =SUM(AQ81,AQ94,AQ111) -> 4789.847 | AR113: =SUM(AR81,AR94,AR111) -> 5258.257165 | AT113: Total | AU113: =SUM(AU81,AU94,AU111) -> 5098.368 | AV113: =SUM(AV81,AV94,AV111) -> 5005.452006 | AX113: Total | AY113: =SUM(AY81,AY94,AY111) -> 14526.475 | AZ113: =SUM(AZ81,AZ94,AZ111) -> 15228.38216 | BG113: =R113 -> Total | BH113: =SUM(BH111,BH94,BH81) -> 5641.265 | BI113: =SUM(BI111,BI94,BI81) -> 5613.706324 | BK113: =R113 -> Total | BL113: =SUM(BL111,BL94,BL81) -> 5586.761 | BM113: =SUM(BM111,BM94,BM81) -> 5503.160303 | BO113: =V113 -> Total | BP113: =SUM(BP111,BP94,BP81) -> 4967.783 | BQ113: =SUM(BQ111,BQ94,BQ81) -> 4713.360421 | BS113: =Z113 -> Total | BT113: =SUM(BT111,BT94,BT81) -> 16195.809 | BU113: =SUM(BU111,BU94,BU81) -> 15830.22705 | CD113: Total | CE113: =SUM(CE97:CE110)+SUM(CE84:CE93)+SUM(CE6:CE80) -> 5390.52 | CF113: =SUM(CF97:CF110)+SUM(CF84:CF93)+SUM(CF6:CF80) -> 5313.762704 | CH113: Total | CI113: =SUM(CI111,CI94,CI81) -> 5177.107 | CJ113: =SUM(CJ111,CJ94,CJ81) -> 5061.57598 | CL113: Total | CM113: =SUM(CM111,CM94,CM81) -> 5141.103 | CN113: =SUM(CN111,CN94,CN81) -> 5152.87271 | CP113: Total | CQ113: =CE113+CI113+CM113 -> 15708.73 | CR113: =CF113+CJ113+CN113 -> 15528.21139
A114: OFF SYS D24 | B114: 33.63308716 | C114: 34.56347275 | D114: 34.34426498 | E114: 33.05182266 | F114: 33.9628334 | G114: 32.65512466 | H114: 33.55290985 | I114: 33.36219406 | J114: 30.221735 | K114: 32.97766113 | L114: 31.72930145 | M114: 32.59622955 | N114: =SUM(B114:M114) -> 396.6506367
A115: OFF SYS PC | B115: 8.411999702 | C115: 8.655200005 | D115: 8.618000031 | E115: 8.303999901 | F115: 8.543600082 | G115: 8.232000351 | H115: 8.469200134 | I115: 8.43200016 | J115: 7.322000027 | K115: 8.360699654 | L115: 8.055000305 | M115: 8.286299706 | N115: =SUM(B115:M115) -> 99.69000006 | R115: nomgroup | S115: value_6 | T115: month_tot | V115: nomgroup | W115: value_7 | X115: month_tot | Z115: nomgroup | AA115: value_8 | AB115: month_tot | AL115: nomgroup | AM115: value_9 | AN115: month_tot | AP115: nomgroup | AQ115: value_10 | AR115: month_tot | AT115: nomgroup | AU115: value_11 | AV115: month_tot | BG115: nomgroup | BH115: value_12 | BI115: month_tot | BK115: nomgroup | BL115: value_1 | BM115: month_tot | BO115: nomgroup | BP115: value_2 | BQ115: month_tot | CD115: nomgroup | CE115: value_3 | CF115: month_tot | CH115: nomgroup | CI115: value_4 | CJ115: month_tot | CL115: nomgroup | CM115: value_5 | CN115: month_tot
A116: OFF SYS PW | B116: 0 | C116: 0 | D116: 0 | E116: 0 | F116: 0 | G116: 0 | H116: 0 | I116: 0 | J116: 0 | K116: 0 | L116: 0 | M116: 0 | N116: =SUM(B116:M116) -> 0 | R116: ACEJDMT D24 | S116: 11.616 | T116: 5334.56 | V116: ACEJDMT D24 | W116: 9.432 | X116: 5132.2 | Z116: ACEJDMT D24 | AA116: 11.519 | AB116: 4998.13 | AL116: ACEJDMT D24 | AM116: 11.474 | AN116: 4638.26 | AP116: ACEJDMT D24 | AQ116: 11.963 | AR116: 4789.85 | AT116: ACEJDMT D24 | AU116: 13.746 | AV116: 5098.37 | BG116: ACEJDMT D24 | BH116: 7.142 | BI116: 5641.26 | BK116: ACEJDMT D24 | BL116: 11.334 | BM116: 5586.76 | BO116: ACEJDMT D24 | BP116: 10.889 | BQ116: 4967.86 | CD116: ACEJDMT D24 | CE116: 10.448 | CF116: 5390.52 | CH116: ACEJDMT D24 | CI116: 10.425 | CJ116: 5177.11 | CL116: ACEJDMT D24 | CM116: 10.751 | CN116: 5141.1
A117: Off System Total | B117: =SUM(B114:B116) -> 42.04508686 | C117: =SUM(C114:C116) -> 43.21867275 | D117: 42.96226501 | E117: 41.35582256 | F117: 42.50643349 | G117: 40.88712502 | H117: 42.02210999 | I117: 41.79419422 | J117: 37.54373503 | K117: 41.33836079 | L117: 39.78430176 | M117: 40.88252926 | N117: =SUM(B117:M117) -> 496.3406367 | R117: ACEJDMT PC | S117: 3.443 | T117: 5334.56 | V117: ACEJDMT PC | W117: 3.93 | X117: 5132.2 | Z117: ACEJDMT PC | AA117: 2.512 | AB117: 4998.13 | AL117: ACEJDMT PC | AM117: 3.395 | AN117: 4638.26 | AP117: ACEJDMT PC | AQ117: 3.668 | AR117: 4789.85 | AT117: ACEJDMT PC | AU117: 3.679 | AV117: 5098.37 | BG117: ACEJDMT PC | BH117: 3.892 | BI117: 5641.26 | BK117: ACEJDMT PC | BL117: 3.759 | BM117: 5586.76 | BO117: ACEJDMT PC | BP117: 3.452 | BQ117: 4967.86 | CD117: ACEJDMT PC | CE117: 3.306 | CF117: 5390.52 | CH117: ACEJDMT PC | CI117: 2.168 | CJ117: 5177.11 | CL117: ACEJDMT PC | CM117: 3.51 | CN117: 5141.1
R118: BIRCH CREEK | S118: 132.936 | T118: 5334.56 | V118: BIRCH CREEK | W118: 134.366 | X118: 5132.2 | Z118: BIRCH CREEK | AA118: 133.616 | AB118: 4998.13 | AL118: BIRCH CREEK | AM118: 122.6 | AN118: 4638.26 | AP118: BIRCH CREEK | AQ118: 125.215 | AR118: 4789.85 | AT118: BIRCH CREEK | AU118: 111.911 | AV118: 5098.37 | BG118: BIRCH CREEK | BH118: 119.707 | BI118: 5641.26 | BK118: BIRCH CREEK | BL118: 121.929 | BM118: 5586.76 | BO118: BIRCH CREEK | BP118: 112.868 | BQ118: 4967.86 | CD118: BIRCH CREEK | CE118: 124.459 | CF118: 5390.52 | CH118: BIRCH CREEK | CI118: 127.815 | CJ118: 5177.11 | CL118: BIRCH CREEK | CM118: 133.047 | CN118: 5141.1
A119: Total without Off System | B119: =SUM(B81,B94,B111) -> 5236.581024 | C119: 5317.76784 | D119: 5231.749093 | E119: 4985.16299 | F119: 5673.650975 | G119: 5360.963994 | H119: 5585.589323 | I119: 5475.533102 | J119: 4689.680824 | K119: 5287.065504 | L119: 5036.159982 | M119: 5127.02491 | N119: 63006.92956 | R119: BKSPUNT6MTPC | S119: 5.84 | T119: 5334.56 | V119: BKSPUNT6MTPC | W119: 3.016 | X119: 5132.2 | Z119: BKSPUNT6MTPC | AA119: 2.403 | AB119: 4998.13 | AL119: BRFM D24 | AM119: 2.083 | AN119: 4638.26 | AP119: BRFM D24 | AQ119: 2.271 | AR119: 4789.85 | AT119: BRFM D24 | AU119: 1.85 | AV119: 5098.37 | BG119: BRFM D24 | BH119: 2.16 | BI119: 5641.26 | BK119: BRFM D24 | BL119: 1.882 | BM119: 5586.76 | BO119: BRFM D24 | BP119: 1.869 | BQ119: 4967.86 | CD119: BRFM D24 | CE119: 2.167 | CF119: 5390.52 | CH119: BRFM D24 | CI119: 1.608 | CJ119: 5177.11 | CL119: BRFM D24 | CM119: 1.94 | CN119: 5141.1
A120: Days/Month | B120: =DAY(EOMONTH(B5,0)) -> 30 | C120: 31 | D120: 31 | E120: 30 | F120: 31 | G120: 30 | H120: 31 | I120: 31 | J120: 28 | K120: 31 | L120: 30 | M120: 31 | R120: BRCH CRK D8 | S120: 0.588 | T120: 5334.56 | V120: BRCH CRK D8 | W120: 0 | X120: 5132.2 | Z120: BRFM D24 | AA120: 2.242 | AB120: 4998.13 | AL120: BRFM PC | AM120: 0.136 | AN120: 4638.26 | AP120: BRFM PC | AQ120: 0.172 | AR120: 4789.85 | AT120: BRFM PC | AU120: 0.14 | AV120: 5098.37 | BG120: BRFM PC | BH120: 0.154 | BI120: 5641.26 | BK120: BRFM PC | BL120: 0.17 | BM120: 5586.76 | BO120: BRFM PC | BP120: 0.146 | BQ120: 4967.86 | CD120: BRFM PC | CE120: 0.159 | CF120: 5390.52 | CH120: BRFM PC | CI120: 0.132 | CJ120: 5177.11 | CL120: BRFM PC | CM120: 0.157 | CN120: 5141.1
A121: Per day | B121: =B119/B120 -> 174.5527008 | C121: =C119/C120 -> 171.5408981 | D121: 168.7660998 | E121: 166.1720997 | F121: 183.0209992 | G121: 178.6987998 | H121: 180.1803008 | I121: 176.6301001 | J121: 167.4886008 | K121: 170.5505001 | L121: 167.8719994 | M121: 165.3879003 | R121: BRFM D24 | S121: 1.996 | T121: 5334.56 | V121: BRFM D24 | W121: 2.298 | X121: 5132.2 | Z121: BRFM PC | AA121: 0.154 | AB121: 4998.13 | AL121: BRFQ D24 | AM121: 140.03 | AN121: 4638.26 | AP121: BRFQ D24 | AQ121: 151.223 | AR121: 4789.85 | AT121: BRFQ D24 | AU121: 136.55 | AV121: 5098.37 | BG121: BRFQ D24 | BH121: 135.864 | BI121: 5641.26 | BK121: BRFQ D24 | BL121: 138.411 | BM121: 5586.76 | BO121: BRFQ D24 | BP121: 124.107 | BQ121: 4967.86 | CD121: BRFQ D24 | CE121: 139.706 | CF121: 5390.52 | CH121: BRFQ D24 | CI121: 140.103 | CJ121: 5177.11 | CL121: BRFQ D24 | CM121: 147.617 | CN121: 5141.1
R122: BRFM PC | S122: 0.161 | T122: 5334.56 | V122: BRFM PC | W122: 0.165 | X122: 5132.2 | Z122: BRFQ D24 | AA122: 147.947 | AB122: 4998.13 | AL122: BRFQ PC | AM122: 13.003 | AN122: 4638.26 | AP122: BRFQ PC | AQ122: 10.133 | AR122: 4789.85 | AT122: BRFQ PC | AU122: 11.385 | AV122: 5098.37 | BG122: BRFQ PC | BH122: 9.767 | BI122: 5641.26 | BK122: BRFQ PC | BL122: 8.82 | BM122: 5586.76 | BO122: BRFQ PC | BP122: 8.334 | BQ122: 4967.86 | CD122: BRFQ PC | CE122: 9.825 | CF122: 5390.52 | CH122: BRFQ PC | CI122: 12.161 | CJ122: 5177.11 | CL122: BRFQ PC | CM122: 11.953 | CN122: 5141.1
A123: Total with Off System | B123: =SUM(B117,B119) -> 5278.626111 | C123: =SUM(C117,C119) -> 5360.986513 | D123: 5274.711358 | E123: 5026.518813 | F123: 5716.157408 | G123: 5401.851119 | H123: 5627.611433 | I123: =SUM(I117,I119) -> 5517.327296 | J123: 4727.224559 | K123: 5328.403865 | L123: 5075.944284 | M123: 5167.90744 | N123: 63503.2702 | R123: BRFQ D24 | S123: 149.781 | T123: 5334.56 | V123: BRFQ D24 | W123: 153.818 | X123: 5132.2 | Z123: BRFQ PC | AA123: 9.308 | AB123: 4998.13 | AL123: BRFQMT D24 | AM123: 0.023 | AN123: 4638.26 | AP123: BRFQMT D24 | AQ123: 6.63 | AR123: 4789.85 | AT123: BRFQMT D24 | AU123: 1.283 | AV123: 5098.37 | BG123: BRFQMT D24 | BH123: 7.617 | BI123: 5641.26 | BK123: BRFQMT PC | BL123: 3.162 | BM123: 5586.76 | BO123: BRFQMT D24 | BP123: 7.608 | BQ123: 4967.86 | CD123: BRFQMT D24 | CE123: 1.49 | CF123: 5390.52 | CH123: BRFQMT D24 | CI123: 5.429 | CJ123: 5177.11 | CL123: BRFQMT D24 | CM123: 2.393 | CN123: 5141.1
R124: BRFQ PC | S124: 10.736 | T124: 5334.56 | V124: BRFQ PC | W124: 12.339 | X124: 5132.2 | Z124: BRFQMT D24 | AA124: 4.928 | AB124: 4998.13 | AL124: BRFQMT PC | AM124: 2.173 | AN124: 4638.26 | AP124: BRFQMT PC | AQ124: 3.85 | AR124: 4789.85 | AT124: BRFQMT PC | AU124: 2.519 | AV124: 5098.37 | BG124: BRFQMT PC | BH124: 2.987 | BI124: 5641.26 | BK124: BRFW D24 | BL124: 64.078 | BM124: 5586.76 | BO124: BRFQMT PC | BP124: 4.052 | BQ124: 4967.86 | CD124: BRFQMT PC | CE124: 4.238 | CF124: 5390.52 | CH124: BRFQMT PC | CI124: 4.19 | CJ124: 5177.11 | CL124: BRFQMT PC | CM124: 4.452 | CN124: 5141.1
A125: Total Possible Prod. From SendOut | B125: 5421.189042 | C125: 5507.134508 | D125: 5419.74238 | E125: 5165.76605 | F125: 5858.919386 | G125: 5526.263975 | H125: 5586.339537 | I125: 5476.277121 | J125: 4690.327629 | K125: 5287.803294 | L125: 5036.871046 | M125: 5127.753429 | N125: =SUM(B125:M125) -> 64104.3874 | R125: BRFQMT D24 | S125: 2.026 | T125: 5334.56 | V125: BRFQMT D24 | W125: 1.199 | X125: 5132.2 | Z125: BRFQMT PC | AA125: 7.094 | AB125: 4998.13 | AL125: BRFW D24 | AM125: 68.077 | AN125: 4638.26 | AP125: BRFW D24 | AQ125: 71.415 | AR125: 4789.85 | AT125: BRFW D24 | AU125: 61.315 | AV125: 5098.37 | BG125: BRFW D24 | BH125: 67.218 | BI125: 5641.26 | BK125: BRFW PC | BL125: 9.492 | BM125: 5586.76 | BO125: BRFW D24 | BP125: 52.557 | BQ125: 4967.86 | CD125: BRFW D24 | CE125: 57.48 | CF125: 5390.52 | CH125: BRFW D24 | CI125: 57.978 | CJ125: 5177.11 | CL125: BRFW D24 | CM125: 60.511 | CN125: 5141.1
A126: 1000 | R126: BRFQMT PC | S126: 6.549 | T126: 5334.56 | V126: BRFQMT PC | W126: 6.742 | X126: 5132.2 | Z126: BRFW D24 | AA126: 70.355 | AB126: 4998.13 | AL126: BRFW PC | AM126: 10.526 | AN126: 4638.26 | AP126: BRFW PC | AQ126: 10.788 | AR126: 4789.85 | AT126: BRFW PC | AU126: 9.83 | AV126: 5098.37 | BG126: BRFW PC | BH126: 9.651 | BI126: 5641.26 | BK126: BRUFF MT | BL126: 7.971 | BM126: 5586.76 | BO126: BRFW PC | BP126: 8.116 | BQ126: 4967.86 | CD126: BRFW PC | CE126: 8.998 | CF126: 5390.52 | CH126: BRFW PC | CI126: 11.069 | CJ126: 5177.11 | CL126: BRFW PC | CM126: 10.921 | CN126: 5141.1
A127: Shut-In per Month/dth | B127: =(B125-B119)*$A$126 -> 184608.0183 | C127: 189366.6679 | D127: 187993.2866 | E127: 180603.06 | F127: 185268.411 | G127: 165299.981 | H127: 750.2135464 | I127: 744.0191656 | J127: 646.8054057 | K127: 737.7902761 | L127: 711.0642351 | M127: 728.5185873 | N127: =SUM(B127:M127) -> 1097457.836 | R127: BRFW D24 | S127: 63.577 | T127: 5334.56 | V127: BRFW D24 | W127: 71.723 | X127: 5132.2 | Z127: BRFW PC | AA127: 11.536 | AB127: 4998.13 | AL127: BRUFF MT | AM127: 8.852 | AN127: 4638.26 | AP127: BRUFF MT | AQ127: 8.561 | AR127: 4789.85 | AT127: BRUFF MT | AU127: 8.564 | AV127: 5098.37 | BG127: BRUFF MT | BH127: 8.368 | BI127: 5641.26 | BK127: CBFR D24 | BL127: 19.646 | BM127: 5586.76 | BO127: BRUFF MT | BP127: 8.322 | BQ127: 4967.86 | CD127: BRUFF MT | CE127: 8.717 | CF127: 5390.52 | CH127: BRUFF MT | CI127: 7.723 | CJ127: 5177.11 | CL127: BRUFF MT | CM127: 8.218 | CN127: 5141.1
A128: Shut-In per Day/dth | B128: =B127/B120 -> 6153.600609 | C128: =C127/C120 -> 6108.602189 | D128: 6064.299568 | E128: 6020.102 | F128: 5976.400355 | G128: 5509.999365 | H128: 24.20043698 | I128: 24.00061825 | J128: 23.10019306 | K128: 23.79968633 | L128: 23.70214117 | M128: 23.50059959 | R128: BRFW PC | S128: 10.184 | T128: 5334.56 | V128: BRFW PC | W128: 11.794 | X128: 5132.2 | Z128: BRUFF MT | AA128: 8.882 | AB128: 4998.13 | AL128: CBFR PC | AM128: 55.5 | AN128: 4638.26 | AP128: CBFR D24 | AQ128: 0.021 | AR128: 4789.85 | AT128: CBFR D24 | AU128: 27.674 | AV128: 5098.37 | BG128: CBFR D24 | BH128: 13.047 | BI128: 5641.26 | BK128: CBFR PC | BL128: 60.341 | BM128: 5586.76 | BO128: CBFR D24 | BP128: 17.951 | BQ128: 4967.86 | CD128: CBFR D24 | CE128: 19.196 | CF128: 5390.52 | CH128: CBFR D24 | CI128: 17.982 | CJ128: 5177.11 | CL128: CBFR D24 | CM128: 11.255 | CN128: 5141.1
A129: Total New Drill | B129: =SUM(B90:B93,B107:B110) -> 0 | C129: 0 | D129: 0 | E129: 0 | F129: 599.4563141 | G129: 510.0059814 | H129: 474.2534943 | I129: 433.7210083 | J129: 350.0307999 | K129: 374.8179092 | L129: 341.1600037 | M129: 333.5010986 | N129: =SUM(B129:M129) -> 3416.946609 | R129: BRUFF MT | S129: 9.123 | T129: 5334.56 | V129: BRUFF MT | W129: 9.647 | X129: 5132.2 | Z129: CBFR PC | AA129: 61.665 | AB129: 4998.13 | AL129: CCRUNIT 2D8 | AM129: 101.055 | AN129: 4638.26 | AP129: CBFR PC | AQ129: 67.191 | AR129: 4789.85 | AT129: CBFR PC | AU129: 58.116 | AV129: 5098.37 | BG129: CBFR PC | BH129: 57.929 | BI129: 5641.26 | BK129: CCRUNIT 2D8 | BL129: 89.218 | BM129: 5586.76 | BO129: CBFR PC | BP129: 56.548 | BQ129: 4967.86 | CD129: CBFR PC | CE129: 61.236 | CF129: 5390.52 | CH129: CBFR PC | CI129: 59.396 | CJ129: 5177.11 | CL129: CBFR PC | CM129: 37.701 | CN129: 5141.1
R130: CBFR D24 | S130: 12.064 | T130: 5334.56 | V130: CBFR D24 | W130: 4.681 | X130: 5132.2 | Z130: CCRUNIT 2D8 | AA130: 91.214 | AB130: 4998.13 | AL130: CCRUNIT 2E | AM130: 262.008 | AN130: 4638.26 | AP130: CCRUNIT 2D8 | AQ130: 98.412 | AR130: 4789.85 | AT130: CCRUNIT 2D8 | AU130: 95.172 | AV130: 5098.37 | BG130: CCRUNIT 2D8 | BH130: 91.364 | BI130: 5641.26 | BK130: CCRUNIT 2E | BL130: 250.463 | BM130: 5586.76 | BO130: CCRUNIT 2D8 | BP130: 76.959 | BQ130: 4967.86 | CD130: CCRUNIT 2D8 | CE130: 88.752 | CF130: 5390.52 | CH130: CCRUNIT 2D8 | CI130: 83.732 | CJ130: 5177.11 | CL130: CCRUNIT 2D8 | CM130: 83.999 | CN130: 5141.1
P131: Add into CCRUNIT 2E | R131: CBFR PC | S131: 59.744 | T131: 5334.56 | V131: CBFR PC | W131: 62.123 | X131: 5132.2 | Z131: CCRUNIT 2E | AA131: 278.277 | AB131: 4998.13 | AL131: CCRUNIT2EMT | AM131: 26.806 | AN131: 4638.26 | AP131: CCRUNIT 2E | AQ131: 256.333 | AR131: 4789.85 | AT131: CCRUNIT 2E | AU131: 253.888 | AV131: 5098.37 | BG131: CCRUNIT 2E | BH131: 239.896 | BI131: 5641.26 | BK131: CCRUNIT2EMT | BL131: 25.071 | BM131: 5586.76 | BO131: CCRUNIT 2E | BP131: 235.646 | BQ131: 4967.86 | CD131: CCRUNIT 2E | CE131: 264.225 | CF131: 5390.52 | CH131: CCRUNIT 2E | CI131: 254.247 | CJ131: 5177.11 | CL131: CCRUNIT 2E | CM131: 254.286 | CN131: 5141.1
B132: 81.63899994 | C132: 81.46489716 | D132: 78.86090088 | E132: 74.02799988 | F132: 74.3348999 | G132: 70.01100159 | H132: 70.50640106 | I132: 68.80139923 | J132: 58.61240005 | K132: 65.72000122 | L132: 62.24700165 | M132: 63.00439835 | R132: CCRUNIT 2D8 | S132: 95.178 | T132: 5334.56 | V132: CCRUNIT 2D8 | W132: 94.546 | X132: 5132.2 | Z132: CCRUNIT2EMT | AA132: 27.247 | AB132: 4998.13 | AL132: CCRUNIT D24 | AM132: 461.125 | AN132: 4638.26 | AP132: CCRUNIT2EMT | AQ132: 26.145 | AR132: 4789.85 | AT132: CCRUNIT2EMT | AU132: 27.112 | AV132: 5098.37 | BG132: CCRUNIT2EMT | BH132: 23.842 | BI132: 5641.26 | BK132: CCRUNIT D24 | BL132: 464.328 | BM132: 5586.76 | BO132: CCRUNIT2EMT | BP132: 23.443 | BQ132: 4967.86 | CD132: CCRUNIT2EMT | CE132: 27.193 | CF132: 5390.52 | CH132: CCRUNIT2EMT | CI132: 26.043 | CJ132: 5177.11 | CL132: CCRUNIT2EMT | CM132: 26.892 | CN132: 5141.1
B133: 18.61199951 | C133: 18.97820091 | D133: 18.76119995 | E133: 17.97299957 | F133: 18.06060028 | G133: 16.70700073 | H133: 16.54780006 | I133: 15.89990044 | J133: 13.35039997 | K133: 14.7652998 | L133: 13.80599976 | M133: 13.80430031 | R133: CCRUNIT 2E | S133: 262.572 | T133: 5334.56 | V133: CCRUNIT 2E | W133: 277.737 | X133: 5132.2 | Z133: CCRUNIT D24 | AA133: 487.875 | AB133: 4998.13 | AL133: CCRUNIT D8 | AM133: 213.767 | AN133: 4638.26 | AP133: CCRUNIT D24 | AQ133: 444.636 | AR133: 4789.85 | AT133: CCRUNIT D24 | AU133: 443.248 | AV133: 5098.37 | BG133: CCRUNIT D24 | BH133: 441.751 | BI133: 5641.26 | BK133: CCRUNIT D8 | BL133: 198.98 | BM133: 5586.76 | BO133: CCRUNIT D24 | BP133: 439.608 | BQ133: 4967.86 | CD133: CCRUNIT D24 | CE133: 469.249 | CF133: 5390.52 | CH133: CCRUNIT D24 | CI133: 449.733 | CJ133: 5177.11 | CL133: CCRUNIT D24 | CM133: 470.877 | CN133: 5141.1
B134: 100.2509995 | C134: 100.4430981 | D134: 97.62210083 | E134: 92.00099945 | F134: 92.39550018 | G134: 86.71800232 | H134: 87.05420113 | I134: 84.70129967 | J134: 71.96280003 | K134: 80.48530102 | L134: 76.0530014 | M134: 76.80869865 | R134: CCRUNIT2EMT | S134: 23.314 | T134: 5334.56 | V134: CCRUNIT2EMT | W134: 26.322 | X134: 5132.2 | Z134: CCRUNIT D8 | AA134: 254.277 | AB134: 4998.13 | AL134: CCRUNIT MT | AM134: 75.495 | AN134: 4638.26 | AP134: CCRUNIT D8 | AQ134: 208.179 | AR134: 4789.85 | AT134: CCRUNIT D8 | AU134: 202.017 | AV134: 5098.37 | BG134: CCRUNIT D8 | BH134: 203.297 | BI134: 5641.26 | BK134: CCRUNIT MT | BL134: 66.354 | BM134: 5586.76 | BO134: CCRUNIT D8 | BP134: 172.564 | BQ134: 4967.86 | CD134: CCRUNIT D8 | CE134: 189.273 | CF134: 5390.52 | CH134: CCRUNIT D8 | CI134: 178.606 | CJ134: 5177.11 | CL134: CCRUNIT D8 | CM134: 187.455 | CN134: 5141.1
R135: CCRUNIT D24 | S135: 457.373 | T135: 5334.56 | V135: CCRUNIT D24 | W135: 481.667 | X135: 5132.2 | Z135: CCRUNIT MT | AA135: 77.67 | AB135: 4998.13 | AL135: CCRUNIT PC | AM135: 48.207 | AN135: 4638.26 | AP135: CCRUNIT MT | AQ135: 72.771 | AR135: 4789.85 | AT135: CCRUNIT MT | AU135: 67.719 | AV135: 5098.37 | BG135: CCRUNIT MT | BH135: 69.598 | BI135: 5641.26 | BK135: CCRUNIT PC | BL135: 46.357 | BM135: 5586.76 | BO135: CCRUNIT MT | BP135: 59.049 | BQ135: 4967.86 | CD135: CCRUNIT MT | CE135: 66.491 | CF135: 5390.52 | CH135: CCRUNIT MT | CI135: 64.318 | CJ135: 5177.11 | CL135: CCRUNIT MT | CM135: 64.408 | CN135: 5141.1
M136: WE are now broken out between wexpro one and 2 based on y's | R136: CCRUNIT D8 | S136: 252.393 | T136: 5334.56 | V136: CCRUNIT D8 | W136: 267.975 | X136: 5132.2 | Z136: CCRUNIT PC | AA136: 47.936 | AB136: 4998.13 | AL136: CCRUNITMT PC | AM136: 15.943 | AN136: 4638.26 | AP136: CCRUNIT PC | AQ136: 45.946 | AR136: 4789.85 | AT136: CCRUNIT PC | AU136: 47.796 | AV136: 5098.37 | BG136: CCRUNIT PC | BH136: 44.122 | BI136: 5641.26 | BK136: CCRUNITMT PC | BL136: 14.766 | BM136: 5586.76 | BO136: CCRUNIT PC | BP136: 40.672 | BQ136: 4967.86 | CD136: CCRUNIT PC | CE136: 46.197 | CF136: 5390.52 | CH136: CCRUNIT PC | CI136: 46.552 | CJ136: 5177.11 | CL136: CCRUNIT PC | CM136: 49.463 | CN136: 5141.1
M137: Divide CCRUNIT MT Between Legacy and Wexpro II | R137: CCRUNIT MT | S137: 75.729 | T137: 5334.56 | V137: CCRUNIT MT | W137: 79.653 | X137: 5132.2 | Z137: CCRUNITMT PC | AA137: 16.351 | AB137: 4998.13 | AL137: CCRUNITMTD24 | AM137: 39.768 | AN137: 4638.26 | AP137: CCRUNITMT PC | AQ137: 14.006 | AR137: 4789.85 | AT137: CCRUNITMT PC | AU137: 15.621 | AV137: 5098.37 | BG137: CCRUNITMT PC | BH137: 13.732 | BI137: 5641.26 | BK137: CCRUNITMTD24 | BL137: 39.787 | BM137: 5586.76 | BO137: CCRUNITMT PC | BP137: 14.264 | BQ137: 4967.86 | CD137: CCRUNITMT PC | CE137: 15.891 | CF137: 5390.52 | CH137: CCRUNITMT PC | CI137: 14.979 | CJ137: 5177.11 | CL137: CCRUNITMT PC | CM137: 16.653 | CN137: 5141.1
L138: Month | M138: Legacy | N138: Wexpro II | O138: % Legacy | P138: % Wexpro II | R138: CCRUNIT PC | S138: 49.077 | T138: 5334.56 | V138: CCRUNIT PC | W138: 51.611 | X138: 5132.2 | Z138: CCRUNITMTD24 | AA138: 40.298 | AB138: 4998.13 | AL138: CCOPA 2E | AM138: 2.88 | AN138: 4638.26 | AP138: CCRUNITMTD24 | AQ138: 40.331 | AR138: 4789.85 | AT138: CCRUNITMTD24 | AU138: 40.734 | AV138: 5098.37 | BG138: CCRUNITMTD24 | BH138: 38.15 | BI138: 5641.26 | BK138: CCOPA 2E | BL138: 2.846 | BM138: 5586.76 | BO138: CCRUNITMTD24 | BP138: 36.748 | BQ138: 4967.86 | CD138: CCRUNITMTD24 | CE138: 40.619 | CF138: 5390.52 | CH138: CCRUNITMTD24 | CI138: 39.152 | CJ138: 5177.11 | CL138: CCRUNITMTD24 | CM138: 41.865 | CN138: 5141.1
L139: June | M139: =B84 -> 52.40100098 | N139: =B106 -> 21.79199982 | O139: =M139/SUM(M139:N139) -> 0.7062795738 | P139: =N139/SUM(M139:N139) -> 0.2937204262 | R139: CCRUNITMT PC | S139: 13.841 | T139: 5334.56 | V139: CCRUNITMT PC | W139: 14.451 | X139: 5132.2 | Z139: CCOPA 2E | AA139: 3.523 | AB139: 4998.13 | AL139: CHBT MT | AM139: 14.737 | AN139: 4638.26 | AP139: CCOPA 2E | AQ139: 5.525 | AR139: 4789.85 | AT139: CCOPA 2E | AU139: 3.658 | AV139: 5098.37 | BG139: CCOPA 2E | BH139: 2.78 | BI139: 5641.26 | BK139: CHBT MT | BL139: 14.531 | BM139: 5586.76 | BO139: CCOPA 2E | BP139: 2.882 | BQ139: 4967.86 | CD139: CCOPA 2E | CE139: 3.359 | CF139: 5390.52 | CH139: CCOPA 2E | CI139: 3.571 | CJ139: 5177.11 | CL139: CCOPA 2E | CM139: 3.714 | CN139: 5141.1
L140: July | M140: =C84 -> 53.01309967 | N140: =C106 -> 22.04409981 | O140: 0.7063026604 | P140: =N140/SUM(M140:N140) -> 0.2936973396 | R140: CCRUNITMTD24 | S140: 38.791 | T140: 5334.56 | V140: CCRUNITMTD24 | W140: 40.24 | X140: 5132.2 | Z140: CHBT MT | AA140: 16.21 | AB140: 4998.13 | AL140: CHBTBUFF D24 | AM140: 0.863 | AN140: 4638.26 | AP140: CHBT MT | AQ140: 15.209 | AR140: 4789.85 | AT140: CHBT MT | AU140: 14.087 | AV140: 5098.37 | BG140: CHBT MT | BH140: 14.4 | BI140: 5641.26 | BK140: CHBTBUFF D24 | BL140: 0.89 | BM140: 5586.76 | BO140: CHBT MT | BP140: 13.089 | BQ140: 4967.86 | CD140: CHBT MT | CE140: 14.828 | CF140: 5390.52 | CH140: CHBT MT | CI140: 14.348 | CJ140: 5177.11 | CL140: CHBT MT | CM140: 14.928 | CN140: 5141.1
L141: Aug | M141: =D84 -> 51.93740082 | N141: =D106 -> 21.59770012 | O141: 0.7062940032 | P141: 0.2937059968 | R141: CCOPA 2E | S141: 4.443 | T141: 5334.56 | V141: CCOPA 2E | W141: 4.127 | X141: 5132.2 | Z141: CHBTBUFF D24 | AA141: 0.983 | AB141: 4998.13 | AL141: CHBTC1 MT PC | AM141: 20.82 | AN141: 4638.26 | AP141: CHBTBUFF D24 | AQ141: 1.024 | AR141: 4789.85 | AT141: CHBTBUFF D24 | AU141: 0.817 | AV141: 5098.37 | BG141: CHBTBUFF D24 | BH141: 0.892 | BI141: 5641.26 | BK141: CHBTC1 MT PC | BL141: 22.693 | BM141: 5586.76 | BO141: CHBTBUFF D24 | BP141: 0.721 | BQ141: 4967.86 | CD141: CHBTBUFF D24 | CE141: 0.777 | CF141: 5390.52 | CH141: CHBTBUFF D24 | CI141: 0.823 | CJ141: 5177.11 | CL141: CHBTBUFF D24 | CM141: 0.935 | CN141: 5141.1
L142: Sept | M142: =E84 -> 49.27500153 | N142: =E106 -> 20.48999977 | O142: 0.7062997292 | P142: 0.2937002708 | R142: CHBT MT | S142: 15.358 | T142: 5334.56 | V142: CHBT MT | W142: 15.189 | X142: 5132.2 | Z142: CHBTC1 MT PC | AA142: 25.3 | AB142: 4998.13 | AL142: CHBTCAT1 PC | AM142: 30.81 | AN142: 4638.26 | AP142: CHBTC1 MT PC | AQ142: 22.003 | AR142: 4789.85 | AT142: CHBTC1 MT PC | AU142: 20.712 | AV142: 5098.37 | BG142: CHBTC1 MT PC | BH142: 23.458 | BI142: 5641.26 | BK142: CHBTCAT1 PC | BL142: 40.918 | BM142: 5586.76 | BO142: CHBTC1 MT PC | BP142: 19.572 | BQ142: 4967.86 | CD142: CHBTC1 MT PC | CE142: 21.739 | CF142: 5390.52 | CH142: CHBTC1 MT PC | CI142: 20.155 | CJ142: 5177.11 | CL142: CHBTC1 MT PC | CM142: 19.84 | CN142: 5141.1
L143: Oct | M143: =F84 -> 49.94409943 | N143: =F106 -> 20.77000046 | O143: 0.7062820499 | P143: 0.2937179501 | R143: CHBTBUFF D24 | S143: 0.834 | T143: 5334.56 | V143: CHBTBUFF D24 | W143: 0.747 | X143: 5132.2 | Z143: CHBTCAT1 PC | AA143: 31.399 | AB143: 4998.13 | AL143: CHBTCAT2 D24 | AM143: 99.701 | AN143: 4638.26 | AP143: CHBTCAT1 PC | AQ143: 31.559 | AR143: 4789.85 | AT143: CHBTCAT1 PC | AU143: 40.977 | AV143: 5098.37 | BG143: CHBTCAT1 PC | BH143: 41.236 | BI143: 5641.26 | BK143: CHBTCAT2 D24 | BL143: 92.384 | BM143: 5586.76 | BO143: CHBTCAT1 PC | BP143: 41.624 | BQ143: 4967.86 | CD143: CHBTCAT1 PC | CE143: 35.675 | CF143: 5390.52 | CH143: CHBTCAT1 PC | CI143: 34.963 | CJ143: 5177.11 | CL143: CHBTCAT1 PC | CM143: 37.314 | CN143: 5141.1
L144: Nov | M144: =G84 -> 47.43600082 | N144: =G106 -> 19.72500038 | O144: 0.7063027646 | P144: 0.2936972354 | R144: CHBTC1 MT PC | S144: 19.572 | T144: 5334.56 | V144: CHBTC1 MT PC | W144: 13.359 | X144: 5132.2 | Z144: CHBTCAT2 D24 | AA144: 108.025 | AB144: 4998.13 | AL144: CHBTCAT2 PC | AM144: 2.265 | AN144: 4638.26 | AP144: CHBTCAT2 D24 | AQ144: 102.73 | AR144: 4789.85 | AT144: CHBTCAT2 D24 | AU144: 95.924 | AV144: 5098.37 | BG144: CHBTCAT2 D24 | BH144: 96.379 | BI144: 5641.26 | BK144: CHBTCAT2 PC | BL144: 1.777 | BM144: 5586.76 | BO144: CHBTCAT2 D24 | BP144: 83.762 | BQ144: 4967.86 | CD144: CHBTCAT2 D24 | CE144: 99.221 | CF144: 5390.52 | CH144: CHBTCAT2 D24 | CI144: 93.826 | CJ144: 5177.11 | CL144: CHBTCAT2 D24 | CM144: 92.394 | CN144: 5141.1
L145: Dec | M145: =H84 -> 48.13370132 | N145: =H106 -> 20.01670074 | O145: 0.7062863881 | P145: =N145/SUM(M145:N145) -> 0.2937136119 | R145: CHBTCAT1 PC | S145: 36.562 | T145: 5334.56 | V145: CHBTCAT1 PC | W145: 41.836 | X145: 5132.2 | Z145: CHBTCAT2 PC | AA145: 2.435 | AB145: 4998.13 | AL145: CHBTCAT3 D24 | AM145: 155.055 | AN145: 4638.26 | AP145: CHBTCAT2 PC | AQ145: 2.073 | AR145: 4789.85 | AT145: CHBTCAT2 PC | AU145: 1.916 | AV145: 5098.37 | BG145: CHBTCAT2 PC | BH145: 1.759 | BI145: 5641.26 | BK145: CHBTCAT3 D24 | BL145: 147.051 | BM145: 5586.76 | BO145: CHBTCAT2 PC | BP145: 1.608 | BQ145: 4967.86 | CD145: CHBTCAT2 PC | CE145: 1.908 | CF145: 5390.52 | CH145: CHBTCAT2 PC | CI145: 1.835 | CJ145: 5177.11 | CL145: CHBTCAT2 PC | CM145: 1.97 | CN145: 5141.1
L146: Jan | M146: =I84 -> 47.29050064 | N146: =I106 -> 19.66329956 | O146: 0.706315407 | P146: 0.293684593 | R146: CHBTCAT2 D24 | S146: 78.82 | T146: 5334.56 | V146: CHBTCAT2 D24 | W146: 92.633 | X146: 5132.2 | Z146: CHBTCAT3 D24 | AA146: 162.037 | AB146: 4998.13 | AL146: DRY PINY MT | AM146: 4.419 | AN146: 4638.26 | AP146: CHBTCAT3 D24 | AQ146: 158.539 | AR146: 4789.85 | AT146: CHBTCAT3 D24 | AU146: 151.683 | AV146: 5098.37 | BG146: CHBTCAT3 D24 | BH146: 154.92 | BI146: 5641.26 | BK146: DRY PINY MT | BL146: 4.096 | BM146: 5586.76 | BO146: CHBTCAT3 D24 | BP146: 139.921 | BQ146: 4967.86 | CD146: CHBTCAT3 D24 | CE146: 160.713 | CF146: 5390.52 | CH146: CHBTCAT3 D24 | CI146: 150.518 | CJ146: 5177.11 | CL146: CHBTCAT3 D24 | CM146: 154.843 | CN146: 5141.1
L147: Feb | M147: =J84 -> 40.53559875 | N147: =J106 -> 16.8560009 | O147: 0.7062984653 | P147: 0.2937015347 | R147: CHBTCAT2 PC | S147: 2.041 | T147: 5334.56 | V147: CHBTCAT2 PC | W147: 2.363 | X147: 5132.2 | Z147: DRY PINY MT | AA147: 4.305 | AB147: 4998.13 | AL147: DRYPINY6 D24 | AM147: 0.742 | AN147: 4638.26 | AP147: DRY PINY MT | AQ147: 4.486 | AR147: 4789.85 | AT147: DRY PINY MT | AU147: 4.355 | AV147: 5098.37 | BG147: DRY PINY MT | BH147: 4.512 | BI147: 5641.26 | BK147: DRYPINY6 D24 | BL147: 0.822 | BM147: 5586.76 | BO147: DRY PINY MT | BP147: 3.205 | BQ147: 4967.86 | CD147: DRY PINY MT | CE147: 4.23 | CF147: 5390.52 | CH147: DRY PINY MT | CI147: 4.277 | CJ147: 5177.11 | CL147: DRY PINY MT | CM147: 4.101 | CN147: 5141.1
L148: Mar | M148: =K84 -> 45.70330048 | N148: =K106 -> 19.0060997 | O148: =M148/SUM(M148:N148) -> 0.7062853365 | P148: 0.2937146635 | R148: CHBTCAT3 D24 | S148: 146.814 | T148: 5334.56 | V148: CHBTCAT3 D24 | W148: 152.336 | X148: 5132.2 | Z148: DRYPINY6 D24 | AA148: 0.827 | AB148: 4998.13 | AL148: DRYPINY6 PC | AM148: 1.108 | AN148: 4638.26 | AP148: DRYPINY6 D24 | AQ148: 0.788 | AR148: 4789.85 | AT148: DRYPINY6 D24 | AU148: 0.847 | AV148: 5098.37 | BG148: DRYPINY6 D24 | BH148: 0.826 | BI148: 5641.26 | BK148: DRYPINY6 PC | BL148: 0.934 | BM148: 5586.76 | BO148: DRYPINY6 D24 | BP148: 0.712 | BQ148: 4967.86 | CD148: DRYPINY6 D24 | CE148: 0.695 | CF148: 5390.52 | CH148: DRYPINY6 D24 | CI148: 0.326 | CJ148: 5177.11 | CL148: DRYPINY6 D24 | CM148: 0.857 | CN148: 5141.1
L149: Apr | M149: =L84 -> 43.50899887 | N149: =L106 -> 18.09300041 | O149: =M149/SUM(M149:N149) -> 0.7062919934 | P149: 0.2937080066 | R149: DRY PINY MT | S149: 4.242 | T149: 5334.56 | V149: DRY PINY MT | W149: 4.202 | X149: 5132.2 | Z149: DRYPINY6 PC | AA149: 1.137 | AB149: 4998.13 | AL149: DRYPINYU D24 | AM149: 1.837 | AN149: 4638.26 | AP149: DRYPINY6 PC | AQ149: 1.173 | AR149: 4789.85 | AT149: DRYPINY6 PC | AU149: 0.987 | AV149: 5098.37 | BG149: DRYPINY6 PC | BH149: 1.056 | BI149: 5641.26 | BK149: DRYPINYU D24 | BL149: 1.817 | BM149: 5586.76 | BO149: DRYPINY6 PC | BP149: 0.71 | BQ149: 4967.86 | CD149: DRYPINY6 PC | CE149: 0.907 | CF149: 5390.52 | CH149: DRYPINY6 PC | CI149: 0.949 | CJ149: 5177.11 | CL149: DRYPINY6 PC | CM149: 0.986 | CN149: 5141.1
L150: May | M150: =M84 -> 44.24629974 | N150: =M106 -> 18.39850044 | O150: 0.7063044277 | P150: 0.2936955723 | R150: DRYPINY6 D24 | S150: 0.806 | T150: 5334.56 | V150: DRYPINY6 D24 | W150: 0.729 | X150: 5132.2 | Z150: DRYPINYU D24 | AA150: 1.951 | AB150: 4998.13 | AL150: DRYPINYU PC | AM150: 9.876 | AN150: 4638.26 | AP150: DRYPINYU D24 | AQ150: 1.899 | AR150: 4789.85 | AT150: DRYPINYU D24 | AU150: 1.811 | AV150: 5098.37 | BG150: DRYPINYU D24 | BH150: 1.887 | BI150: 5641.26 | BK150: DRYPINYU PC | BL150: 9.881 | BM150: 5586.76 | BO150: DRYPINYU D24 | BP150: 1.601 | BQ150: 4967.86 | CD150: DRYPINYU D24 | CE150: 1.755 | CF150: 5390.52 | CH150: DRYPINYU D24 | CI150: 1.737 | CJ150: 5177.11 | CL150: DRYPINYU D24 | CM150: 1.723 | CN150: 5141.1
R151: DRYPINY6 PC | S151: 1.134 | T151: 5334.56 | V151: DRYPINY6 PC | W151: 1.108 | X151: 5132.2 | Z151: DRYPINYU PC | AA151: 9.829 | AB151: 4998.13 | AL151: FOGARTY PC | AM151: 0.828 | AN151: 4638.26 | AP151: DRYPINYU PC | AQ151: 9.368 | AR151: 4789.85 | AT151: DRYPINYU PC | AU151: 9.945 | AV151: 5098.37 | BG151: DRYPINYU PC | BH151: 10.01 | BI151: 5641.26 | BK151: HWA DEEP D24 | BL151: 0.398 | BM151: 5586.76 | BO151: DRYPINYU PC | BP151: 7.835 | BQ151: 4967.86 | CD151: DRYPINYU PC | CE151: 9.082 | CF151: 5390.52 | CH151: DRYPINYU PC | CI151: 9.959 | CJ151: 5177.11 | CL151: DRYPINYU PC | CM151: 10.562 | CN151: 5141.1
R152: DRYPINYU D24 | S152: 1.911 | T152: 5334.56 | V152: DRYPINYU D24 | W152: 1.967 | X152: 5132.2 | Z152: FOGARTY PC | AA152: 1.108 | AB152: 4998.13 | AL152: HWA DEEP D24 | AM152: 0.028 | AN152: 4638.26 | AP152: FOGARTY PC | AQ152: 0.904 | AR152: 4789.85 | AT152: HWA DEEP D24 | AU152: 0.46 | AV152: 5098.37 | BG152: HWA DEEP D24 | BH152: 0.37 | BI152: 5641.26 | BK152: HWA DEEP PC | BL152: 0.113 | BM152: 5586.76 | BO152: HWA DEEP D24 | BP152: 0.334 | BQ152: 4967.86 | CD152: HWA DEEP D24 | CE152: 0.382 | CF152: 5390.52 | CH152: HWA DEEP D24 | CI152: 0.36 | CJ152: 5177.11 | CL152: FOGARTY PC | CM152: 0.884 | CN152: 5141.1
R153: DRYPINYU PC | S153: 9.202 | T153: 5334.56 | V153: DRYPINYU PC | W153: 10.166 | X153: 5132.2 | Z153: HWA MT | AA153: 3.26 | AB153: 4998.13 | AL153: HWA DEEP PC | AM153: 0.108 | AN153: 4638.26 | AP153: HWA DEEP D24 | AQ153: 0.324 | AR153: 4789.85 | AT153: HWA DEEP PC | AU153: 0.3 | AV153: 5098.37 | BG153: HWA DEEP PC | BH153: 0.43 | BI153: 5641.26 | BK153: HWA MT | BL153: 1.787 | BM153: 5586.76 | BO153: HWA DEEP PC | BP153: 0.095 | BQ153: 4967.86 | CD153: HWA DEEP PC | CE153: 0.222 | CF153: 5390.52 | CH153: HWA DEEP PC | CI153: 0.14 | CJ153: 5177.11 | CL153: HWA DEEP D24 | CM153: 0.352 | CN153: 5141.1
R154: HWA DEEP D24 | S154: 0.462 | T154: 5334.56 | V154: FOGARTY PC | W154: 1.249 | X154: 5132.2 | Z154: HWPL1&3MTD24 | AA154: 8.493 | AB154: 4998.13 | AL154: HWA MT | AM154: 3.058 | AN154: 4638.26 | AP154: HWA DEEP PC | AQ154: 0.268 | AR154: 4789.85 | AT154: HWA MT | AU154: 2.28 | AV154: 5098.37 | BG154: HWA MT | BH154: 2.76 | BI154: 5641.26 | BK154: HWADEEPMTD24 | BL154: 17.829 | BM154: 5586.76 | BO154: HWA MT | BP154: 1.787 | BQ154: 4967.86 | CD154: HWA MT | CE154: 2.719 | CF154: 5390.52 | CH154: HWA MT | CI154: 1.226 | CJ154: 5177.11 | CL154: HWA DEEP PC | CM154: 0.212 | CN154: 5141.1
R155: HWA DEEP PC | S155: 0.197 | T155: 5334.56 | V155: HWA DEEP D24 | W155: 0.344 | X155: 5132.2 | Z155: HWPL1&3MTPC | AA155: 6.123 | AB155: 4998.13 | AL155: HWADEEPMTD24 | AM155: 1.315 | AN155: 4638.26 | AP155: HWA MT | AQ155: 3.734 | AR155: 4789.85 | AT155: HWADEEPMTD24 | AU155: 15.898 | AV155: 5098.37 | BG155: HWADEEPMTD24 | BH155: 15.503 | BI155: 5641.26 | BK155: HWPL1&3MTD24 | BL155: 8.318 | BM155: 5586.76 | BO155: HWADEEPMTD24 | BP155: 14.665 | BQ155: 4967.86 | CD155: HWADEEPMTD24 | CE155: 16.964 | CF155: 5390.52 | CH155: HWADEEPMTD24 | CI155: 15.39 | CJ155: 5177.11 | CL155: HWA MT | CM155: 1.133 | CN155: 5141.1
R156: HWA MT | S156: 2.909 | T156: 5334.56 | V156: HWA DEEP PC | W156: 0.133 | X156: 5132.2 | Z156: HWPLT1&3 D24 | AA156: 87.575 | AB156: 4998.13 | AL156: HWPL1&3MTD24 | AM156: 8.082 | AN156: 4638.26 | AP156: HWADEEPMTD24 | AQ156: 9.456 | AR156: 4789.85 | AT156: HWPL1&3MTD24 | AU156: 7.74 | AV156: 5098.37 | BG156: HWPL1&3MTD24 | BH156: 8.834 | BI156: 5641.26 | BK156: HWPL1&3MTPC | BL156: 7.243 | BM156: 5586.76 | BO156: HWPL1&3MTD24 | BP156: 7.034 | BQ156: 4967.86 | CD156: HWPL1&3MTD24 | CE156: 7.814 | CF156: 5390.52 | CH156: HWPL1&3MTD24 | CI156: 7.638 | CJ156: 5177.11 | CL156: HWADEEPMTD24 | CM156: 16.297 | CN156: 5141.1
R157: HWADEEPMTD24 | S157: 16.945 | T157: 5334.56 | V157: HWA MT | W157: 3.266 | X157: 5132.2 | Z157: HWPLT1&3 PC | AA157: 14.04 | AB157: 4998.13 | AL157: HWPL1&3MTPC | AM157: 6.568 | AN157: 4638.26 | AP157: HWPL1&3MTD24 | AQ157: 8.286 | AR157: 4789.85 | AT157: HWPL1&3MTPC | AU157: 6.867 | AV157: 5098.37 | BG157: HWPL1&3MTPC | BH157: 7.61 | BI157: 5641.26 | BK157: HWPLT1&3 D24 | BL157: 79.844 | BM157: 5586.76 | BO157: HWPL1&3MTPC | BP157: 6.465 | BQ157: 4967.86 | CD157: HWPL1&3MTPC | CE157: 6.901 | CF157: 5390.52 | CH157: HWPL1&3MTPC | CI157: 6.702 | CJ157: 5177.11 | CL157: HWPL1&3MTD24 | CM157: 7.343 | CN157: 5141.1
R158: HWPL1&3MTD24 | S158: 7.469 | T158: 5334.56 | V158: HWADEEPMTD24 | W158: 16.376 | X158: 5132.2 | Z158: HWPLT2 D24 | AA158: 7.369 | AB158: 4998.13 | AL158: HWPLT1&3 D24 | AM158: 77.638 | AN158: 4638.26 | AP158: HWPL1&3MTPC | AQ158: 7.275 | AR158: 4789.85 | AT158: HWPLT1&3 D24 | AU158: 73.438 | AV158: 5098.37 | BG158: HWPLT1&3 D24 | BH158: 84.783 | BI158: 5641.26 | BK158: HWPLT1&3 PC | BL158: 68.179 | BM158: 5586.76 | BO158: HWPLT1&3 D24 | BP158: 62.26 | BQ158: 4967.86 | CD158: HWPLT1&3 D24 | CE158: 71.134 | CF158: 5390.52 | CH158: HWPLT1&3 D24 | CI158: 68.909 | CJ158: 5177.11 | CL158: HWPL1&3MTPC | CM158: 6.349 | CN158: 5141.1
R159: HWPL1&3MTPC | S159: 4.412 | T159: 5334.56 | V159: HWPL1&3MTD24 | W159: 8.774 | X159: 5132.2 | Z159: HWPLT2 PC | AA159: 0.988 | AB159: 4998.13 | AL159: HWPLT1&3 PC | AM159: 13.754 | AN159: 4638.26 | AP159: HWPLT1&3 D24 | AQ159: 86.57 | AR159: 4789.85 | AT159: HWPLT1&3 PC | AU159: 66.181 | AV159: 5098.37 | BG159: HWPLT1&3 PC | BH159: 70.792 | BI159: 5641.26 | BK159: HWPLT2 D24 | BL159: 6.335 | BM159: 5586.76 | BO159: HWPLT1&3 PC | BP159: 58.409 | BQ159: 4967.86 | CD159: HWPLT1&3 PC | CE159: 57.178 | CF159: 5390.52 | CH159: HWPLT1&3 PC | CI159: 49.181 | CJ159: 5177.11 | CL159: HWPLT1&3 D24 | CM159: 72.43 | CN159: 5141.1
R160: HWPLT1&3 D24 | S160: 77.469 | T160: 5334.56 | V160: HWPL1&3MTPC | W160: 8.21 | X160: 5132.2 | Z160: HWPLT2MT D24 | AA160: 3.197 | AB160: 4998.13 | AL160: HWPLT2 D24 | AM160: 5.732 | AN160: 4638.26 | AP160: HWPLT1&3 PC | AQ160: 17.86 | AR160: 4789.85 | AT160: HWPLT2 D24 | AU160: 6.279 | AV160: 5098.37 | BG160: HWPLT2 D24 | BH160: 6.713 | BI160: 5641.26 | BK160: HWPLT2 PC | BL160: 0.731 | BM160: 5586.76 | BO160: HWPLT2 D24 | BP160: 5.685 | BQ160: 4967.86 | CD160: HWPLT2 D24 | CE160: 5.46 | CF160: 5390.52 | CH160: HWPLT2 D24 | CI160: 7.311 | CJ160: 5177.11 | CL160: HWPLT1&3 PC | CM160: 59.79 | CN160: 5141.1
R161: HWPLT1&3 PC | S161: 56.234 | T161: 5334.56 | V161: HWPLT1&3 D24 | W161: 88.022 | X161: 5132.2 | Z161: ISLAND D24 | AA161: 46.34 | AB161: 4998.13 | AL161: HWPLT2 PC | AM161: 1.427 | AN161: 4638.26 | AP161: HWPLT2 D24 | AQ161: 6.619 | AR161: 4789.85 | AT161: HWPLT2 PC | AU161: 0.771 | AV161: 5098.37 | BG161: HWPLT2 PC | BH161: 2.277 | BI161: 5641.26 | BK161: HWPLT2MT D24 | BL161: 2.721 | BM161: 5586.76 | BO161: HWPLT2 PC | BP161: 0.692 | BQ161: 4967.86 | CD161: HWPLT2 PC | CE161: 0.846 | CF161: 5390.52 | CH161: HWPLT2 PC | CI161: 0.811 | CJ161: 5177.11 | CL161: HWPLT2 D24 | CM161: 9.328 | CN161: 5141.1
R162: HWPLT2 D24 | S162: 8.167 | T162: 5334.56 | V162: HWPLT1&3 PC | W162: 25.878 | X162: 5132.2 | Z162: ISLAND PC | AA162: 0.607 | AB162: 4998.13 | AL162: HWPLT2MT D24 | AM162: 4.3 | AN162: 4638.26 | AP162: HWPLT2 PC | AQ162: 1.383 | AR162: 4789.85 | AT162: HWPLT2MT D24 | AU162: 4.266 | AV162: 5098.37 | BG162: HWPLT2MT D24 | BH162: 4.023 | BI162: 5641.26 | BK162: ISLAND D24 | BL162: 62.464 | BM162: 5586.76 | BO162: HWPLT2MT D24 | BP162: 1.655 | BQ162: 4967.86 | CD162: HWPLT2MT D24 | CE162: 1.709 | CF162: 5390.52 | CH162: HWPLT2MT D24 | CI162: 1.547 | CJ162: 5177.11 | CL162: HWPLT2 PC | CM162: 0.853 | CN162: 5141.1
R163: HWPLT2 PC | S163: 0.617 | T163: 5334.56 | V163: HWPLT2 D24 | W163: 8.321 | X163: 5132.2 | Z163: JNSNRDG D24 | AA163: 2.897 | AB163: 4998.13 | AL163: ISLAND D24 | AM163: 42.093 | AN163: 4638.26 | AP163: HWPLT2MT D24 | AQ163: 5.691 | AR163: 4789.85 | AT163: ISLAND D24 | AU163: 59.626 | AV163: 5098.37 | BG163: ISLAND D24 | BH163: 62.51 | BI163: 5641.26 | BK163: ISLAND PC | BL163: 0.642 | BM163: 5586.76 | BO163: ISLAND D24 | BP163: 52.529 | BQ163: 4967.86 | CD163: ISLAND D24 | CE163: 47.874 | CF163: 5390.52 | CH163: ISLAND D24 | CI163: 60.128 | CJ163: 5177.11 | CL163: HWPLT2MT D24 | CM163: 1.545 | CN163: 5141.1
R164: HWPLT2MT D24 | S164: 3.029 | T164: 5334.56 | V164: HWPLT2 PC | W164: 1.079 | X164: 5132.2 | Z164: JNSNRDG PC | AA164: 2.556 | AB164: 4998.13 | AL164: ISLAND PC | AM164: 0.583 | AN164: 4638.26 | AP164: ISLAND D24 | AQ164: 53.608 | AR164: 4789.85 | AT164: ISLAND PC | AU164: 0.724 | AV164: 5098.37 | BG164: ISLAND PC | BH164: 0.659 | BI164: 5641.26 | BK164: JNSNRDG D24 | BL164: 0.299 | BM164: 5586.76 | BO164: ISLAND PC | BP164: 0.611 | BQ164: 4967.86 | CD164: ISLAND PC | CE164: 0.589 | CF164: 5390.52 | CH164: ISLAND PC | CI164: 0.804 | CJ164: 5177.11 | CL164: ISLAND D24 | CM164: 52.344 | CN164: 5141.1
R165: ISLAND D24 | S165: 48.96 | T165: 5334.56 | V165: HWPLT2MT D24 | W165: 3.294 | X165: 5132.2 | Z165: JRDG WFS D24 | AA165: 3.786 | AB165: 4998.13 | AL165: JNSNRDG D24 | AM165: 2.618 | AN165: 4638.26 | AP165: ISLAND PC | AQ165: 0.732 | AR165: 4789.85 | AT165: JNSNRDG D24 | AU165: 2.337 | AV165: 5098.37 | BG165: JNSNRDG D24 | BH165: 2.066 | BI165: 5641.26 | BK165: JNSNRDG PC | BL165: 0.445 | BM165: 5586.76 | BO165: KNY FLD D24 | BP165: 6.378 | BQ165: 4967.86 | CD165: KNY FLD D24 | CE165: 4.133 | CF165: 5390.52 | CH165: KNY FLD D24 | CI165: 4.039 | CJ165: 5177.11 | CL165: ISLAND PC | CM165: 0.662 | CN165: 5141.1
R166: ISLAND PC | S166: 0.579 | T166: 5334.56 | V166: ISLAND D24 | W166: 46.465 | X166: 5132.2 | Z166: KNY FLD D24 | AA166: 8.441 | AB166: 4998.13 | AL166: JNSNRDG PC | AM166: 2.599 | AN166: 4638.26 | AP166: JNSNRDG D24 | AQ166: 2.72 | AR166: 4789.85 | AT166: JNSNRDG PC | AU166: 2.168 | AV166: 5098.37 | BG166: JNSNRDG PC | BH166: 2.313 | BI166: 5641.26 | BK166: JRDG WFS D24 | BL166: 2.008 | BM166: 5586.76 | BO166: KNY FLD D8 | BP166: 21.611 | BQ166: 4967.86 | CD166: KNY FLD D8 | CE166: 24.576 | CF166: 5390.52 | CH166: KNY FLD D8 | CI166: 23.574 | CJ166: 5177.11 | CL166: KNY FLD D24 | CM166: 3.931 | CN166: 5141.1
R167: JNSNRDG D24 | S167: 5.517 | T167: 5334.56 | V167: ISLAND PC | W167: 0.56 | X167: 5132.2 | Z167: KNY FLD D8 | AA167: 15.391 | AB167: 4998.13 | AL167: JRDG WFS D24 | AM167: 3.334 | AN167: 4638.26 | AP167: JNSNRDG PC | AQ167: 2.575 | AR167: 4789.85 | AT167: JRDG WFS D24 | AU167: 2.887 | AV167: 5098.37 | BG167: JRDG WFS D24 | BH167: 3.035 | BI167: 5641.26 | BK167: KNY FLD D24 | BL167: 5.909 | BM167: 5586.76 | BO167: KNY FLD PC | BP167: 2.809 | BQ167: 4967.86 | CD167: KNY FLD PC | CE167: 3.391 | CF167: 5390.52 | CH167: KNY FLD PC | CI167: 2.387 | CJ167: 5177.11 | CL167: KNY FLD D8 | CM167: 1.765 | CN167: 5141.1
R168: JNSNRDG PC | S168: 4.041 | T168: 5334.56 | V168: JNSNRDG D24 | W168: 3.347 | X168: 5132.2 | Z168: KNY FLD PC | AA168: 1.852 | AB168: 4998.13 | AL168: KNY FLD D24 | AM168: 2.084 | AN168: 4638.26 | AP168: JRDG WFS D24 | AQ168: 3.507 | AR168: 4789.85 | AT168: KNY FLD D24 | AU168: 4.433 | AV168: 5098.37 | BG168: KNY FLD D24 | BH168: 4.654 | BI168: 5641.26 | BK168: KNY FLD D8 | BL168: 22.239 | BM168: 5586.76 | BO168: MESA D24 | BP168: 575.965 | BQ168: 4967.86 | CD168: MESA D24 | CE168: 625.67 | CF168: 5390.52 | CH168: MESA D24 | CI168: 603.782 | CJ168: 5177.11 | CL168: KNY FLD PC | CM168: 4.129 | CN168: 5141.1
R169: JRDG WFS D24 | S169: 6.959 | T169: 5334.56 | V169: JNSNRDG PC | W169: 2.982 | X169: 5132.2 | Z169: MESA D24 | AA169: 723.381 | AB169: 4998.13 | AL169: KNY FLD D8 | AM169: 21.88 | AN169: 4638.26 | AP169: KNY FLD D24 | AQ169: 5.365 | AR169: 4789.85 | AT169: KNY FLD D8 | AU169: 20.762 | AV169: 5098.37 | BG169: KNY FLD D8 | BH169: 20.278 | BI169: 5641.26 | BK169: KNY FLD PC | BL169: 3.526 | BM169: 5586.76 | BO169: MESA D8 | BP169: 311.124 | BQ169: 4967.86 | CD169: MESA D8 | CE169: 344.871 | CF169: 5390.52 | CH169: MESA D8 | CI169: 302.873 | CJ169: 5177.11 | CL169: MESA D24 | CM169: 607.18 | CN169: 5141.1
R170: KNY FLD D24 | S170: 9.682 | T170: 5334.56 | V170: JRDG WFS D24 | W170: 4.424 | X170: 5132.2 | Z170: MESA D8 | AA170: 415.627 | AB170: 4998.13 | AL170: KNY FLD PC | AM170: 3.33 | AN170: 4638.26 | AP170: KNY FLD D8 | AQ170: 23.022 | AR170: 4789.85 | AT170: KNY FLD PC | AU170: 3.06 | AV170: 5098.37 | BG170: KNY FLD PC | BH170: 3.577 | BI170: 5641.26 | BK170: MESA D24 | BL170: 651.265 | BM170: 5586.76 | BO170: MOSU MT | BP170: 0.382 | BQ170: 4967.86 | CD170: MOSU MT | CE170: 0.378 | CF170: 5390.52 | CH170: MOSU MT | CI170: 0.315 | CJ170: 5177.11 | CL170: MESA D8 | CM170: 326.861 | CN170: 5141.1
R171: KNY FLD PC | S171: 4.355 | T171: 5334.56 | V171: KNY FLD D24 | W171: 7.419 | X171: 5132.2 | Z171: MOSU MT | AA171: 0.51 | AB171: 4998.13 | AL171: MESA D24 | AM171: 684.525 | AN171: 4638.26 | AP171: KNY FLD PC | AQ171: 3.756 | AR171: 4789.85 | AT171: MESA D24 | AU171: 655.601 | AV171: 5098.37 | BG171: MESA D24 | BH171: 668.242 | BI171: 5641.26 | BK171: MESA D8 | BL171: 359.744 | BM171: 5586.76 | BO171: MOSUMT D24 | BP171: 0.823 | BQ171: 4967.86 | CD171: MOSUMT D24 | CE171: 0.9 | CF171: 5390.52 | CH171: MOSUMT D24 | CI171: 0.942 | CJ171: 5177.11 | CL171: MOSU MT | CM171: 0.271 | CN171: 5141.1
R172: MESA D24 | S172: 706.507 | T172: 5334.56 | V172: KNY FLD PC | W172: 0.087 | X172: 5132.2 | Z172: MOSUMT D24 | AA172: 1.119 | AB172: 4998.13 | AL172: MESA D8 | AM172: 348.104 | AN172: 4638.26 | AP172: MESA D24 | AQ172: 690.516 | AR172: 4789.85 | AT172: MESA D8 | AU172: 372.12 | AV172: 5098.37 | BG172: MESA D8 | BH172: 371.451 | BI172: 5641.26 | BK172: MOSU MT | BL172: 0.529 | BM172: 5586.76 | BO172: MOSUMT PC | BP172: 6.353 | BQ172: 4967.86 | CD172: MOSUMT PC | CE172: 8.406 | CF172: 5390.52 | CH172: MOSUMT PC | CI172: 7.098 | CJ172: 5177.11 | CL172: MOSUMT D24 | CM172: 0.888 | CN172: 5141.1
R173: MESA D8 | S173: =442.108 -> 442.108 | T173: 5334.56 | V173: MESA D24 | W173: 736.877 | X173: 5132.2 | Z173: MOSUMT PC | AA173: 9.271 | AB173: 4998.13 | AL173: MOSU MT | AM173: 0.534 | AN173: 4638.26 | AP173: MESA D8 | AQ173: 395.888 | AR173: 4789.85 | AT173: MOSU MT | AU173: 0.833 | AV173: 5098.37 | BG173: MOSU MT | BH173: 0.904 | BI173: 5641.26 | BK173: MOSUMT D24 | BL173: 1.286 | BM173: 5586.76 | BO173: PDW MT | BP173: 176.053 | BQ173: 4967.86 | CD173: PDW MT | CE173: 187.217 | CF173: 5390.52 | CH173: PDW MT | CI173: 184.681 | CJ173: 5177.11 | CL173: MOSUMT PC | CM173: 7.211 | CN173: 5141.1
R174: MOSU MT | S174: 0.015 | T174: 5334.56 | V174: MESA D8 | W174: 436.103 | X174: 5132.2 | Z174: PDW MT | AA174: 198.192 | AB174: 4998.13 | AL174: MOSUMT D24 | AM174: 1.583 | AN174: 4638.26 | AP174: MOSU MT | AQ174: 0.509 | AR174: 4789.85 | AT174: MOSUMT D24 | AU174: 1.423 | AV174: 5098.37 | BG174: MOSUMT D24 | BH174: 1.305 | BI174: 5641.26 | BK174: MOSUMT PC | BL174: 6.832 | BM174: 5586.76 | BO174: PDW1A1B D21 | BP174: 0.081 | BQ174: 4967.86 | CD174: PDW1A1B D21 | CE174: 0.568 | CF174: 5390.52 | CH174: PDW1A1B D21 | CI174: 0.935 | CJ174: 5177.11 | CL174: PDW MT | CM174: 198.313 | CN174: 5141.1
R175: MOSUMT D24 | S175: 0.683 | T175: 5334.56 | V175: MOSU MT | W175: 0.362 | X175: 5132.2 | Z175: PDW1A1B D21 | AA175: 0.63 | AB175: 4998.13 | AL175: MOSUMT PC | AM175: 7.967 | AN175: 4638.26 | AP175: MOSUMT D24 | AQ175: 2.697 | AR175: 4789.85 | AT175: MOSUMT PC | AU175: 6.661 | AV175: 5098.37 | BG175: MOSUMT PC | BH175: 7.319 | BI175: 5641.26 | BK175: PDW MT | BL175: 179.403 | BM175: 5586.76 | BO175: PDW1A1B D24 | BP175: 0.21 | BQ175: 4967.86 | CD175: PDW1A1B D24 | CE175: 0.619 | CF175: 5390.52 | CH175: PDW1A1B D24 | CI175: 1.098 | CJ175: 5177.11 | CL175: PDW1A1B D21 | CM175: 1.15 | CN175: 5141.1
R176: MOSUMT PC | S176: 7.428 | T176: 5334.56 | V176: MOSUMT D24 | W176: 1.149 | X176: 5132.2 | Z176: PDW1A1B D24 | AA176: 0.199 | AB176: 4998.13 | AL176: PDW MT | AM176: 188.933 | AN176: 4638.26 | AP176: MOSUMT PC | AQ176: 8.384 | AR176: 4789.85 | AT176: PDW MT | AU176: 173.897 | AV176: 5098.37 | BG176: PDW MT | BH176: 183.288 | BI176: 5641.26 | BK176: PDW1A1B D21 | BL176: 0.194 | BM176: 5586.76 | BO176: PDW1AB MT PC | BP176: 4.393 | BQ176: 4967.86 | CD176: PDW1AB MT PC | CE176: 4.328 | CF176: 5390.52 | CH176: PDW1AB MT PC | CI176: 3.761 | CJ176: 5177.11 | CL176: PDW1A1B D24 | CM176: 0.873 | CN176: 5141.1
R177: PDW MT | S177: 187.392 | T177: 5334.56 | V177: MOSUMT PC | W177: 9.699 | X177: 5132.2 | Z177: PDW1AB MT PC | AA177: 5.346 | AB177: 4998.13 | AL177: PDW1A1B D21 | AM177: 0.601 | AN177: 4638.26 | AP177: PDW MT | AQ177: 195.311 | AR177: 4789.85 | AT177: PDW1A1B D21 | AU177: 0.297 | AV177: 5098.37 | BG177: PDW1A1B D21 | BH177: 0.231 | BI177: 5641.26 | BK177: PDW1A1B D24 | BL177: 0.193 | BM177: 5586.76 | BO177: PDW1A1B PC | BP177: 0.608 | BQ177: 4967.86 | CD177: PDW1A1B PC | CE177: 0.265 | CF177: 5390.52 | CH177: PDW1A1B PC | CI177: 1.083 | CJ177: 5177.11 | CL177: PDW1AB MT PC | CM177: 5.106 | CN177: 5141.1
R178: PDW1A1B D21 | S178: 0.437 | T178: 5334.56 | V178: PDW MT | W178: 202.647 | X178: 5132.2 | Z178: PDW1A1B PC | AA178: 1.188 | AB178: 4998.13 | AL178: PDW1A1B D24 | AM178: 0.17 | AN178: 4638.26 | AP178: PDW1A1B D21 | AQ178: 0.496 | AR178: 4789.85 | AT178: PDW1A1B D24 | AU178: 0.166 | AV178: 5098.37 | BG178: PDW1A1B D24 | BH178: 0.163 | BI178: 5641.26 | BK178: PDW1AB MT PC | BL178: 5.077 | BM178: 5586.76 | BO178: PDWCUT D24 | BP178: 0.607 | BQ178: 4967.86 | CD178: PDWCUT D24 | CE178: 1.172 | CF178: 5390.52 | CH178: PDWCUT D24 | CI178: 1.389 | CJ178: 5177.11 | CL178: PDW1A1B PC | CM178: 1.037 | CN178: 5141.1
R179: PDW1A1B D24 | S179: 0.185 | T179: 5334.56 | V179: PDW1A1B D21 | W179: 0.886 | X179: 5132.2 | Z179: PDWCUT PC | AA179: 1.294 | AB179: 4998.13 | AL179: PDW1AB MT PC | AM179: 4.088 | AN179: 4638.26 | AP179: PDW1A1B D24 | AQ179: 0.176 | AR179: 4789.85 | AT179: PDW1AB MT PC | AU179: 4.145 | AV179: 5098.37 | BG179: PDW1AB MT PC | BH179: 4.405 | BI179: 5641.26 | BK179: PDW1A1B PC | BL179: 0.403 | BM179: 5586.76 | BO179: PDWCUT PC | BP179: 0.365 | BQ179: 4967.86 | CD179: PDWCUT PC | CE179: 0.207 | CF179: 5390.52 | CH179: PDWCUT PC | CI179: 0.967 | CJ179: 5177.11 | CL179: PDWCUT D24 | CM179: 1.207 | CN179: 5141.1
R180: PDW1AB MT PC | S180: 4.781 | T180: 5334.56 | V180: PDW1A1B D24 | W180: 0.267 | X180: 5132.2 | Z180: PDWMT D24 | AA180: 18.399 | AB180: 4998.13 | AL180: PDW1A1B PC | AM180: 1.187 | AN180: 4638.26 | AP180: PDW1AB MT PC | AQ180: 4.755 | AR180: 4789.85 | AT180: PDW1A1B PC | AU180: 1.128 | AV180: 5098.37 | BG180: PDW1A1B PC | BH180: 1.288 | BI180: 5641.26 | BK180: PDWCUT D24 | BL180: 0.978 | BM180: 5586.76 | BO180: PDWMT D24 | BP180: 17.717 | BQ180: 4967.86 | CD180: PDWMT D24 | CE180: 18.82 | CF180: 5390.52 | CH180: PDWMT D24 | CI180: 17.255 | CJ180: 5177.11 | CL180: PDWCUT PC | CM180: 0.121 | CN180: 5141.1
R181: PDW1A1B PC | S181: 0.962 | T181: 5334.56 | V181: PDW1AB MT PC | W181: 5.571 | X181: 5132.2 | Z181: PDWPLT2 D24 | AA181: 4.914 | AB181: 4998.13 | AL181: PDWCUT PC | AM181: 1.044 | AN181: 4638.26 | AP181: PDW1A1B PC | AQ181: 1.39 | AR181: 4789.85 | AT181: PDWCUT D24 | AU181: 2.317 | AV181: 5098.37 | BG181: PDWCUT D24 | BH181: 1.846 | BI181: 5641.26 | BK181: PDWCUT PC | BL181: 0.809 | BM181: 5586.76 | BO181: PDWPLT2 D24 | BP181: 4.558 | BQ181: 4967.86 | CD181: PDWPLT2 D24 | CE181: 4.821 | CF181: 5390.52 | CH181: PDWPLT2 D24 | CI181: 4.613 | CJ181: 5177.11 | CL181: PDWMT D24 | CM181: 16.903 | CN181: 5141.1
R182: PDWCUT D24 | S182: 0.799 | T182: 5334.56 | V182: PDW1A1B PC | W182: 0.964 | X182: 5132.2 | Z182: PDWPLT2 PC | AA182: 0.001 | AB182: 4998.13 | AL182: PDWMT D24 | AM182: 18.096 | AN182: 4638.26 | AP182: PDWCUT PC | AQ182: 1.333 | AR182: 4789.85 | AT182: PDWCUT PC | AU182: 0.483 | AV182: 5098.37 | BG182: PDWCUT PC | BH182: 1.144 | BI182: 5641.26 | BK182: PDWMT D24 | BL182: 20.709 | BM182: 5586.76 | BO182: PDWPLT2 PC | BP182: 5.848 | BQ182: 4967.86 | CD182: PDWPLT2 PC | CE182: 6.073 | CF182: 5390.52 | CH182: PDWPLT2 PC | CI182: 5.335 | CJ182: 5177.11 | CL182: PDWPLT2 D24 | CM182: 5.097 | CN182: 5141.1
R183: PDWCUT PC | S183: 0.602 | T183: 5334.56 | V183: PDWCUT D24 | W183: 1.122 | X183: 5132.2 | Z183: PDWPLT3 PC | AA183: 6.209 | AB183: 4998.13 | AL183: PDWPLT2 D24 | AM183: 4.919 | AN183: 4638.26 | AP183: PDWMT D24 | AQ183: 17.348 | AR183: 4789.85 | AT183: PDWMT D24 | AU183: 16.426 | AV183: 5098.37 | BG183: PDWMT D24 | BH183: 21.428 | BI183: 5641.26 | BK183: PDWPLT2 D24 | BL183: 4.241 | BM183: 5586.76 | BO183: PDWPLT3 PC | BP183: 3.693 | BQ183: 4967.86 | CD183: PDWPLT3 PC | CE183: 5.644 | CF183: 5390.52 | CH183: PDWPLT3 PC | CI183: 5.662 | CJ183: 5177.11 | CL183: PDWPLT2 PC | CM183: 4.624 | CN183: 5141.1
R184: PDWMT D24 | S184: 22.042 | T184: 5334.56 | V184: PDWCUT PC | W184: 1.034 | X184: 5132.2 | Z184: TRAIL 2D8 | AA184: 18.334 | AB184: 4998.13 | AL184: PDWPLT3 PC | AM184: 5.4 | AN184: 4638.26 | AP184: PDWPLT2 D24 | AQ184: 5.614 | AR184: 4789.85 | AT184: PDWPLT2 D24 | AU184: 4.744 | AV184: 5098.37 | BG184: PDWPLT2 D24 | BH184: 4.925 | BI184: 5641.26 | BK184: PDWPLT2 PC | BL184: 6.221 | BM184: 5586.76 | BO184: SGRLF D24 | BP184: 1.465 | BQ184: 4967.86 | CD184: SGRLF D24 | CE184: 1.364 | CF184: 5390.52 | CH184: SGRLF D24 | CI184: 1.221 | CJ184: 5177.11 | CL184: PDWPLT3 PC | CM184: 6.053 | CN184: 5141.1
R185: PDWPLT2 D24 | S185: 4.2 | T185: 5334.56 | V185: PDWMT D24 | W185: 19.511 | X185: 5132.2 | Z185: TRAIL 2E | AA185: 330.971 | AB185: 4998.13 | AL185: SGRLF PC | AM185: 13.485 | AN185: 4638.26 | AP185: PDWPLT2 PC | AQ185: 0.003 | AR185: 4789.85 | AT185: PDWPLT2 PC | AU185: 8.809 | AV185: 5098.37 | BG185: PDWPLT2 PC | BH185: 6.847 | BI185: 5641.26 | BK185: PDWPLT3 PC | BL185: 3.38 | BM185: 5586.76 | BO185: SGRLF PC | BP185: 38.812 | BQ185: 4967.86 | CD185: SGRLF PC | CE185: 41.77 | CF185: 5390.52 | CH185: SGRLF PC | CI185: 40.853 | CJ185: 5177.11 | CL185: SGRLF D24 | CM185: 1.285 | CN185: 5141.1
R186: PDWPLT2 PC | S186: 6.387 | T186: 5334.56 | V186: PDWPLT2 D24 | W186: 5.157 | X186: 5132.2 | Z186: TRAIL 2E MT | AA186: 51.258 | AB186: 4998.13 | AL186: SGRLFMT D24 | AM186: 9.906 | AN186: 4638.26 | AP186: PDWPLT3 PC | AQ186: 5.46 | AR186: 4789.85 | AT186: PDWPLT3 PC | AU186: 3.846 | AV186: 5098.37 | BG186: PDWPLT3 PC | BH186: 3.63 | BI186: 5641.26 | BK186: SGRLF D24 | BL186: 1.961 | BM186: 5586.76 | BO186: SGRLFMT D24 | BP186: 15.481 | BQ186: 4967.86 | CD186: SGRLFMT D24 | CE186: 16.979 | CF186: 5390.52 | CH186: SGRLFMT D24 | CI186: 15.602 | CJ186: 5177.11 | CL186: SGRLF PC | CM186: 28.839 | CN186: 5141.1
R187: PDWPLT3 PC | S187: 5.312 | T187: 5334.56 | V187: PDWPLT2 PC | W187: 5.339 | X187: 5132.2 | Z187: TRAIL D24 | AA187: 299.98 | AB187: 4998.13 | AL187: TRAIL 2D8 | AM187: 16.829 | AN187: 4638.26 | AP187: SGRLF D24 | AQ187: 0.736 | AR187: 4789.85 | AT187: SGRLF D24 | AU187: 2.585 | AV187: 5098.37 | BG187: SGRLF D24 | BH187: 1.978 | BI187: 5641.26 | BK187: SGRLF PC | BL187: 47.789 | BM187: 5586.76 | BO187: TRAIL 2D8 | BP187: 87.604 | BQ187: 4967.86 | CD187: TRAIL 2D8 | CE187: 89.432 | CF187: 5390.52 | CH187: TRAIL 2D8 | CI187: 81.094 | CJ187: 5177.11 | CL187: SGRLFMT D24 | CM187: 12.303 | CN187: 5141.1
R188: SGRLF D24 | S188: 1.115 | T188: 5334.56 | V188: PDWPLT3 PC | W188: 6.686 | X188: 5132.2 | Z188: TRAIL D8 | AA188: 52.912 | AB188: 4998.13 | AL188: TRAIL 2E | AM188: 293.206 | AN188: 4638.26 | AP188: SGRLF PC | AQ188: 32.813 | AR188: 4789.85 | AT188: SGRLF PC | AU188: 52.407 | AV188: 5098.37 | BG188: SGRLF PC | BH188: 49.606 | BI188: 5641.26 | BK188: SGRLFMT D24 | BL188: 17.384 | BM188: 5586.76 | BO188: TRAIL 2E | BP188: 325.373 | BQ188: 4967.86 | CD188: TRAIL 2E | CE188: 350.598 | CF188: 5390.52 | CH188: TRAIL 2E | CI188: 349.884 | CJ188: 5177.11 | CL188: TRAIL 2D8 | CM188: 75.485 | CN188: 5141.1
R189: SGRLF PC | S189: 41.143 | T189: 5334.56 | V189: SGRLF D24 | W189: 1.351 | X189: 5132.2 | Z189: TRAIL PC | AA189: 1.237 | AB189: 4998.13 | AL189: TRAIL 2E MT | AM189: 48.783 | AN189: 4638.26 | AP189: SGRLFMT D24 | AQ189: 21.78 | AR189: 4789.85 | AT189: SGRLFMT D24 | AU189: 18.956 | AV189: 5098.37 | BG189: SGRLFMT D24 | BH189: 19.748 | BI189: 5641.26 | BK189: TRAIL 2D8 | BL189: 106.065 | BM189: 5586.76 | BO189: TRAIL 2E MT | BP189: 40.581 | BQ189: 4967.86 | CD189: TRAIL 2E MT | CE189: 50.233 | CF189: 5390.52 | CH189: TRAIL 2E MT | CI189: 51.195 | CJ189: 5177.11 | CL189: TRAIL 2E | CM189: 353.066 | CN189: 5141.1
R190: SGRLFMT D24 | S190: 21.869 | T190: 5334.56 | V190: SGRLF PC | W190: 41.033 | X190: 5132.2 | Z190: TRAILMT D24 | AA190: 51.99 | AB190: 4998.13 | AL190: TRAIL D24 | AM190: 265.983 | AN190: 4638.26 | AP190: TRAIL 2D8 | AQ190: 15.992 | AR190: 4789.85 | AT190: TRAIL 2D8 | AU190: 136.508 | AV190: 5098.37 | BG190: TRAIL 2D8 | BH190: 121.081 | BI190: 5641.26 | BK190: TRAIL 2E | BL190: 372.144 | BM190: 5586.76 | BO190: TRAIL D24 | BP190: 298.026 | BQ190: 4967.86 | CD190: TRAIL D24 | CE190: 322.736 | CF190: 5390.52 | CH190: TRAIL D24 | CI190: 320.061 | CJ190: 5177.11 | CL190: TRAIL 2E MT | CM190: 45.357 | CN190: 5141.1
R191: TRAIL 2D8 | S191: 65.23 | T191: 5334.56 | V191: SGRLFMT D24 | W191: 16.974 | X191: 5132.2 | Z191: WHISKEY MT | AA191: 34.848 | AB191: 4998.13 | AL191: TRAIL D8 | AM191: 46.452 | AN191: 4638.26 | AP191: TRAIL 2E | AQ191: 298.982 | AR191: 4789.85 | AT191: TRAIL 2E | AU191: 391.36 | AV191: 5098.37 | BG191: TRAIL 2E | BH191: 369.779 | BI191: 5641.26 | BK191: TRAIL 2E MT | BL191: 47.205 | BM191: 5586.76 | BO191: TRAIL D8 | BP191: 81.864 | BQ191: 4967.86 | CD191: TRAIL D8 | CE191: 85.376 | CF191: 5390.52 | CH191: TRAIL D8 | CI191: 82.602 | CJ191: 5177.11 | CL191: TRAIL D24 | CM191: 323.757 | CN191: 5141.1
R192: TRAIL 2E | S192: 433.419 | T192: 5334.56 | V192: TRAIL 2D8 | W192: 18.459 | X192: 5132.2 | Z192: WHISKEYC 2E | AA192: 97.158 | AB192: 4998.13 | AL192: TRAIL PC | AM192: 1.08 | AN192: 4638.26 | AP192: TRAIL 2E MT | AQ192: 48.51 | AR192: 4789.85 | AT192: TRAIL 2E MT | AU192: 48.722 | AV192: 5098.37 | BG192: TRAIL 2E MT | BH192: 48.522 | BI192: 5641.26 | BK192: TRAIL D24 | BL192: 341.066 | BM192: 5586.76 | BO192: TRAIL PC | BP192: 0.8 | BQ192: 4967.86 | CD192: TRAIL PC | CE192: 0.937 | CF192: 5390.52 | CH192: TRAIL PC | CI192: 0.849 | CJ192: 5177.11 | CL192: TRAIL D8 | CM192: 79.5 | CN192: 5141.1
R193: TRAIL 2E MT | S193: 50.777 | T193: 5334.56 | V193: TRAIL 2E | W193: 326.705 | X193: 5132.2 | Z193: WHLA D24 | AA193: 41.535 | AB193: 4998.13 | AL193: TRAILMT D24 | AM193: 49.38 | AN193: 4638.26 | AP193: TRAIL D24 | AQ193: 268.692 | AR193: 4789.85 | AT193: TRAIL D24 | AU193: 355.335 | AV193: 5098.37 | BG193: TRAIL D24 | BH193: 335.888 | BI193: 5641.26 | BK193: TRAIL D8 | BL193: 96.285 | BM193: 5586.76 | BO193: TRAILMT D24 | BP193: 41.067 | BQ193: 4967.86 | CD193: TRAILMT D24 | CE193: 50.879 | CF193: 5390.52 | CH193: TRAILMT D24 | CI193: 51.752 | CJ193: 5177.11 | CL193: TRAIL PC | CM193: 1.091 | CN193: 5141.1
R194: TRAIL D24 | S194: 403.745 | T194: 5334.56 | V194: TRAIL 2E MT | W194: 50.702 | X194: 5132.2 | Z194: WHLA PC | AA194: 3.694 | AB194: 4998.13 | AL194: WHISKEY MT | AM194: 30.912 | AN194: 4638.26 | AP194: TRAIL D8 | AQ194: 49.412 | AR194: 4789.85 | AT194: TRAIL D8 | AU194: 146.218 | AV194: 5098.37 | BG194: TRAIL D8 | BH194: 111.583 | BI194: 5641.26 | BK194: TRAIL PC | BL194: 0.911 | BM194: 5586.76 | BO194: WHISKEY MT | BP194: 24.929 | BQ194: 4967.86 | CD194: WHISKEY MT | CE194: 25.145 | CF194: 5390.52 | CH194: WHISKEY MT | CI194: 25.751 | CJ194: 5177.11 | CL194: TRAILMT D24 | CM194: 45.933 | CN194: 5141.1
R195: TRAIL D8 | S195: 105.489 | T195: 5334.56 | V195: TRAIL D24 | W195: 295.407 | X195: 5132.2 | Z195: WWILSON D24 | AA195: 3.493 | AB195: 4998.13 | AL195: WHISKEYC 2E | AM195: 92.761 | AN195: 4638.26 | AP195: TRAIL PC | AQ195: 1.132 | AR195: 4789.85 | AT195: TRAIL PC | AU195: 0.983 | AV195: 5098.37 | BG195: TRAIL PC | BH195: 0.844 | BI195: 5641.26 | BK195: TRAILMT D24 | BL195: 47.716 | BM195: 5586.76 | BO195: WHISKEYC 2E | BP195: 78.291 | BQ195: 4967.86 | CD195: WHISKEYC 2E | CE195: 83.892 | CF195: 5390.52 | CH195: WHISKEYC 2E | CI195: 82.988 | CJ195: 5177.11 | CL195: WHISKEY MT | CM195: 29.947 | CN195: 5141.1
R196: TRAIL PC | S196: 1.317 | T196: 5334.56 | V196: TRAIL D8 | W196: 52.922 | X196: 5132.2 | Z196: WWILSON PC | AA196: 12.108 | AB196: 4998.13 | AL196: WHLA D24 | AM196: 39.569 | AN196: 4638.26 | AP196: TRAILMT D24 | AQ196: 49.088 | AR196: 4789.85 | AT196: TRAILMT D24 | AU196: 49.323 | AV196: 5098.37 | BG196: TRAILMT D24 | BH196: 48.996 | BI196: 5641.26 | BK196: WHISKEY MT | BL196: 23.721 | BM196: 5586.76 | BO196: WHLA D24 | BP196: 35.479 | BQ196: 4967.86 | CD196: WHLA D24 | CE196: 34.014 | CF196: 5390.52 | CH196: WHLA D24 | CI196: 32.256 | CJ196: 5177.11 | CL196: WHISKEYC 2E | CM196: 83.007 | CN196: 5141.1
R197: TRAILMT D24 | S197: 51.382 | T197: 5334.56 | V197: TRAIL PC | W197: 1.388 | X197: 5132.2 | Z197: z20 MESA D8 | AA197: 235.046 | AB197: 4998.13 | AL197: WHLA PC | AM197: 6.745 | AN197: 4638.26 | AP197: WHISKEY MT | AQ197: 29.573 | AR197: 4789.85 | AT197: WHISKEY MT | AU197: 25.697 | AV197: 5098.37 | BG197: WHISKEY MT | BH197: 24.798 | BI197: 5641.26 | BK197: WHISKEYC 2E | BL197: 93.441 | BM197: 5586.76 | BO197: WHLA PC | BP197: 5.069 | BQ197: 4967.86 | CD197: WHLA PC | CE197: 4.7 | CF197: 5390.52 | CH197: WHLA PC | CI197: 5.546 | CJ197: 5177.11 | CL197: WHLA D24 | CM197: 40.307 | CN197: 5141.1
R198: WHISKEY MT | S198: 31.854 | T198: 5334.56 | V198: TRAILMT D24 | W198: 51.208 | X198: 5132.2 | AL198: WWILSON D24 | AM198: 2.884 | AN198: 4638.26 | AP198: WHISKEYC 2E | AQ198: 92.357 | AR198: 4789.85 | AT198: WHISKEYC 2E | AU198: 87.941 | AV198: 5098.37 | BG198: WHISKEYC 2E | BH198: 80.01 | BI198: 5641.26 | BK198: WHLA D24 | BL198: 39.926 | BM198: 5586.76 | BO198: WWILSON D24 | BP198: 2.943 | BQ198: 4967.86 | CD198: WWILSON D24 | CE198: 3.248 | CF198: 5390.52 | CH198: WWILSON D24 | CI198: 3.056 | CJ198: 5177.11 | CL198: WHLA PC | CM198: 5.697 | CN198: 5141.1
R199: WHISKEYC 2E | S199: 99.989 | T199: 5334.56 | V199: WHISKEY MT | W199: 31.377 | X199: 5132.2 | AL199: WWILSON PC | AM199: 9.149 | AN199: 4638.26 | AP199: WHLA D24 | AQ199: 34.634 | AR199: 4789.85 | AT199: WHLA D24 | AU199: 35.102 | AV199: 5098.37 | BG199: WHLA D24 | BH199: 28.205 | BI199: 5641.26 | BK199: WHLA PC | BL199: 8.654 | BM199: 5586.76 | BO199: WWILSON PC | BP199: 10.179 | BQ199: 4967.86 | CD199: WWILSON PC | CE199: 11.68 | CF199: 5390.52 | CH199: WWILSON PC | CI199: 8.113 | CJ199: 5177.11 | CL199: WWILSON D24 | CM199: 2.711 | CN199: 5141.1
R200: WHLA D24 | S200: 40.487 | T200: 5334.56 | V200: WHISKEYC 2E | W200: 99.754 | X200: 5132.2 | AL200: z20 MESA D8 | AM200: 215.467 | AN200: 4638.26 | AP200: WHLA PC | AQ200: 5.949 | AR200: 4789.85 | AT200: WHLA PC | AU200: 6.934 | AV200: 5098.37 | BG200: WHLA PC | BH200: 5.208 | BI200: 5641.26 | BK200: WWILSON D24 | BL200: 4.01 | BM200: 5586.76 | BO200: z20 TRAIL D8 | BP200: 196.605 | BQ200: 4967.86 | CD200: z20 TRAIL D8 | CE200: 215.632 | CF200: 5390.52 | CH200: z20 TRAIL D8 | CI200: 199.91 | CJ200: 5177.11 | CL200: WWILSON PC | CM200: 7.684 | CN200: 5141.1
... 6 more rows

Sheet Normal Purchase % (hidden)
A2: Source: The whole numbers come from Purchase Gas and Company Owned Gas sheets. The percentages are then calculated from those numbers.
B3: 2 | C3: 3 | D3: 4 | E3: 5 | F3: 6 | G3: 7 | H3: 8 | I3: 9
A4: Month | B4: Actual Purchase Mdth | C4: Normal Purchase Mdth | D4: Actual Company Mdth | E4: Normal Company Mdths | F4: Actual Purchase as Percent of Total | G4: Normal Purchase as Percent of Total | H4: Actual Cost-of-Service as Percent of Total | I4: Normal Cost-of-Service as Percent of Total | K4: Check Should = 100% | L4: Check Should = 100%
A5: ='Ex 1 HDD'!A8 -> 2020-06-01 | B5: ='Ex 4 Purchase Gas'!B8 -> 390 | C5: ='Ex 4 Purchase Gas'!C8 -> 0 | D5: ='Ex 7 Co. Owned Gas'!B8 -> 5334.561 | E5: ='Ex 7 Co. Owned Gas'!C8 -> 5278.6 | F5: =IFERROR(B5/(B5+D5),0) -> 0.06812749484 | G5: =C5/(C5+E5) -> 0 | H5: =IFERROR(D5/(D5+B5),0) -> 0.9318725052 | I5: =E5/(E5+C5) -> 1 | K5: =F5+H5 -> 1 | L5: =G5+I5 -> 1
A6: ='Ex 1 HDD'!A9 -> 2020-07-01 | B6: ='Ex 4 Purchase Gas'!B9 -> 55 | C6: ='Ex 4 Purchase Gas'!C9 -> 0 | D6: ='Ex 7 Co. Owned Gas'!B9 -> 5132.206 | E6: ='Ex 7 Co. Owned Gas'!C9 -> 5360.98 | F6: =IFERROR(B6/(B6+D6),0) -> 0.01060301056 | G6: 0 | H6: =IFERROR(D6/(D6+B6),0) -> 0.9893969894 | I6: 1 | K6: 1 | L6: 1
A7: ='Ex 1 HDD'!A10 -> 2020-08-01 | B7: ='Ex 4 Purchase Gas'!B10 -> 0 | C7: ='Ex 4 Purchase Gas'!C10 -> 0 | D7: ='Ex 7 Co. Owned Gas'!B10 -> 4998.134 | E7: ='Ex 7 Co. Owned Gas'!C10 -> 5274.711 | F7: 0 | G7: 0 | H7: 1 | I7: 1 | K7: 1 | L7: 1
A8: ='Ex 1 HDD'!A11 -> 2020-09-01 | B8: ='Ex 4 Purchase Gas'!B11 -> 1111.719 | C8: ='Ex 4 Purchase Gas'!C11 -> 1934.3 | D8: ='Ex 7 Co. Owned Gas'!B11 -> 4638.26 | E8: ='Ex 7 Co. Owned Gas'!C11 -> 5026.519 | F8: 0.1933431409 | G8: 0.2778839674 | H8: 0.8066568591 | I8: 0.7221160326 | K8: 1 | L8: 1
A9: ='Ex 1 HDD'!A12 -> 2020-10-01 | B9: ='Ex 4 Purchase Gas'!B12 -> 3307.222 | C9: ='Ex 4 Purchase Gas'!C12 -> 2467.2 | D9: ='Ex 7 Co. Owned Gas'!B12 -> 4789.85 | E9: ='Ex 7 Co. Owned Gas'!C12 -> 5716.15 | F9: 0.4084466582 | G9: 0.301490221 | H9: 0.5915533418 | I9: 0.698509779 | K9: 1 | L9: 1
A10: ='Ex 1 HDD'!A13 -> 2020-11-01 | B10: ='Ex 4 Purchase Gas'!B13 -> 8832.313 | C10: ='Ex 4 Purchase Gas'!C13 -> 7175.5 | D10: ='Ex 7 Co. Owned Gas'!B13 -> 5098.37 | E10: ='Ex 7 Co. Owned Gas'!C13 -> 5401.851 | F10: 0.6340186623 | G10: 0.5705096407 | H10: 0.3659813377 | I10: 0.4294903593 | K10: =F10+H10 -> 1 | L10: 1
A11: ='Ex 1 HDD'!A14 -> 2020-12-01 | B11: ='Ex 4 Purchase Gas'!B14 -> 13178.873 | C11: ='Ex 4 Purchase Gas'!C14 -> 13238.1 | D11: ='Ex 7 Co. Owned Gas'!B14 -> 5641.26 | E11: ='Ex 7 Co. Owned Gas'!C14 -> 5627.61 | F11: 0.700253978 | G11: 0.7017016587 | H11: 0.299746022 | I11: 0.2982983413 | K11: 1 | L11: 1
A12: ='Ex 1 HDD'!A15 -> 2021-01-01 | B12: ='Ex 4 Purchase Gas'!B15 -> 11127.151 | C12: ='Ex 4 Purchase Gas'!C15 -> 11026 | D12: ='Ex 7 Co. Owned Gas'!B15 -> 5586.7 | E12: ='Ex 7 Co. Owned Gas'!C15 -> 5517.327 | F12: 0.6657442979 | G12: 0.6664922963 | H12: 0.3342557021 | I12: 0.3335077037 | K12: 1 | L12: 1
A13: ='Ex 1 HDD'!A16 -> 2021-02-01 | B13: ='Ex 4 Purchase Gas'!B16 -> 7377.303 | C13: ='Ex 4 Purchase Gas'!C16 -> 8816 | D13: ='Ex 7 Co. Owned Gas'!B16 -> 4967.8 | E13: ='Ex 7 Co. Owned Gas'!C16 -> 4727.225 | F13: 0.5975894247 | G13: 0.6509527827 | H13: 0.4024105753 | I13: 0.3490472173 | K13: 1 | L13: 1
A14: ='Ex 1 HDD'!A17 -> 2021-03-01 | B14: ='Ex 4 Purchase Gas'!B17 -> 5564.7 | C14: ='Ex 4 Purchase Gas'!C17 -> 3402.447 | D14: ='Ex 7 Co. Owned Gas'!B17 -> 5390.5 | E14: ='Ex 7 Co. Owned Gas'!C17 -> 5328.404 | F14: 0.5079505623 | G14: 0.3897039361 | H14: 0.4920494377 | I14: 0.6102960639 | K14: 1 | L14: 1
A15: ='Ex 1 HDD'!A18 -> 2021-04-01 | B15: ='Ex 4 Purchase Gas'!B18 -> 2864.746 | C15: ='Ex 4 Purchase Gas'!C18 -> 2103.9 | D15: ='Ex 7 Co. Owned Gas'!B18 -> 5177 | E15: ='Ex 7 Co. Owned Gas'!C18 -> 5075.944 | F15: 0.3562343302 | G15: 0.2930286508 | H15: 0.6437656698 | I15: 0.7069713492 | K15: 1 | L15: 1
A16: ='Ex 1 HDD'!A19 -> 2021-05-01 | B16: ='Ex 4 Purchase Gas'!B19 -> 702.909 | C16: ='Ex 4 Purchase Gas'!C19 -> 390.151 | D16: ='Ex 7 Co. Owned Gas'!B19 -> 5141 | E16: ='Ex 7 Co. Owned Gas'!C19 -> 5167.9 | F16: 0.1202806204 | G16: 0.07019564952 | H16: 0.8797193796 | I16: 0.9298043505 | K16: 1 | L16: 1
A18: Q1 | B18: =SUM(B5:B7) -> 445 | C18: =SUM(C5:C7) -> 0 | D18: =SUM(D5:D7) -> 15464.901 | E18: =SUM(E5:E7) -> 15914.291 | F18: =IFERROR(B18/(B18+D18),0) -> 0.02797000434 | G18: =C18/(C18+E18) -> 0 | H18: =IFERROR(D18/(D18+B18),0) -> 0.9720299957 | I18: =E18/(E18+C18) -> 1 | K18: =F18+H18 -> 1 | L18: 1
A19: Q2 | B19: =SUM(B8:B10) -> 13251.254 | C19: =SUM(C8:C10) -> 11577 | D19: =SUM(D8:D10) -> 14526.48 | E19: =SUM(E8:E10) -> 16144.52 | F19: =IFERROR(B19/(B19+D19),0) -> 0.4770458958 | G19: =C19/(C19+E19) -> 0.417617793 | H19: =IFERROR(D19/(D19+B19),0) -> 0.5229541042 | I19: =E19/(E19+C19) -> 0.582382207 | K19: 1 | L19: 1
A20: Q3 | B20: =SUM(B11:B13) -> 31683.327 | C20: =SUM(C11:C13) -> 33080.1 | D20: =SUM(D11:D13) -> 16195.76 | E20: =SUM(E11:E13) -> 15872.162 | F20: 0.6617362399 | G20: 0.6757624397 | H20: 0.3382637601 | I20: 0.3242375603 | K20: 1 | L20: 1
A21: Q4 | B21: =SUM(B14:B16) -> 9132.355 | C21: =SUM(C14:C16) -> 5896.498 | D21: =SUM(D14:D16) -> 15708.5 | E21: =SUM(E14:E16) -> 15572.248 | F21: 0.3676344876 | G21: 0.2746549798 | H21: 0.6323655124 | I21: =E21/(E21+C21) -> 0.7253450202 | K21: =F21+H21 -> 1 | L21: =G21+I21 -> 1
B22: IRP | C22: Actual | D22: IRP | E22: Actual | F22: 0 | G22: Actual | H22: 0 | I22: Actual
F24: =F4 -> Actual Purchase as Percent of Total | G24: =G4 -> Normal Purchase as Percent of Total | H24: =H4 -> Actual Cost-of-Service as Percent of Total | I24: =I4 -> Normal Cost-of-Service as Percent of Total
E25: =A11 -> 2020-12-01 | F25: =VLOOKUP($E25,$A$5:$I$16,F$3,FALSE) -> 0.700253978 | G25: =VLOOKUP($E25,$A$5:$I$16,G$3,FALSE) -> 0.7017016587 | H25: 0.299746022 | I25: 0.2982983413 | K25: =F25+H25 -> 1 | L25: 1
E26: =A12 -> 2021-01-01 | F26: =VLOOKUP($E26,$A$5:$I$16,F$3,FALSE) -> 0.6657442979 | G26: 0.6664922963 | H26: 0.3342557021 | I26: 0.3335077037 | K26: 1 | L26: 1
E27: =A13 -> 2021-02-01 | F27: =VLOOKUP($E27,$A$5:$I$16,F$3,FALSE) -> 0.5975894247 | G27: 0.6509527827 | H27: 0.4024105753 | I27: 0.3490472173 | K27: 1 | L27: 1
E29: =A18 -> Q1 | F29: =VLOOKUP($E29,$A$18:$I$21,F$3,FALSE) -> 0.02797000434 | G29: =VLOOKUP($E29,$A$18:$I$21,G$3,FALSE) -> 0 | H29: 0.9720299957 | I29: 1 | K29: =F29+H29 -> 1 | L29: 1
E30: =A19 -> Q2 | F30: =VLOOKUP($E30,$A$18:$I$21,F$3,FALSE) -> 0.4770458958 | G30: 0.417617793 | H30: 0.5229541042 | I30: 0.582382207 | K30: 1 | L30: 1
E31: =A20 -> Q3 | F31: =VLOOKUP($E31,$A$18:$I$21,F$3,FALSE) -> 0.6617362399 | G31: 0.6757624397 | H31: 0.3382637601 | I31: 0.3242375603 | K31: 1 | L31: 1
E32: Q4 | F32: =VLOOKUP($E32,$A$18:$I$21,F$3,FALSE) -> 0.3676344876 | G32: 0.2746549798 | H32: 0.6323655124 | I32: 0.7253450202 | K32: 1 | L32: 1 | N32: =F32-G32 -> 0.09297950777 | O32: =I32-H32 -> 0.09297950777
F34: =AVERAGE((F25:F27)) -> 0.6545292336 | G34: =AVERAGE((G25:G27)) -> 0.6730489125 | H34: =AVERAGE((H25:H27)) -> 0.3454707664 | I34: =AVERAGE((I25:I27)) -> 0.3269510875

Sheet IRP Pruch Cover Sheet (hidden)
C1: 2 | D1: 3 | E1: 4 | F1: 5
C2: ='Normal Purchase %'!F24 -> Actual Purchase as Percent of Total | D2: ='Normal Purchase %'!G24 -> Normal Purchase as Percent of Total | E2: ='Normal Purchase %'!H24 -> Actual Cost-of-Service as Percent of Total | F2: ='Normal Purchase %'!I24 -> Normal Cost-of-Service as Percent of Total
B4: ='Normal Purchase %'!E25 -> 2020-12-01 | C4: =VLOOKUP($B4,'Normal Purchase %'!$E$25:$I$27,'IRP Pruch Cover Sheet'!C$1,FALSE) -> 0.700253978 | D4: =VLOOKUP($B4,'Normal Purchase %'!$E$25:$I$27,'IRP Pruch Cover Sheet'!D$1,FALSE) -> 0.7017016587 | E4: =VLOOKUP($B4,'Normal Purchase %'!$E$25:$I$27,'IRP Pruch Cover Sheet'!E$1,FALSE) -> 0.299746022 | F4: =VLOOKUP($B4,'Normal Purchase %'!$E$25:$I$27,'IRP Pruch Cover Sheet'!F$1,FALSE) -> 0.2982983413
B5: ='Normal Purchase %'!E26 -> 2021-01-01 | C5: =VLOOKUP($B5,'Normal Purchase %'!$E$25:$I$27,'IRP Pruch Cover Sheet'!C$1,FALSE) -> 0.6657442979 | D5: =VLOOKUP($B5,'Normal Purchase %'!$E$25:$I$27,'IRP Pruch Cover Sheet'!D$1,FALSE) -> 0.6664922963 | E5: =VLOOKUP($B5,'Normal Purchase %'!$E$25:$I$27,'IRP Pruch Cover Sheet'!E$1,FALSE) -> 0.3342557021 | F5: =VLOOKUP($B5,'Normal Purchase %'!$E$25:$I$27,'IRP Pruch Cover Sheet'!F$1,FALSE) -> 0.3335077037
B6: ='Normal Purchase %'!E27 -> 2021-02-01 | C6: =VLOOKUP($B6,'Normal Purchase %'!$E$25:$I$27,'IRP Pruch Cover Sheet'!C$1,FALSE) -> 0.5975894247 | D6: =VLOOKUP($B6,'Normal Purchase %'!$E$25:$I$27,'IRP Pruch Cover Sheet'!D$1,FALSE) -> 0.6509527827 | E6: =VLOOKUP($B6,'Normal Purchase %'!$E$25:$I$27,'IRP Pruch Cover Sheet'!E$1,FALSE) -> 0.4024105753 | F6: =VLOOKUP($B6,'Normal Purchase %'!$E$25:$I$27,'IRP Pruch Cover Sheet'!F$1,FALSE) -> 0.3490472173
B8: ='Normal Purchase %'!E31 -> Q3 | C8: =VLOOKUP($B$8,'Normal Purchase %'!$E$29:$I$32,'IRP Pruch Cover Sheet'!C$1,FALSE) -> 0.6617362399 | D8: =VLOOKUP($B$8,'Normal Purchase %'!$E$29:$I$32,'IRP Pruch Cover Sheet'!D$1,FALSE) -> 0.6757624397 | E8: =VLOOKUP($B$8,'Normal Purchase %'!$E$29:$I$32,'IRP Pruch Cover Sheet'!E$1,FALSE) -> 0.3382637601 | F8: =VLOOKUP($B$8,'Normal Purchase %'!$E$29:$I$32,'IRP Pruch Cover Sheet'!F$1,FALSE) -> 0.3242375603
D15: =C8-D8 -> -0.01402619987 | E15: =F8-E8 -> -0.01402619987

Sheet Shut-In (hidden)
A1: Actual Data from Jennifer Beasley
A2: Estimates…See Company Nom Groups herein
B4: June | C4: July | D4: August | E4: Total Dth for Quarter | H4: December | I4: January | J4: February | K4: Total Dth for Quarter | N4: Month/Year | O4: Actual | P4: Normal | Q4: Full Production | R4: Shut-in Est. Month | S4: Shut-in Daily
A5: Estimated Shut-in (dth/day) | B5: ='Company Nom Groups'!B128 -> 6153.600609 | C5: ='Company Nom Groups'!C128 -> 6108.602189 | D5: ='Company Nom Groups'!D128 -> 6064.299568 | E5: =SUM(B5:D5) -> 18326.50237 | G5: Estimated Shut-in (dth/day) | H5: ='Company Nom Groups'!H128 -> 24.20043698 | I5: ='Company Nom Groups'!I128 -> 24.00061825 | J5: ='Company Nom Groups'!J128 -> 23.10019306 | K5: =H5*31+I5*31+J5*28 -> 2141.038118 | N5: 44166 | O5: 5641.26 | P5: 5627.61 | Q5: 5667 | R5: 39.39 | S5: 1313
A6: Actual Shut-in (dth/day) | B6: 0 | C6: 2323 | D6: 5437 | E6: =D6+C6 -> 7760 | G6: Acutal Shut-in (dth/day) | H6: 0 | I6: 0 | J6: 0 | K6: 0 | N6: 44197 | O6: 5586.7 | P6: 5517.327 | Q6: 5553 | R6: 35.673 | S6: 1189.1
N7: 44228 | O7: 4697.8 | P7: 4727.225 | Q7: 4728 | R7: 0.775 | S7: 25.83333333
A10: 1 | B10: 59 | C10: =C5 -> 6108.602189 | D10: 0 | G10: =A10 -> 1
A11: 2 | B11: 59 | C11: 780 | D11: 0 | G11: =A11 -> 2
A12: 3 | B12: 59 | C12: 780 | D12: 0 | G12: 3
A13: 4 | B13: 59 | C13: 780 | D13: 0 | G13: 4
A14: 5 | B14: 59 | C14: 780 | D14: 0 | G14: 5
A15: 6 | B15: 59 | C15: 780 | D15: 0 | G15: 6
A16: 7 | B16: 59 | C16: =C11 -> 780 | D16: 0 | G16: 7
A17: 8 | B17: 59 | C17: 780 | D17: 0 | G17: 8
A18: 9 | B18: 59 | C18: 780 | D18: 0 | G18: 9
A19: 10 | B19: 59 | C19: =C14 -> 780 | D19: 0 | G19: 10
A20: 11 | B20: 59 | C20: 780 | D20: 0 | G20: 11
A21: 12 | B21: 59 | C21: 780 | D21: 0 | G21: 12
A22: 13 | B22: 59 | C22: =C17 -> 780 | D22: 0 | G22: 13
A23: 14 | B23: 59 | C23: 780 | D23: 0 | G23: 14
A24: 15 | B24: 59 | C24: 780 | D24: 0 | G24: 15
A25: 16 | B25: 59 | C25: =C20 -> 780 | D25: 0 | G25: 16
A26: 17 | B26: 59 | C26: 780 | D26: 0 | G26: 17
A27: 18 | B27: 59 | C27: 780 | D27: 0 | G27: 18
A28: 19 | B28: 59 | C28: =C23 -> 780 | D28: 0 | G28: 19
A29: 20 | B29: 59 | C29: 780 | D29: 0 | G29: 20
A30: 21 | B30: 59 | C30: 780 | D30: 0 | G30: 21
A31: 22 | B31: 59 | C31: =C26 -> 780 | D31: 0 | G31: 22
A32: 23 | B32: 59 | C32: 780 | D32: 0 | G32: 23
A33: 24 | B33: 59 | C33: 780 | D33: 0 | G33: 24
A34: 25 | B34: 59 | C34: =C29 -> 780 | D34: 0 | G34: 25
A35: 26 | B35: 59 | C35: 780 | D35: 0 | G35: 26
A36: 27 | B36: 59 | C36: 780 | D36: 0 | G36: 27
A37: 28 | B37: 59 | C37: =C32 -> 780 | D37: 0 | G37: 28
A38: 29 | B38: 59 | C38: 780 | D38: 0 | G38: 29
A39: 30 | B39: 59 | C39: 780 | D39: 0 | G39: 30
A40: 31 | B40: 0 | C40: =C35 -> 780 | D40: 0 | G40: 31
B41: =SUM(B10:B40) -> 1770 | C41: =SUM(C10:C40) -> 29508.60219 | D41: =SUM(D10:D40) -> 0 | E41: =SUM(B41:D41) -> 31278.60219 | H41: 0 | I41: 0 | J41: 0 | K41: =SUM(H41:J41) -> 0
A44: 1 | B44: 0 | C44: 0 | D44: 0 | G44: 1 | H44: 0 | I44: 0 | J44: 0
A45: 2 | B45: 0 | C45: 0 | D45: 0 | G45: 2 | H45: 0 | I45: 0 | J45: 0
A46: 3 | B46: 0 | C46: 0 | D46: 0 | G46: 3 | H46: 0 | I46: 0 | J46: 0
A47: 4 | B47: 0 | C47: 0 | D47: 5724 | G47: 4 | H47: 0 | I47: 0 | J47: 0
A48: 5 | B48: 0 | C48: 0 | D48: 5724 | G48: 5 | H48: 0 | I48: 0 | J48: 0
A49: 6 | B49: 0 | C49: 0 | D49: 5724 | G49: 6 | H49: 0 | I49: 0 | J49: 0
A50: 7 | B50: 0 | C50: 0 | D50: 5724 | G50: 7 | H50: 0 | I50: 0 | J50: 0
A51: 8 | B51: 0 | C51: 0 | D51: 5724 | G51: 8 | H51: 0 | I51: 0 | J51: 0
A52: 9 | B52: 0 | C52: 0 | D52: 5724 | G52: 9 | H52: 0 | I52: 0 | J52: 0
A53: 10 | B53: 0 | C53: 0 | D53: 5724 | G53: 10 | H53: 0 | I53: 0 | J53: 0
A54: 11 | B54: 0 | C54: 0 | D54: 5724 | G54: 11 | H54: 0 | I54: 0 | J54: 0
A55: 12 | B55: 0 | C55: 0 | D55: 5724 | G55: 12 | H55: 0 | I55: 0 | J55: 0
A56: 13 | B56: 0 | C56: 0 | D56: 5724 | G56: 13 | H56: 0 | I56: 0 | J56: 0
A57: 14 | B57: 0 | C57: 0 | D57: 5724 | G57: 14 | H57: 0 | I57: 0 | J57: 0
A58: 15 | B58: 0 | C58: 0 | D58: 5724 | G58: 15 | H58: 0 | I58: 0 | J58: 0
A59: 16 | B59: 0 | C59: 0 | D59: 5724 | G59: 16 | H59: 0 | I59: 0 | J59: 0
A60: 17 | B60: 0 | C60: 0 | D60: 5724 | G60: 17 | H60: 0 | I60: 0 | J60: 0
A61: 18 | B61: 0 | C61: 0 | D61: 5724 | G61: 18 | H61: 0 | I61: 0 | J61: 0
A62: 19 | B62: 0 | C62: 0 | D62: 5724 | G62: 19 | H62: 0 | I62: 0 | J62: 0
A63: 20 | B63: 0 | C63: 0 | D63: 5724 | G63: 20 | H63: 0 | I63: 0 | J63: 0
A64: 21 | B64: 0 | C64: 0 | D64: 5724 | G64: 21 | H64: 0 | I64: 0 | J64: 0
A65: 22 | B65: 0 | C65: 0 | D65: 5724 | G65: 22 | H65: 0 | I65: 0 | J65: 0
A66: 23 | B66: 0 | C66: 0 | D66: 5724 | G66: 23 | H66: 0 | I66: 0 | J66: 0
A67: 24 | B67: 0 | C67: 0 | D67: 5724 | G67: 24 | H67: 0 | I67: 0 | J67: 0
A68: 25 | B68: 0 | C68: 0 | D68: 5724 | G68: 25 | H68: 0 | I68: 0 | J68: 0
A69: 26 | B69: 0 | C69: 0 | D69: 5724 | G69: 26 | H69: 0 | I69: 0 | J69: 0
A70: 27 | B70: 0 | C70: 0 | D70: 5724 | G70: 27 | H70: 0 | I70: 0 | J70: 0
A71: 28 | B71: 0 | C71: 0 | D71: 5724 | G71: 28 | H71: 0 | I71: 0 | J71: 0
A72: 29 | B72: 0 | C72: 0 | D72: 5724 | G72: 29 | H72: 0 | I72: 0 | J72: 0
A73: 30 | B73: 0 | C73: 0 | D73: 5724 | G73: 30 | H73: 0 | I73: 0 | J73: 0
A74: 31 | B74: 0 | C74: 0 | D74: 5724 | G74: 31 | I74: 0
B75: =SUM(B44:B74) -> 0 | C75: =SUM(C44:C74) -> 0 | D75: =SUM(D44:D74) -> 160272 | E75: =SUM(B75:D75) -> 160272 | H75: =SUM(H44:H74) -> 0 | I75: =SUM(I44:I74) -> 0 | J75: =SUM(J44:J74) -> 0 | K75: =SUM(H75:J75) -> 0

Sheet Deleted Exhibit 2.5 (hidden)
O31: ='Exhibit 1.1'!O31 -> IRP Variance Exhibit | P31: ='Exhibit 1.1'!P31 -> Docket No. 20-057-02 | Q31: ='Exhibit 1.1'!Q31 -> Dominion Energy Utah
O32: 2.5

Sheet Deleted Exhibit 2.6 (hidden)
O31: ='Exhibit 1.1'!O31 -> IRP Variance Exhibit | P31: ='Exhibit 1.1'!P31 -> Docket No. 20-057-02 | Q31: ='Exhibit 1.1'!Q31 -> Dominion Energy Utah
O32: 2.6
